Service Area,Account Description,Creditor,Journal Date,Journal Reference,Total
Adults and Communities,Books-CDs-Audio-Video,AMAZON EU,05/12/2016,10510,45.00
Adults and Communities,Books-CDs-Audio-Video,AMAZON UK MARKETPLACE,05/12/2016,10509,426.57
Adults and Communities,Books-CDs-Audio-Video,AMAZON UK RETAIL AMAZO,06/12/2016,10524,121.38
Adults and Communities,Consumable Catering Supplies,WWW.ARGOS.CO.UK,01/03/2017,11667,78.94
Adults and Communities,CSG  - IT,AMAZON UK MARKETPLACE,01/02/2017,10974,97.50
Adults and Communities,CSG  - IT,AMAZON UK MARKETPLACE,21/12/2016,10742,97.50
Adults and Communities,CSG  - IT,AMAZON UK RETAIL AMAZO,01/02/2017,10975,62.40
Adults and Communities,Electricity,E.ON ENERGY SOLUTIONS,11/01/2017,11245,"3,569.03"
Adults and Communities,Equipment and Materials Purcha,AMAZON EU,02/02/2017,10976,16.98
Adults and Communities,Equipment and Materials Purcha,"AMAZON SVCS EUROPE,SAR",13/10/2016,9819,3.95
Adults and Communities,Equipment and Materials Purcha,AMAZON UK MARKETPLACE,05/01/2017,10967,57.99
Adults and Communities,Equipment and Materials Purcha,AMAZON UK MARKETPLACE,05/09/2016,9336,18.89
Adults and Communities,Equipment and Materials Purcha,AMAZON UK MARKETPLACE,05/12/2016,10520,15.70
Adults and Communities,Equipment and Materials Purcha,AMAZON UK MARKETPLACE,07/09/2016,9365,61.71
Adults and Communities,Equipment and Materials Purcha,AMAZON UK MARKETPLACE,08/07/2016,8688,14.95
Adults and Communities,Equipment and Materials Purcha,AMAZON UK MARKETPLACE,08/09/2016,9376,125.00
Adults and Communities,Equipment and Materials Purcha,AMAZON UK MARKETPLACE,09/09/2016,9395,85.98
Adults and Communities,Equipment and Materials Purcha,AMAZON UK MARKETPLACE,14/10/2016,9834,3.90
Adults and Communities,Equipment and Materials Purcha,AMAZON UK MARKETPLACE,15/02/2017,11455,4.95
Adults and Communities,Equipment and Materials Purcha,AMAZON UK MARKETPLACE,17/01/2017,10970,35.58
Adults and Communities,Equipment and Materials Purcha,AMAZON UK MARKETPLACE,23/09/2016,9569,15.85
Adults and Communities,Equipment and Materials Purcha,AMAZON UK MARKETPLACE,24/03/2017,12135,11.99
Adults and Communities,Equipment and Materials Purcha,ARGOS RETAIL GROUP,13/10/2016,9828,9.99
Adults and Communities,Equipment and Materials Purcha,ARGOS RETAIL GROUP,19/07/2016,8800,87.96
Adults and Communities,Equipment and Materials Purcha,CREATESEND/COM,02/11/2016,10090,5.00
Adults and Communities,Equipment and Materials Purcha,CREATESEND/COM,02/12/2016,10488,5.00
Adults and Communities,Equipment and Materials Purcha,CREATESEND/COM,05/08/2016,9016,5.00
Adults and Communities,Equipment and Materials Purcha,CREATESEND/COM,05/10/2016,9712,17.00
Adults and Communities,Equipment and Materials Purcha,CREATESEND/COM,06/12/2016,10525,17.00
Adults and Communities,Equipment and Materials Purcha,CREATESEND/COM,07/11/2016,10139,17.00
Adults and Communities,Equipment and Materials Purcha,HOBBYCRAFT (INTERNET),06/09/2016,9352,30.00
Adults and Communities,Equipment and Materials Purcha,NYCOMM LTD,14/09/2016,9463,25.04
Adults and Communities,Equipment and Materials Purcha,PMC ELECTRICS LIMI,09/05/2016,8005,20.99
Adults and Communities,Equipment and Materials Purcha,W M MORRISON PLC,23/01/2017,11252,27.92
Adults and Communities,Equipment and Materials Purcha,WWW.POSNPACK.CO.UK,05/09/2016,9337,155.28
Adults and Communities,General Office Expenses,LAND REGISTRY,18/05/2016,8102,16.80
Adults and Communities,Non Education Staff GPay,CROWNE PLAZA LIVERPOOL,13/12/2016,10612,95.00
Adults and Communities,Non Education Staff GPay,LUL TICKET MACHINE,12/04/2016,7739,55.00
Adults and Communities,Non Education Staff GPay,TEXTBOND NEWS,24/06/2016,8514,60.80
Adults and Communities,Other Agencies - Third Party P,HOLIDAY INNS,09/12/2016,10578,830.00
Adults and Communities,Other Agencies - Third Party P,HOLIDAY INNS,22/11/2016,10349,"1,670.30"
Adults and Communities,Other Agencies - Third Party P,HOLIDAY INNS,22/11/2016,10350,"1,625.00"
Adults and Communities,Other Agencies - Third Party P,HOLIDAY INNS,29/11/2016,10433,830.00
Adults and Communities,Other Agencies - Third Party P,TRAVELODGE,01/02/2017,11254,79.75
Adults and Communities,Other Agencies - Third Party P,TRAVELODGE,08/03/2017,12131,79.25
Adults and Communities,Other Agencies - Third Party P,TRAVELODGE,20/02/2017,11489,946.00
Adults and Communities,Other Agencies - Third Party P,TRAVELODGE,24/01/2017,11253,"1,249.50"
Adults and Communities,Other Services,MARKS&SPENCER PLC SF,20/04/2016,7828,25.00
Adults and Communities,Postage,ROYAL MAIL ONLINE SHOP,11/10/2016,9800,128.00
Adults and Communities,Postage,ROYAL MAIL ONLINE SHOP,13/02/2017,11400,128.00
Adults and Communities,Postage,ROYAL MAIL ONLINE SHOP,20/01/2017,11129,128.00
Adults and Communities,Postage,ROYAL MAIL ONLINE SHOP,20/12/2016,10728,128.00
Adults and Communities,Postage,WWW.ROYALMAIL.COM,02/06/2016,8238,128.00
Adults and Communities,Postage,WWW.ROYALMAIL.COM,06/07/2016,8648,128.00
Adults and Communities,Postage,WWW.ROYALMAIL.COM,07/03/2016,7360,105.00
Adults and Communities,Postage,WWW.ROYALMAIL.COM,16/05/2016,8068,128.00
Adults and Communities,Postage,WWW.ROYALMAIL.COM,18/08/2016,9150,128.00
Adults and Communities,Postage,WWW.ROYALMAIL.COM,29/06/2016,8573,128.00
Adults and Communities,Rents,KNIGHTONS ESTATE A,04/07/2016,8625,"3,028.20"
Adults and Communities,Stationery,AMAZON EU,02/06/2016,8233,48.52
Adults and Communities,Stationery,AMAZON EU,13/07/2016,8725,11.97
Adults and Communities,Stationery,AMAZON EU,15/07/2016,8757,4.73
Adults and Communities,Stationery,AMAZON EU,21/12/2016,10743,42.28
Adults and Communities,Stationery,AMAZON UK MARKETPLACE,11/11/2016,10223,10.20
Adults and Communities,Stationery,AMAZON UK MARKETPLACE,17/01/2017,10971,7.50
Adults and Communities,Stationery,AMAZON UK MARKETPLACE,30/01/2017,10973,17.95
Adults and Communities,Stationery,AMAZON UK RETAIL AMAZO,16/01/2017,10969,5.81
Adults and Communities,Stationery,ARGOS RETAIL GROUP,25/03/2016,7606,15.99
Adults and Communities,Stationery,CREATESEND/COM,02/02/2017,10977,5.00
Adults and Communities,Stationery,CREATESEND/COM,02/03/2017,11261,5.00
Adults and Communities,Stationery,CREATESEND/COM,02/09/2016,9322,5.00
Adults and Communities,Stationery,CREATESEND/COM,04/01/2017,10966,5.00
Adults and Communities,Stationery,CREATESEND/COM,05/01/2017,10968,17.00
Adults and Communities,Stationery,CREATESEND/COM,06/09/2016,9341,17.00
Adults and Communities,Stationery,CREATESEND/COM,07/02/2017,11320,17.00
Adults and Communities,Stationery,CREATESEND/COM,07/03/2017,11871,17.00
Adults and Communities,Stationery,DRI LENOVO,06/10/2016,9734,120.13
Adults and Communities,Stationery,HOME BARGAINS,23/01/2017,10972,3.54
Adults and Communities,Stationery,SAFETYLABEL,08/03/2016,7379,15.09
Adults and Communities,Stationery,SP  PHOTOSYMBOLS LTD,30/06/2016,8586,144.00
Adults and Communities,Stationery,STAPLES UK,12/07/2016,8719,13.79
Adults and Communities,Stationery,VALUE PRODUCTS LTD,06/03/2017,12029,30.35
Adults and Communities,Training,ALDI,03/03/2017,11288,15.00
Adults and Communities,Training,ALDI,05/12/2016,10508,7.21
Adults and Communities,Training,ALDI,12/12/2016,10590,2.70
Adults and Communities,Training,ALDI,13/02/2017,11391,42.73
Adults and Communities,Training,ALDI,14/07/2016,8741,10.04
Adults and Communities,Training,ALDI,14/12/2016,10632,3.33
Adults and Communities,Training,ALDI,15/06/2016,8385,6.72
Adults and Communities,Training,ALDI,15/09/2016,9467,8.36
Adults and Communities,Training,ALDI,19/09/2016,9495,58.90
Adults and Communities,Training,ALDI,23/06/2016,8494,3.29
Adults and Communities,Training,ALDI,23/06/2016,8495,29.13
Adults and Communities,Training,AMAZON EU,03/06/2016,8251,28.00
Adults and Communities,Training,AMAZON EU,08/07/2016,8687,67.68
Adults and Communities,Training,AMAZON EU,09/03/2017,11872,41.84
Adults and Communities,Training,AMAZON EU,22/12/2016,10761,-15.97
Adults and Communities,Training,AMAZON EU,25/03/2016,7602,70.13
Adults and Communities,Training,AMAZON EU,27/10/2016,9995,11.88
Adults and Communities,Training,AMAZON PRIME,01/04/2016,7656,79.00
Adults and Communities,Training,AMAZON PRIME,03/04/2017,11876,79.00
Adults and Communities,Training,AMAZON UK MARKETPLACE,06/02/2017,11305,26.64
Adults and Communities,Training,AMAZON UK MARKETPLACE,06/03/2017,11869,22.36
Adults and Communities,Training,AMAZON UK MARKETPLACE,06/09/2016,9351,12.92
Adults and Communities,Training,AMAZON UK MARKETPLACE,07/03/2017,11870,8.79
Adults and Communities,Training,AMAZON UK MARKETPLACE,09/03/2017,11873,19.99
Adults and Communities,Training,AMAZON UK MARKETPLACE,10/03/2017,11874,9.95
Adults and Communities,Training,AMAZON UK MARKETPLACE,10/03/2017,11875,16.13
Adults and Communities,Training,AMAZON UK MARKETPLACE,10/11/2016,10192,36.71
Adults and Communities,Training,AMAZON UK MARKETPLACE,16/03/2016,7474,15.94
Adults and Communities,Training,AMAZON UK MARKETPLACE,17/03/2016,7499,37.90
Adults and Communities,Training,AMAZON UK MARKETPLACE,28/10/2016,10017,25.90
Adults and Communities,Training,AMAZON UK MARKETPLACE,29/06/2016,8566,28.47
Adults and Communities,Training,AMAZON UK MARKETPLACE,29/06/2016,8567,19.98
Adults and Communities,Training,AMAZON UK RETAIL AMAZO,11/11/2016,10207,4.99
Adults and Communities,Training,CAPITA BUSINESS SERVS,25/07/2016,8875,430.80
Adults and Communities,Training,EB  ENHANCED HEALTH IN,01/12/2016,10455,480.00
Adults and Communities,Training,EB  INNOVATIVE APPROAC,18/08/2016,9143,240.00
Adults and Communities,Training,EB  SEMINAR AMP PUBLIC,24/02/2017,11561,419.88
Adults and Communities,Training,HEALTHCARE CONFERENCES,14/12/2016,10633,240.00
Adults and Communities,Training,HOME BARGAINS,23/06/2016,8493,5.52
Adults and Communities,Training,JESSICA KINGSLEY PUBLI,22/03/2016,7549,29.74
Adults and Communities,Training,LUL TICKET MACHINE,17/11/2016,10280,20.00
Adults and Communities,Training,LUL TICKET MACHINE,24/02/2017,11562,20.00
Adults and Communities,Training,MARKS&SPENCER PLC SF,13/02/2017,11390,2.00
Adults and Communities,Training,MARKS&SPENCER PLC SF,19/09/2016,9496,13.75
Adults and Communities,Training,MORRISONS STORES,20/03/2017,12134,13.19
Adults and Communities,Training,PAVILION PUBLISHING &,22/03/2016,7548,89.00
Adults and Communities,Training,PAYPAL  EDGETRAININ,11/10/2016,9794,324.10
Adults and Communities,Training,PAYPAL  EDGETRAININ,23/02/2017,11534,324.10
Adults and Communities,Training,PREMIER INN,03/11/2016,10101,539.94
Adults and Communities,Training,PREMIER INN,07/11/2016,10152,489.05
Adults and Communities,Training,TESCO STORE 3213,15/08/2016,9102,4.95
Adults and Communities,Training,TESCO-STORES 3213,22/07/2016,8863,13.32
Adults and Communities,Training,THE ADULT LEARNING,19/09/2016,9494,930.00
Adults and Communities,Training,THE ADULT LEARNING,25/05/2016,8173,620.00
Adults and Communities,Training,TSGN,12/09/2016,9409,16.50
Adults and Communities,Training,TSGN,24/03/2016,7577,27.00
Adults and Communities,Training,TSGN,27/09/2016,9594,16.50
Adults and Communities,Training,WP-GLASSTAP/TRLIBRARY,22/06/2016,8478,450.00
Adults and Communities,Training,WWW.ADASS.ORG.UK,15/03/2017,12132,499.00
Adults and Communities,Training,WWW.ADASS.ORG.UK,15/03/2017,12133,499.00
Adults and Communities,Training,WWW.ADASS.ORG.UK,30/05/2016,8210,"1,200.00"
Adults and Communities,Training,WWW.CONSSULTATIONI,24/10/2016,9929,534.00
Adults and Communities,Training,WWW.GOVKNOW.COM,09/02/2017,11360,300.00
Adults and Communities,Training,WWW.PUBLICPOLICYEXCHAN,24/05/2016,8162,354.00
Adults and Communities,Training,WWW.UCAS.COM,21/07/2016,8843,23.00
Adults and Communities,Travelling Expenses,OYSTER AUTOTOPUP,04/03/2016,7340,20.00
Adults and Communities,Travelling Expenses,OYSTER AUTOTOPUP,17/02/2017,11472,40.00
Adults and Communities,Travelling Expenses,OYSTER AUTOTOPUP,18/04/2016,7796,40.00
Adults and Communities,Travelling Expenses,OYSTER AUTOTOPUP,25/11/2016,10388,20.00
Adults and Communities,Travelling Expenses,OYSTER AUTOTOPUP,28/04/2016,7924,20.00
Adults and Communities,Travelling Expenses,OYSTER BUS AUTOTOP,10/10/2016,9780,20.00
Adults and Communities,Travelling Expenses,OYSTER BUS AUTOTOP,10/10/2016,9784,20.00
Adults and Communities,Travelling Expenses,OYSTER BUS AUTOTOP,11/11/2016,10218,20.00
Adults and Communities,Travelling Expenses,OYSTER BUS AUTOTOP,13/01/2017,11128,20.00
Adults and Communities,Travelling Expenses,OYSTER BUS AUTOTOP,13/02/2017,11412,20.00
Adults and Communities,Travelling Expenses,OYSTER BUS AUTOTOP,16/02/2017,11463,20.00
Adults and Communities,Travelling Expenses,OYSTER BUS AUTOTOP,16/03/2017,12030,20.00
Adults and Communities,Travelling Expenses,OYSTER BUS AUTOTOP,18/08/2016,9151,40.00
Adults and Communities,Travelling Expenses,OYSTER BUS AUTOTOP,21/10/2016,9924,20.00
Adults and Communities,Travelling Expenses,OYSTER BUS AUTOTOP,21/11/2016,10320,40.00
Adults and Communities,Travelling Expenses,OYSTER BUS AUTOTOP,23/02/2017,11548,20.00
Adults and Communities,Travelling Expenses,OYSTER BUS AUTOTOP,23/05/2016,8143,20.00
Adults and Communities,Travelling Expenses,OYSTER BUS AUTOTOP,26/09/2016,9609,20.00
Adults and Communities,Travelling Expenses,OYSTER BUS AUTOTOP,27/02/2017,11595,20.00
Adults and Communities,Travelling Expenses,OYSTER BUS AUTOTOP,27/03/2017,12031,20.00
Adults and Communities,Travelling Expenses,OYSTER BUS AUTOTOP,29/09/2016,9657,40.00
Adults and Communities,Travelling Expenses,OYSTER ISSUE TEL,13/12/2016,10621,10.00
Adults and Communities,Venue Hire,SARACENS LTD,15/09/2016,9474,833.33
Assurance,Clothing - Protective Clothing,A&Y LOCKSMITHS,03/11/2016,10109,18.33
Assurance,Clothing - Protective Clothing,JOHN LEWIS,24/02/2017,11567,62.50
Assurance,Clothing - Protective Clothing,M CAMELIA IACOB LT,09/05/2016,8007,65.00
Assurance,Clothing - Protective Clothing,M CAMELIA IACOB LT,19/04/2016,7809,48.00
Assurance,Clothing - Protective Clothing,M CAMELIA IACOB LT,25/10/2016,9958,10.00
Assurance,Clothing - Protective Clothing,MARKS&SPENCER PLC SACA,21/02/2017,11514,60.00
Assurance,Equipment and Materials Purcha,AMAZON UK MARKETPLACE,02/11/2016,10089,117.89
Assurance,Equipment and Materials Purcha,AMAZON UK MARKETPLACE,16/12/2016,10655,9.90
Assurance,Equipment and Materials Purcha,AMAZON UK MARKETPLACE,27/05/2016,8191,10.19
Assurance,Equipment and Materials Purcha,HOMEBASE LTD 057,12/12/2016,10579,7.60
Assurance,Equipment and Materials Purcha,INSPIRED FRAMES,06/04/2016,7699,304.02
Assurance,Equipment and Materials Purcha,INSPIRED FRAMES,08/06/2016,8310,50.67
Assurance,Equipment and Materials Purcha,INSPIRED FRAMES,18/05/2016,8097,65.00
Assurance,Equipment and Materials Purcha,INSPIRED FRAMES,20/03/2017,11683,253.35
Assurance,Equipment and Materials Purcha,INSPIRED FRAMES,25/07/2016,8868,65.88
Assurance,Equipment and Materials Purcha,INSPIRED FRAMES,28/10/2016,10005,65.88
Assurance,Equipment and Materials Purcha,MIDDLESEX UNIVERSITY H,23/06/2016,8488,7.68
Assurance,Equipment and Materials Purcha,NELKEN JEWELLERS,14/11/2016,10236,12.50
Assurance,Equipment and Materials Purcha,PINKS FLORISTS SPIRES,11/05/2016,8024,290.00
Assurance,Equipment and Materials Purcha,PP HIREWITNESS,15/07/2016,8752,370.00
Assurance,Equipment and Materials Purcha,TESCO STORES 2654,12/12/2016,10580,32.10
Assurance,Equipment and Materials Purcha,TWICKENHAM PHARMACY,08/12/2016,10560,4.49
Assurance,Equipment and Materials Purcha,W M MORRISON PLC,29/11/2016,10423,2.92
Assurance,Equipment and Materials Purcha,W M MORRISON PLC,29/11/2016,10424,2.92
Assurance,Equipment and Materials Purcha,W M MORRISON PLC,29/11/2016,10427,-3.50
Assurance,Equipment and Materials Purcha,WH SMITH,04/10/2016,9691,60.02
Assurance,Equipment and Materials Purcha,WWW.FLAGANDBUNTINGSTOR,04/10/2016,9690,39.37
Assurance,Equipment and Materials Repair,M CAMELIA IACOB LT,19/04/2016,7808,48.00
Assurance,Equipment and Materials Repair,M CAMELIA IACOB LT,19/04/2016,7810,48.48
Assurance,Equipment Hire,MARQUEE CARPETS LIMITE,30/06/2016,8598,"1,315.20"
Assurance,Fixtures and fittings,MARQUEE CARPETS LIMITEWALTHAM CROSS,19/08/2016,9175,"-1,315.20"
Assurance,Food Costs,PIZZA HUT ONLINE WEB,08/06/2016,8313,37.29
Assurance,Food Costs,PIZZA HUT ONLINE WEB,09/06/2016,8322,119.07
Assurance,Food Costs,PIZZA HUT ONLINE WEB,20/06/2016,8428,54.02
Assurance,General Office Expenses,WWW.RYMAN.CO.UK,29/08/2016,9272,19.88
Assurance,Hardware Purchases,AMAZON UK MARKETPLACE,01/03/2017,11646,12.71
Assurance,Hardware Purchases,AMAZON UK MARKETPLACE,06/02/2017,11298,126.87
Assurance,Hardware Purchases,AMAZON UK MARKETPLACE,23/01/2017,10832,86.38
Assurance,Hardware Purchases,AMAZON UK RETAIL AMAZO,09/01/2017,10831,32.79
Assurance,Laundry and Dry Cleaning,BLAKES DRY CLEANER LTD,01/12/2016,10471,15.45
Assurance,Laundry and Dry Cleaning,BLAKES DRY CLEANER LTD,06/07/2016,8657,11.50
Assurance,Laundry and Dry Cleaning,BLAKES DRY CLEANER LTD,07/03/2017,11934,11.50
Assurance,Laundry and Dry Cleaning,BLAKES DRY CLEANER LTD,08/11/2016,10162,10.50
Assurance,Laundry and Dry Cleaning,BLAKES DRY CLEANER LTD,13/04/2016,7750,11.50
Assurance,Laundry and Dry Cleaning,BLAKES DRY CLEANER LTD,15/02/2017,11457,13.50
Assurance,Laundry and Dry Cleaning,BLAKES DRY CLEANER LTD,17/08/2016,9133,21.50
Assurance,Laundry and Dry Cleaning,BLAKES DRY CLEANER LTD,20/12/2016,10723,11.50
Assurance,Laundry and Dry Cleaning,BLAKES DRY CLEANER LTD,29/03/2017,11940,11.50
Assurance,Miscellaneous Expenses,AMAZON EU,07/10/2016,9745,8.94
Assurance,Miscellaneous Expenses,BIRMINGHAM CC,22/04/2016,7871,69.00
Assurance,Miscellaneous Expenses,BIRMINGHAM CC,25/04/2016,7891,13.00
Assurance,Miscellaneous Expenses,CLOTHES 2 ORDER,06/06/2016,8284,880.50
Assurance,Miscellaneous Expenses,D H C LTD,08/06/2016,8320,170.85
Assurance,Miscellaneous Expenses,D H C LTD,18/11/2016,10302,170.85
Assurance,Miscellaneous Expenses,MARKS&SPENCER PLC,01/07/2016,8608,35.00
Assurance,Miscellaneous Expenses,PIZZA HUT - SOUTHGATE,06/05/2016,7988,198.75
Assurance,Miscellaneous Expenses,ROYAL MAIL,19/12/2016,10707,392.40
Assurance,Miscellaneous Expenses,RYMAN 1180,01/03/2017,11673,10.99
Assurance,Miscellaneous Expenses,SPEEDSTITCH,03/10/2016,9681,35.00
Assurance,Miscellaneous Expenses,SPEEDSTITCH,30/09/2016,9667,175.00
Assurance,Miscellaneous Expenses,SPORTSDIRECT.COM,13/02/2017,11388,54.97
Assurance,Miscellaneous Expenses,TEXTMARKETER,06/06/2016,8283,198.00
Assurance,NNDR Collected,LB CAMDEN PARKING,19/04/2016,7807,2.40
Assurance,NNDR Collected,LB CAMDEN PARKING,27/04/2016,7909,1.70
Assurance,Other Indirect Employee Expens,BROTHER & SONS LIMITED,02/11/2016,10093,9.36
Assurance,Other Indirect Employee Expens,BROTHER & SONS LIMITED,08/03/2017,11936,6.63
Assurance,Other Indirect Employee Expens,BROTHER & SONS LIMITED,08/03/2017,11937,10.38
Assurance,Other Indirect Employee Expens,BROTHER & SONS LIMITED,13/04/2016,7749,5.07
Assurance,Other Indirect Employee Expens,ICELAND,03/08/2016,8998,14.65
Assurance,Other Indirect Employee Expens,ICELAND,09/09/2016,9397,14.20
Assurance,Other Indirect Employee Expens,ICELAND,14/12/2016,10637,7.52
Assurance,Other Indirect Employee Expens,ICELAND,19/10/2016,9889,4.29
Assurance,Other Indirect Employee Expens,ICELAND,19/10/2016,9890,14.60
Assurance,Other Indirect Employee Expens,MIDDLESEX UNIVERSITY H,07/03/2017,11935,0.89
Assurance,Other Indirect Employee Expens,MIDDLESEX UNIVERSITY H,08/03/2017,11938,5.16
Assurance,Other Indirect Employee Expens,MIDDLESEX UNIVERSITY H,13/10/2016,9824,1.89
Assurance,Other Indirect Employee Expens,MIDDLESEX UNIVERSITY H,24/11/2016,10373,1.59
Assurance,Other Indirect Employee Expens,PINKS FLORISTS SPIRES,30/01/2017,10836,51.00
Assurance,Other Indirect Employee Expens,POUNDLAND LTD,18/01/2017,11024,8.60
Assurance,Other Indirect Employee Expens,TESCO STORE 2126,13/09/2016,9443,33.33
Assurance,Other Indirect Employee Expens,TESCO STORE 2126,14/02/2017,11430,26.96
Assurance,Other Indirect Employee Expens,TESCO STORE 2126,18/03/2016,7505,30.25
Assurance,Other Indirect Employee Expens,TESCO STORE 2126,25/10/2016,9957,39.04
Assurance,Other Indirect Employee Expens,TESCO STORE 2296,25/01/2017,11029,27.92
Assurance,Other Indirect Employee Expens,TESCO STORE 2296,25/01/2017,11030,39.08
Assurance,Other Indirect Employee Expens,THE GRAPEVINE,05/04/2016,7697,15.98
Assurance,Other Indirect Employee Expens,W M MORRISON PLC,27/07/2016,8925,19.52
Assurance,Other Indirect Employee Expens,WAITROSE 670,04/07/2016,8626,13.16
Assurance,Other Indirect Employee Expens,WAITROSE 670,10/06/2016,8336,12.52
Assurance,Other Indirect Employee Expens,WAITROSE 670,16/05/2016,8063,15.50
Assurance,Other Indirect Employee Expens,WAITROSE 670,19/12/2016,10689,5.56
Assurance,Other Indirect Employee Expens,WAITROSE 670,24/10/2016,9942,2.50
Assurance,Other Indirect Employee Expens,WAITROSE 670,25/07/2016,8878,11.51
Assurance,Other Indirect Employee Expens,WAITROSE 670,25/07/2016,8879,75.00
Assurance,Other Indirect Employee Expens,WAITROSE 670,29/03/2017,11941,37.08
Assurance,Other Indirect Employee Expens,WAITROSE 670,29/03/2017,11942,37.17
Assurance,Other Vehicle Costs,AA MEMBERSHIP,16/09/2016,9468,74.10
Assurance,Other Vehicle Costs,AA MEMBERSHIP,16/09/2016,9469,56.84
Assurance,Other Vehicle Costs,BP KELLYS CORNER CONNE,17/10/2016,9840,7.50
Assurance,Other Vehicle Costs,BP KELLYS CORNER CONNE,18/07/2016,8774,9.00
Assurance,Other Vehicle Costs,BP KELLYS CORNER CONNE,22/08/2016,9159,9.00
Assurance,Other Vehicle Costs,BP KELLYS CORNER CONNE,27/10/2016,9983,7.50
Assurance,Other Vehicle Costs,ELSTREE CAR VALETING L,14/11/2016,10235,7.00
Assurance,Other Vehicle Costs,ELSTREE CAR VALETING L,28/06/2016,8550,7.00
Assurance,Other Vehicle Costs,HALFORDS 0370,06/06/2016,8276,41.66
Assurance,Other Vehicle Costs,HALFORDS 0370,13/06/2016,8353,-49.99
Assurance,Other Vehicle Costs,HALFORDS 0370,30/06/2016,8592,41.66
Assurance,Other Vehicle Costs,HEARNS COACHES,27/04/2016,7914,535.50
Assurance,Other Vehicle Costs,TRELAWNEY GARDEN C,28/03/2016,7610,19.98
Assurance,Parking Permit Fees,APCOA - HAL - SS T5,11/10/2016,9796,3.00
Assurance,Parking Permit Fees,L B BARNET PARKING,11/05/2016,8029,1.10
Assurance,Parking Permit Fees,LAMBETH PARKING,19/05/2016,8115,4.70
Assurance,Parking Permit Fees,LB CAMDEN PARKING,03/06/2016,8253,9.30
Assurance,Parking Permit Fees,LB CAMDEN PARKING,07/06/2016,8299,3.60
Assurance,Parking Permit Fees,LB CAMDEN PARKING,18/05/2016,8103,1.70
Assurance,Parking Permit Fees,LB CAMDEN PARKING,18/05/2016,8105,1.70
Assurance,Parking Permit Fees,LB CAMDEN PARKING,18/08/2016,9147,5.75
Assurance,Parking Permit Fees,LB CAMDEN PARKING,18/08/2016,9148,9.20
Assurance,Parking Permit Fees,LB CAMDEN PARKING,19/07/2016,8794,6.90
Assurance,Parking Permit Fees,WESTMINSTER PARK/PARKE,20/07/2016,8795,3.41
Assurance,Stationery,POST OFFICE COUNTER,07/12/2016,10539,15.36
Assurance,Stationery,WWW.VIKING-DIRECT.CO.U,30/06/2016,8579,37.79
Assurance,Subsistence,BAR BRUNO,05/07/2016,8645,7.50
Assurance,Subsistence,"BOOTS,1000",05/07/2016,8644,2.50
Assurance,Subsistence,BYC TRADING LTD,24/01/2017,11026,2.17
Assurance,Subsistence,CAFFE NERO,24/10/2016,9944,2.25
Assurance,Subsistence,CAFFE NERO,26/10/2016,9970,3.85
Assurance,Subsistence,COSTA COFFEE,11/11/2016,10213,3.49
Assurance,Subsistence,COSTA COFFEE,18/01/2017,11023,2.12
Assurance,Subsistence,COSTA COFFEE,22/12/2016,10764,4.54
Assurance,Subsistence,COSTA COFFEE 43034130,21/10/2016,9919,4.62
Assurance,Subsistence,DELI AT NUMBER 4,06/05/2016,7991,2.83
Assurance,Subsistence,DELI AT NUMBER 4,24/06/2016,8515,2.00
Assurance,Subsistence,EAT,03/06/2016,8252,5.61
Assurance,Subsistence,EAT,07/06/2016,8298,3.67
Assurance,Subsistence,EAT,18/08/2016,9146,5.36
Assurance,Subsistence,M&S SIMPLY FOOD - SSP,13/01/2017,11021,2.40
Assurance,Subsistence,MCDONALDS,24/10/2016,9930,1.16
Assurance,Subsistence,MCDONALDS,27/03/2017,11939,4.31
Assurance,Subsistence,MCDONALDS,27/06/2016,8529,2.37
Assurance,Subsistence,MIDDX UNI - HENDON QUA,29/11/2016,10425,2.40
Assurance,Subsistence,OASIS COFFEE SHOP,05/12/2016,10512,5.30
Assurance,Subsistence,OASIS COFFEE SHOP,19/07/2016,8793,5.30
Assurance,Subsistence,PRET A MANGER,17/01/2017,11022,3.42
Assurance,Subsistence,SARACENS,29/08/2016,9296,2.00
Assurance,Subsistence,STARBUCKS,06/06/2016,8275,1.96
Assurance,Subsistence,STARBUCKS,19/07/2016,8792,2.79
Assurance,Subsistence,STARBUCKS,21/06/2016,8469,4.17
Assurance,Subsistence,STARBUCKS,27/06/2016,8528,2.54
Assurance,Subsistence,STARBUCKS,29/11/2016,10426,2.04
Assurance,Subsistence,STARBUCKS HEATHROW,27/02/2017,11590,6.33
Assurance,Subsistence,THE CORNER CAFE,18/05/2016,8104,5.58
Assurance,Training,PREMIER INN,27/10/2016,9982,90.40
Assurance,Training,WWW.WESTMINSTER-BRIEFI,09/12/2016,10570,399.60
Assurance,Transport Hire Charges,HEARNS COACHES,20/06/2016,8439,306.00
Assurance,Travelling Expenses,LETHERBY & CHRISTOPHER,23/03/2016,7573,79.17
Assurance,Travelling Expenses,LUL TICKET MACHINE,03/08/2016,8997,10.00
Assurance,Travelling Expenses,LUL TICKET MACHINE,19/04/2016,7811,15.00
Assurance,Travelling Expenses,SELFSERVE TICKET,07/03/2016,7342,10.00
Assurance,Travelling Expenses,TICKETOFFICESALE,04/03/2016,7331,29.10
Assurance,Travelling Expenses,TRAINLINE,17/03/2016,7502,40.03
Assurance,Travelling Expenses,TSGN,09/11/2016,10173,15.00
Assurance,Travelling Expenses,WWW.ADDISONLEE.COM,27/06/2016,8520,22.10
Assurance,Travelling Expenses,WWW.ADDISONLEE.COM,28/06/2016,8538,22.60
Assurance,Travelling Expenses,WWW.ADDISONLEE.COM,28/06/2016,8539,9.50
Assurance,Ttl IT & Comms,AMAZON UK MARKETPLACE,19/01/2017,10884,22.80
Assurance,Vehicle Running Costs,GRANGE BARNET,18/01/2017,11025,16.29
Assurance,Vehicle Running Costs,HALFORDS 0744,25/01/2017,11027,9.99
Assurance,Vehicle Running Costs,HALFORDS 0744,25/01/2017,11028,54.91
Assurance,Vehicle Running Costs,HALFORDS 430,18/11/2016,10296,41.63
Assurance,Vehicle Running Costs,LB CAMDEN PARKING,05/12/2016,10513,9.20
Assurance,Vehicle Running Costs,TFL CC/LEZ CHARGE,02/06/2016,8228,11.50
Assurance,Vehicle Running Costs,TFL CC/LEZ CHARGE,03/06/2016,8243,11.50
Assurance,Vehicle Running Costs,TFL CC/LEZ CHARGE,07/06/2016,8288,11.50
Assurance,Vehicle Running Costs,TFL CC/LEZ CHARGE,08/08/2016,9026,11.50
Assurance,Vehicle Running Costs,TFL CC/LEZ CHARGE,13/09/2016,9428,14.00
Assurance,Vehicle Running Costs,TFL CC/LEZ CHARGE,18/05/2016,8096,11.50
Assurance,Vehicle Running Costs,TFL CC/LEZ CHARGE,18/08/2016,9140,11.50
Assurance,Vehicle Running Costs,TFL CC/LEZ CHARGE,19/04/2016,7804,11.50
Assurance,Vehicle Running Costs,TFL CC/LEZ CHARGE,19/07/2016,8784,11.50
Assurance,Vehicle Running Costs,TFL CC/LEZ CHARGE,21/09/2016,9532,14.00
Assurance,Vehicle Running Costs,TFL CC/LEZ CHARGE,22/08/2016,9167,11.50
Assurance,Vehicle Running Costs,TFL CC/LEZ CHARGE,27/04/2016,7905,11.50
Assurance,Vehicle Running Costs,TFL ROAD CHARGE,06/12/2016,10521,11.50
Assurance,Vehicle Running Costs,TFL ROAD CHARGE,12/10/2016,9804,11.50
Assurance,Vehicle Running Costs,TFL ROAD CHARGE,14/02/2017,11389,11.50
Assurance,Vehicle Running Costs,TFL ROAD CHARGE,15/11/2016,10243,11.50
Assurance,Vehicle Running Costs,TFL ROAD CHARGE,17/11/2016,10272,14.00
Assurance,Vehicle Running Costs,TFL ROAD CHARGE,18/01/2017,10833,11.50
Assurance,Vehicle Running Costs,TFL ROAD CHARGE,24/01/2017,10834,11.50
Assurance,Vehicle Running Costs,TFL ROAD CHARGE,25/01/2017,10835,11.50
Assurance,Vehicle Running Costs,TFL ROAD CHARGE,30/01/2017,10837,11.50
Assurance,Venue Hire,ALEXANDRA PALACE,02/05/2016,7960,"4,342.20"
Children's Education & Skills,Conference Expenses,EB  SPECIAL EDUCATIONA,09/11/2016,10180,500.00
Children's Education & Skills,Conference Expenses,THE NOKE HOTEL,08/09/2016,9372,725.00
Children's Education & Skills,Conference Expenses,THE NOKE HOTEL,08/09/2016,9373,833.33
Children's Education & Skills,Equipment and Materials Purcha,AMAZON EU,20/07/2016,8832,12.60
Children's Education & Skills,Equipment and Materials Purcha,AMAZON EU,27/07/2016,8940,25.93
Children's Education & Skills,Equipment and Materials Purcha,AMAZON PRIME,13/09/2016,9452,-79.00
Children's Education & Skills,Equipment and Materials Purcha,AMAZON PRIME,19/08/2016,9165,79.00
Children's Education & Skills,Equipment and Materials Purcha,AMAZON UK MARKETPLACE,28/02/2017,11638,68.15
Children's Education & Skills,Equipment and Materials Purcha,AMAZON UK RETAIL AMAZO,21/07/2016,8833,12.60
Children's Education & Skills,Equipment and Materials Purcha,SMALL WORLD,27/05/2016,8201,63.38
Children's Education & Skills,Equipment and Materials Purcha,THE PLASTIC BOX COMPAN,20/02/2017,11486,47.95
Children's Education & Skills,Equipment and Materials Purcha,WIX.COM,09/05/2016,8012,2.49
Children's Education & Skills,Fixtures and fittings,WWW.OFFICEFURNITUREONL,07/03/2016,7356,114.00
Children's Education & Skills,Miscellaneous Expenses,LOVE2SHOP.CO.UK,20/09/2016,9526,254.25
Children's Education & Skills,Miscellaneous Expenses,LOVE2SHOP.CO.UK,20/09/2016,9527,244.25
Children's Education & Skills,Software Licences & Support,FASTHOSTS INTERNET,11/08/2016,9084,13.98
Children's Education & Skills,Software Licences & Support,FASTHOSTS INTERNET,30/09/2016,9665,7.98
Children's Education & Skills,Stationery,AMAZON EU,21/04/2016,7854,26.01
Children's Education & Skills,Stationery,AMAZON UK MARKETPLACE,06/07/2016,8658,6.73
Children's Education & Skills,Stationery,AMAZON UK MARKETPLACE,06/10/2016,9728,9.27
Children's Education & Skills,Stationery,AMAZON UK MARKETPLACE,23/05/2016,8139,5.84
Children's Education & Skills,Stationery,FILOFAX LETTS BLUELINE,21/09/2016,9541,32.50
Children's Education & Skills,Stationery,WWW.RYMAN.CO.UK,11/08/2016,9080,44.99
Children's Education & Skills,Subscriptions,WWW.OUP.COM,22/06/2016,8483,132.00
Children's Education & Skills,Training,DEBIT ADJUSTMENT,07/06/2016,8301,134.10
Children's Education & Skills,Training,DEBIT ADJUSTMENT,07/06/2016,8302,137.10
Children's Education & Skills,Training,EB  SPECIAL EDUCATIONA,03/11/2016,10110,500.00
Children's Education & Skills,Training,EB  STORIES OF PSYCHOL,05/08/2016,9019,15.00
Children's Education & Skills,Training,EXPEDIA,07/11/2016,10149,122.50
Children's Education & Skills,Training,FASTER PAYMENT RECEIVED- THANK YOU,13/04/2016,7751,-137.10
Children's Education & Skills,Training,FASTER PAYMENT RECEIVED- THANK YOU,13/04/2016,7752,-134.10
Children's Education & Skills,Training,RRC,12/01/2016,6638,0.24
Children's Education & Skills,Training,TRAINLINE,08/11/2016,10164,42.79
Children's Education & Skills,Training,WESTMINSTER FORUM,19/04/2016,7822,252.00
Children's Education & Skills,Travelling Expenses,TRAINLINE.COM LTD,04/10/2016,9705,79.35
Children's Family Services,Advertising,FUNDING SOLUTIONS FOR,10/11/2016,10186,660.00
Children's Family Services,Advertising for staff,REED ONLINE LIMITED (E,20/04/2016,7829,450.00
Children's Family Services,Books-CDs-Audio-Video,AMAZON EU,09/01/2017,10854,14.99
Children's Family Services,Books-CDs-Audio-Video,AMAZON EU,13/01/2017,10855,12.99
Children's Family Services,Books-CDs-Audio-Video,AMAZON UK MARKETPLACE,14/03/2016,7436,16.53
Children's Family Services,Books-CDs-Audio-Video,AMAZON UK MARKETPLACE,14/03/2016,7437,58.32
Children's Family Services,Books-CDs-Audio-Video,AMAZON UK MARKETPLACE,25/08/2016,9255,4.80
Children's Family Services,Books-CDs-Audio-Video,AMAZON UK MARKETPLACE,29/08/2016,9289,5.77
Children's Family Services,Books-CDs-Audio-Video,AMAZON UK RETAIL AMAZO,07/11/2016,10131,22.15
Children's Family Services,Books-CDs-Audio-Video,AMAZON UK RETAIL AMAZO,08/02/2017,11328,7.19
Children's Family Services,Books-CDs-Audio-Video,AMAZON UK RETAIL AMAZO,26/08/2016,9269,10.98
Children's Family Services,Books-CDs-Audio-Video,AMAZONPRIME MEMBERSHIP,04/08/2016,9006,-76.24
Children's Family Services,Books-CDs-Audio-Video,AMAZONPRIME MEMBERSHIP,27/06/2016,8527,74.07
Children's Family Services,Books-CDs-Audio-Video,ARGOS LTD,19/08/2016,9157,43.98
Children's Family Services,Books-CDs-Audio-Video,ASDA SUPERSTORE,22/07/2016,8864,7.00
Children's Family Services,Books-CDs-Audio-Video,EASTMIDLANDSTRAINS,28/09/2016,9641,36.00
Children's Family Services,Books-CDs-Audio-Video,LUL TICKET MACHINE,20/07/2016,8820,5.00
Children's Family Services,Books-CDs-Audio-Video,OYSTER AUTOTOPUP,14/11/2016,10232,20.00
Children's Family Services,Books-CDs-Audio-Video,OYSTER AUTOTOPUP,22/03/2016,7550,20.00
Children's Family Services,Books-CDs-Audio-Video,OYSTER AUTOTOPUP,28/11/2016,10399,20.00
Children's Family Services,Books-CDs-Audio-Video,OYSTER BUS AUTOTOP,09/09/2016,9396,20.00
Children's Family Services,Books-CDs-Audio-Video,PARTRIDGE & PRINT,07/02/2017,11324,93.00
Children's Family Services,Books-CDs-Audio-Video,PARTRIDGE & PRINT,16/06/2016,8393,141.30
Children's Family Services,Books-CDs-Audio-Video,PARTRIDGE & PRINT,20/03/2017,11690,192.00
Children's Family Services,Books-CDs-Audio-Video,PARTRIDGE & PRINT,27/01/2017,10840,192.00
Children's Family Services,Books-CDs-Audio-Video,THE BOOK PEOPLE,17/01/2017,11220,123.71
Children's Family Services,Books-CDs-Audio-Video,THE CHILTERN RLYWY,18/01/2017,10978,11.00
Children's Family Services,Books-CDs-Audio-Video,TRIPLE P INTERNATIONAL,04/03/2016,7327,850.60
Children's Family Services,Books-CDs-Audio-Video,ZAHRA NEWSAGENT,15/11/2016,10253,24.50
Children's Family Services,Building Repairs & Maintenance,ALLSOP & FRANCIS,07/06/2016,8296,302.86
Children's Family Services,Building Repairs & Maintenance,ALLSOP & FRANCIS,29/08/2016,9279,202.52
Children's Family Services,Building Repairs & Maintenance,AMAZON EU,04/11/2016,10117,4.47
Children's Family Services,Building Repairs & Maintenance,AMAZON EU,21/09/2016,9533,49.98
Children's Family Services,Building Repairs & Maintenance,AMAZON UK MARKETPLACE,04/07/2016,8624,7.41
Children's Family Services,Building Repairs & Maintenance,AMAZON UK MARKETPLACE,04/11/2016,10115,3.91
Children's Family Services,Building Repairs & Maintenance,AMAZON UK MARKETPLACE,10/10/2016,9758,80.28
Children's Family Services,Building Repairs & Maintenance,AMAZON UK MARKETPLACE,17/05/2016,8079,12.09
Children's Family Services,Building Repairs & Maintenance,AMAZON UK MARKETPLACE,18/05/2016,8098,22.98
Children's Family Services,Building Repairs & Maintenance,AMAZON UK MARKETPLACE,25/05/2016,8169,19.84
Children's Family Services,Building Repairs & Maintenance,AMAZON UK MARKETPLACE,27/09/2016,9613,47.90
Children's Family Services,Building Repairs & Maintenance,AMAZON UK RETAIL AMAZO,21/09/2016,9536,16.66
Children's Family Services,Building Repairs & Maintenance,ARGOS NEW STHGATE,27/09/2016,9616,18.98
Children's Family Services,Building Repairs & Maintenance,ASDA SUPERSTORE,14/03/2016,7420,5.83
Children's Family Services,Building Repairs & Maintenance,B & Q 1066,06/06/2016,8277,4.45
Children's Family Services,Building Repairs & Maintenance,B & Q 1067,22/03/2017,11722,35.00
Children's Family Services,Building Repairs & Maintenance,B & Q 1162,11/07/2016,8693,123.33
Children's Family Services,Building Repairs & Maintenance,B AND Q 1067,13/05/2016,8051,51.09
Children's Family Services,Building Repairs & Maintenance,B AND Q 1072,15/04/2016,7781,89.17
Children's Family Services,Building Repairs & Maintenance,BARNET LOCK CENTRE LTD,11/01/2017,10899,104.01
Children's Family Services,Building Repairs & Maintenance,BARNET LOCK CENTRE LTD,12/09/2016,9407,170.02
Children's Family Services,Building Repairs & Maintenance,BARTLETTS KEY SERVICES,08/09/2016,9371,179.96
Children's Family Services,Building Repairs & Maintenance,BARTLETTS KEY SERVICES,18/07/2016,8772,65.00
Children's Family Services,Building Repairs & Maintenance,BARTLETTS KEY SERVICES,18/07/2016,8773,97.46
Children's Family Services,Building Repairs & Maintenance,BARTLETTS KEY SERVICES,21/03/2017,11901,39.75
Children's Family Services,Building Repairs & Maintenance,BUILDER DEPOT LTD,11/08/2016,9073,63.76
Children's Family Services,Building Repairs & Maintenance,BUILDER DEPOT LTD,19/09/2016,9488,11.76
Children's Family Services,Building Repairs & Maintenance,BUILDER DEPOT LTD,19/09/2016,9489,25.55
Children's Family Services,Building Repairs & Maintenance,BUILDER DEPOT LTD,24/01/2017,10870,5.28
Children's Family Services,Building Repairs & Maintenance,BUILDER DEPOT LTD,24/01/2017,10871,3.54
Children's Family Services,Building Repairs & Maintenance,BUILDER DEPOT LTD,26/10/2016,9973,65.94
Children's Family Services,Building Repairs & Maintenance,BUILDER DEPOT N11,09/09/2016,9390,35.37
Children's Family Services,Building Repairs & Maintenance,BUILDER DEPOT N11,10/01/2017,10863,32.45
Children's Family Services,Building Repairs & Maintenance,BUILDER DEPOT N11,11/01/2017,10864,39.54
Children's Family Services,Building Repairs & Maintenance,BUILDER DEPOT N11,15/08/2016,9095,34.60
Children's Family Services,Building Repairs & Maintenance,BUILDER DEPOT N11,16/12/2016,10656,4.86
Children's Family Services,Building Repairs & Maintenance,BUILDER DEPOT N11,18/04/2016,7784,36.28
Children's Family Services,Building Repairs & Maintenance,BUILDER DEPOT N11,21/07/2016,8837,31.87
Children's Family Services,Building Repairs & Maintenance,BUILDER DEPOT N11,24/06/2016,8506,76.65
Children's Family Services,Building Repairs & Maintenance,BUILDER DEPOT N11,27/02/2017,11577,23.64
Children's Family Services,Building Repairs & Maintenance,BUILDER DEPOT N11,27/09/2016,9615,5.50
Children's Family Services,Building Repairs & Maintenance,BUILDER DEPOT N11,28/03/2017,11724,10.84
Children's Family Services,Building Repairs & Maintenance,BUILDER DEPOT N11,29/08/2016,9274,9.59
Children's Family Services,Building Repairs & Maintenance,CARPETRIGHT,29/08/2016,9276,133.07
Children's Family Services,Building Repairs & Maintenance,COOPERS OF BARNET,06/03/2017,11716,11.98
Children's Family Services,Building Repairs & Maintenance,COOPERS OF BARNET,22/02/2017,11524,11.98
Children's Family Services,Building Repairs & Maintenance,D R PEEL KITCHENS AND,03/02/2017,10876,36.00
Children's Family Services,Building Repairs & Maintenance,FINCHLEY GLASS LTD,23/01/2017,10869,25.00
Children's Family Services,Building Repairs & Maintenance,HANDY,30/01/2017,11243,108.00
Children's Family Services,Building Repairs & Maintenance,HOMEBASE LTD 016,17/03/2016,7491,152.46
Children's Family Services,Building Repairs & Maintenance,HOMEBASE LTD 024,04/03/2016,7326,8.52
Children's Family Services,Building Repairs & Maintenance,HOMEBASE LTD 024,04/05/2016,7972,30.75
Children's Family Services,Building Repairs & Maintenance,HOMEBASE LTD 024,04/07/2016,8614,64.88
Children's Family Services,Building Repairs & Maintenance,HOMEBASE LTD 024,05/07/2016,8631,27.49
Children's Family Services,Building Repairs & Maintenance,HOMEBASE LTD 024,06/02/2017,11294,73.94
Children's Family Services,Building Repairs & Maintenance,HOMEBASE LTD 024,07/02/2017,11329,75.64
Children's Family Services,Building Repairs & Maintenance,HOMEBASE LTD 024,10/02/2017,11379,49.08
Children's Family Services,Building Repairs & Maintenance,HOMEBASE LTD 024,12/05/2016,8038,49.06
Children's Family Services,Building Repairs & Maintenance,HOMEBASE LTD 024,13/01/2017,10865,63.79
Children's Family Services,Building Repairs & Maintenance,HOMEBASE LTD 024,16/01/2017,10866,9.70
Children's Family Services,Building Repairs & Maintenance,HOMEBASE LTD 024,16/01/2017,10867,27.55
Children's Family Services,Building Repairs & Maintenance,HOMEBASE LTD 024,25/01/2017,10872,13.50
Children's Family Services,Building Repairs & Maintenance,HOMEBASE LTD 024,26/07/2016,8913,36.27
Children's Family Services,Building Repairs & Maintenance,HOMEBASE LTD 024,27/02/2017,11576,83.52
Children's Family Services,Building Repairs & Maintenance,HOMEBASE LTD 024,30/01/2017,10873,181.08
Children's Family Services,Building Repairs & Maintenance,RONA SEWING MACHIN,02/11/2016,10081,8.23
Children's Family Services,Building Repairs & Maintenance,SAINSBURYS 0515,21/04/2016,7853,12.50
Children's Family Services,Building Repairs & Maintenance,SAINSBURYS 0515,22/04/2016,7869,-9.33
Children's Family Services,Building Repairs & Maintenance,SAINSBURYS SACAT 0515,18/04/2016,7799,10.00
Children's Family Services,Building Repairs & Maintenance,SCREWFIX,13/06/2016,8345,13.33
Children's Family Services,Building Repairs & Maintenance,SCREWFIX,13/06/2016,8346,48.23
Children's Family Services,Building Repairs & Maintenance,SCREWFIX DIRECT,14/11/2016,10233,23.46
Children's Family Services,Building Repairs & Maintenance,SECOM PLC,25/10/2016,9961,200.62
Children's Family Services,Building Repairs & Maintenance,TESCO STORE 2296,08/07/2016,8682,13.30
Children's Family Services,Building Repairs & Maintenance,THOMPSONS OF CREWS,13/05/2016,8054,175.00
Children's Family Services,Building Repairs & Maintenance,THOMPSONS OF CREWS,19/05/2016,8122,130.00
Children's Family Services,Building Repairs & Maintenance,TOPPS TILES,20/01/2017,10868,23.92
Children's Family Services,Building Repairs & Maintenance,TRAVIS PERKINS,25/05/2016,8177,52.93
Children's Family Services,Building Repairs & Maintenance,TVLICENSING.CO.UK,21/09/2016,9531,145.50
Children's Family Services,Building Repairs & Maintenance,WICKES,02/09/2016,9319,42.36
Children's Family Services,Building Repairs & Maintenance,WICKES,06/09/2016,9346,42.91
Children's Family Services,Building Repairs & Maintenance,WICKES,07/12/2016,10541,23.31
Children's Family Services,Building Repairs & Maintenance,WICKES,08/04/2016,7712,3.32
Children's Family Services,Building Repairs & Maintenance,WICKES,09/06/2016,8321,44.66
Children's Family Services,Building Repairs & Maintenance,WICKES,14/04/2016,7767,120.77
Children's Family Services,Building Repairs & Maintenance,WICKES,15/07/2016,8751,35.88
Children's Family Services,Building Repairs & Maintenance,WICKES,17/08/2016,9128,27.35
Children's Family Services,Building Repairs & Maintenance,WICKES,26/07/2016,8915,25.48
Children's Family Services,Building Repairs & Maintenance,WICKES,31/10/2016,10041,17.43
Children's Family Services,Building Repairs & Maintenance,WICKES BUILDING,25/06/2015,4435,94.14
Children's Family Services,Building Repairs & Maintenance,WINTERS HAULAGE,26/05/2016,8184,242.50
Children's Family Services,Building Repairs & Maintenance,WWW.APPLIANCECITY.CO.U,23/09/2016,9576,493.99
Children's Family Services,Building Repairs & Maintenance,WWW.DOORDEALS.CO.UK,31/10/2016,10039,398.90
Children's Family Services,Building Repairs & Maintenance,WWW.SAFELINCS.CO.UK,08/12/2016,10551,48.48
Children's Family Services,Building Repairs & Maintenance,WWW.SAFELINCS.CO.UK,27/10/2016,9993,209.30
Children's Family Services,Cleaning and domestic material,AMAZON EU,04/11/2016,10116,8.33
Children's Family Services,Cleaning and domestic material,AMAZON EU,10/10/2016,9777,41.50
Children's Family Services,Cleaning and domestic material,AMAZON EU,10/10/2016,9778,50.56
Children's Family Services,Cleaning and domestic material,AMAZON EU,12/10/2016,9809,25.28
Children's Family Services,Cleaning and domestic material,AMAZON EU,23/09/2016,9567,15.67
Children's Family Services,Cleaning and domestic material,AMAZON EU,23/12/2016,10788,27.90
Children's Family Services,Cleaning and domestic material,AMAZON EU,25/05/2016,8168,30.56
Children's Family Services,Cleaning and domestic material,AMAZON UK MARKETPLACE,02/05/2016,7955,36.45
Children's Family Services,Cleaning and domestic material,AMAZON UK MARKETPLACE,07/03/2017,11829,29.18
Children's Family Services,Cleaning and domestic material,AMAZON UK MARKETPLACE,07/06/2016,8294,56.91
Children's Family Services,Cleaning and domestic material,AMAZON UK MARKETPLACE,08/03/2017,11831,33.98
Children's Family Services,Cleaning and domestic material,AMAZON UK MARKETPLACE,11/10/2016,9792,31.96
Children's Family Services,Cleaning and domestic material,AMAZON UK MARKETPLACE,12/12/2016,10581,13.33
Children's Family Services,Cleaning and domestic material,AMAZON UK MARKETPLACE,17/05/2016,8078,5.50
Children's Family Services,Cleaning and domestic material,AMAZON UK MARKETPLACE,19/07/2016,8790,65.82
Children's Family Services,Cleaning and domestic material,AMAZON UK MARKETPLACE,27/03/2017,11846,31.96
Children's Family Services,Cleaning and domestic material,AMAZON UK RETAIL AMAZO,13/09/2016,9437,26.84
Children's Family Services,Cleaning and domestic material,AMAZON UK RETAIL AMAZO,13/09/2016,9438,26.84
Children's Family Services,Cleaning and domestic material,AMAZON UK RETAIL AMAZO,21/09/2016,9534,30.83
Children's Family Services,Cleaning and domestic material,AMAZON UK RETAIL AMAZO,21/09/2016,9535,30.83
Children's Family Services,Cleaning and domestic material,ASDA HOME SHOPPING,01/02/2017,10917,5.00
Children's Family Services,Cleaning and domestic material,ASDA HOME SHOPPING,01/06/2016,8215,14.97
Children's Family Services,Cleaning and domestic material,ASDA HOME SHOPPING,02/01/2017,10818,7.40
Children's Family Services,Cleaning and domestic material,ASDA HOME SHOPPING,02/08/2016,8988,10.05
Children's Family Services,Cleaning and domestic material,ASDA HOME SHOPPING,02/12/2016,10483,7.75
Children's Family Services,Cleaning and domestic material,ASDA HOME SHOPPING,04/05/2016,7975,15.08
Children's Family Services,Cleaning and domestic material,ASDA HOME SHOPPING,04/10/2016,9693,2.00
Children's Family Services,Cleaning and domestic material,ASDA HOME SHOPPING,05/04/2016,7693,22.97
Children's Family Services,Cleaning and domestic material,ASDA HOME SHOPPING,05/07/2016,8634,12.25
Children's Family Services,Cleaning and domestic material,ASDA HOME SHOPPING,06/06/2016,8264,2.00
Children's Family Services,Cleaning and domestic material,ASDA HOME SHOPPING,07/06/2016,8291,11.78
Children's Family Services,Cleaning and domestic material,ASDA HOME SHOPPING,08/02/2017,11351,39.20
Children's Family Services,Cleaning and domestic material,ASDA HOME SHOPPING,08/03/2016,7369,7.67
Children's Family Services,Cleaning and domestic material,ASDA HOME SHOPPING,08/08/2016,9027,9.00
Children's Family Services,Cleaning and domestic material,ASDA HOME SHOPPING,08/11/2016,10156,15.30
Children's Family Services,Cleaning and domestic material,ASDA HOME SHOPPING,08/12/2016,10554,6.67
Children's Family Services,Cleaning and domestic material,ASDA HOME SHOPPING,09/08/2016,9049,9.15
Children's Family Services,Cleaning and domestic material,ASDA HOME SHOPPING,10/01/2017,10895,12.38
Children's Family Services,Cleaning and domestic material,ASDA HOME SHOPPING,10/05/2016,8017,14.17
Children's Family Services,Cleaning and domestic material,ASDA HOME SHOPPING,10/05/2016,8018,-5.14
Children's Family Services,Cleaning and domestic material,ASDA HOME SHOPPING,12/04/2016,7736,7.48
Children's Family Services,Cleaning and domestic material,ASDA HOME SHOPPING,12/07/2016,8716,39.65
Children's Family Services,Cleaning and domestic material,ASDA HOME SHOPPING,12/08/2016,9086,14.25
Children's Family Services,Cleaning and domestic material,ASDA HOME SHOPPING,13/09/2016,9432,24.90
Children's Family Services,Cleaning and domestic material,ASDA HOME SHOPPING,14/06/2016,8367,3.80
Children's Family Services,Cleaning and domestic material,ASDA HOME SHOPPING,15/03/2016,7453,7.20
Children's Family Services,Cleaning and domestic material,ASDA HOME SHOPPING,16/05/2016,8058,4.65
Children's Family Services,Cleaning and domestic material,ASDA HOME SHOPPING,16/05/2016,8059,-0.65
Children's Family Services,Cleaning and domestic material,ASDA HOME SHOPPING,16/08/2016,9111,15.86
Children's Family Services,Cleaning and domestic material,ASDA HOME SHOPPING,16/08/2016,9113,-2.00
Children's Family Services,Cleaning and domestic material,ASDA HOME SHOPPING,17/05/2016,8082,12.62
Children's Family Services,Cleaning and domestic material,ASDA HOME SHOPPING,17/05/2016,8083,-1.32
Children's Family Services,Cleaning and domestic material,ASDA HOME SHOPPING,18/01/2017,10902,5.50
Children's Family Services,Cleaning and domestic material,ASDA HOME SHOPPING,18/10/2016,9870,13.49
Children's Family Services,Cleaning and domestic material,ASDA HOME SHOPPING,18/10/2016,9871,-3.75
Children's Family Services,Cleaning and domestic material,ASDA HOME SHOPPING,19/07/2016,8788,13.60
Children's Family Services,Cleaning and domestic material,ASDA HOME SHOPPING,20/09/2016,9518,12.70
Children's Family Services,Cleaning and domestic material,ASDA HOME SHOPPING,21/06/2016,8443,8.03
Children's Family Services,Cleaning and domestic material,ASDA HOME SHOPPING,21/11/2016,10313,15.12
Children's Family Services,Cleaning and domestic material,ASDA HOME SHOPPING,21/11/2016,10314,-7.12
Children's Family Services,Cleaning and domestic material,ASDA HOME SHOPPING,22/03/2016,7544,12.00
Children's Family Services,Cleaning and domestic material,ASDA HOME SHOPPING,22/04/2016,7857,15.00
Children's Family Services,Cleaning and domestic material,ASDA HOME SHOPPING,23/05/2016,8135,16.98
Children's Family Services,Cleaning and domestic material,ASDA HOME SHOPPING,23/08/2016,9191,10.52
Children's Family Services,Cleaning and domestic material,ASDA HOME SHOPPING,23/08/2016,9192,0.01
Children's Family Services,Cleaning and domestic material,ASDA HOME SHOPPING,24/05/2016,8159,12.98
Children's Family Services,Cleaning and domestic material,ASDA HOME SHOPPING,24/05/2016,8160,0.22
Children's Family Services,Cleaning and domestic material,ASDA HOME SHOPPING,24/10/2016,9927,9.70
Children's Family Services,Cleaning and domestic material,ASDA HOME SHOPPING,25/01/2017,10907,7.00
Children's Family Services,Cleaning and domestic material,ASDA HOME SHOPPING,25/07/2016,8870,4.50
Children's Family Services,Cleaning and domestic material,ASDA HOME SHOPPING,25/10/2016,9953,16.69
Children's Family Services,Cleaning and domestic material,ASDA HOME SHOPPING,25/10/2016,9954,-3.97
Children's Family Services,Cleaning and domestic material,ASDA HOME SHOPPING,25/11/2016,10378,5.48
Children's Family Services,Cleaning and domestic material,ASDA HOME SHOPPING,25/11/2016,10379,-3.48
Children's Family Services,Cleaning and domestic material,ASDA HOME SHOPPING,26/04/2016,7898,9.34
Children's Family Services,Cleaning and domestic material,ASDA HOME SHOPPING,26/07/2016,8918,24.86
Children's Family Services,Cleaning and domestic material,ASDA HOME SHOPPING,26/09/2016,9587,35.20
Children's Family Services,Cleaning and domestic material,ASDA HOME SHOPPING,28/06/2016,8540,19.93
Children's Family Services,Cleaning and domestic material,ASDA HOME SHOPPING,31/08/2016,9304,11.00
Children's Family Services,Cleaning and domestic material,ASDA SUPERSTORE,01/11/2016,10064,4.00
Children's Family Services,Cleaning and domestic material,ASDA SUPERSTORE,02/05/2016,7949,8.00
Children's Family Services,Cleaning and domestic material,ASDA SUPERSTORE,03/06/2016,8249,5.34
Children's Family Services,Cleaning and domestic material,ASDA SUPERSTORE,04/05/2016,7974,4.00
Children's Family Services,Cleaning and domestic material,ASDA SUPERSTORE,06/10/2016,9722,30.05
Children's Family Services,Cleaning and domestic material,ASDA SUPERSTORE,08/04/2016,7713,3.10
Children's Family Services,Cleaning and domestic material,ASDA SUPERSTORE,08/12/2016,10559,26.00
Children's Family Services,Cleaning and domestic material,ASDA SUPERSTORE,10/10/2016,9748,8.98
Children's Family Services,Cleaning and domestic material,ASDA SUPERSTORE,11/04/2016,7725,32.98
Children's Family Services,Cleaning and domestic material,ASDA SUPERSTORE,13/03/2017,11762,14.50
Children's Family Services,Cleaning and domestic material,ASDA SUPERSTORE,14/03/2016,7430,16.90
Children's Family Services,Cleaning and domestic material,ASDA SUPERSTORE,15/04/2016,7782,24.21
Children's Family Services,Cleaning and domestic material,ASDA SUPERSTORE,15/09/2016,9471,5.00
Children's Family Services,Cleaning and domestic material,ASDA SUPERSTORE,16/05/2016,8076,16.00
Children's Family Services,Cleaning and domestic material,ASDA SUPERSTORE,19/08/2016,9155,35.80
Children's Family Services,Cleaning and domestic material,ASDA SUPERSTORE,21/03/2016,7514,10.00
Children's Family Services,Cleaning and domestic material,ASDA SUPERSTORE,22/02/2017,11531,8.30
Children's Family Services,Cleaning and domestic material,ASDA SUPERSTORE,22/12/2016,10759,7.50
Children's Family Services,Cleaning and domestic material,ASDA SUPERSTORE,23/09/2016,9565,3.00
Children's Family Services,Cleaning and domestic material,ASDA SUPERSTORE,28/09/2016,9645,10.50
Children's Family Services,Cleaning and domestic material,COOPERS OF BARNET,08/03/2016,7368,12.97
Children's Family Services,Cleaning and domestic material,COOPERS OF BARNET,26/09/2016,9586,11.97
Children's Family Services,Cleaning and domestic material,HCC-CASHIERS,13/12/2016,10609,175.85
Children's Family Services,Cleaning and domestic material,HCC-CASHIERS,19/10/2016,9880,230.70
Children's Family Services,Cleaning and domestic material,HCC-CASHIERS,26/01/2017,10848,187.15
Children's Family Services,Cleaning and domestic material,HERTFORDSHRE COUNTY,11/07/2016,8695,338.27
Children's Family Services,Cleaning and domestic material,HERTFORDSHRE COUNTY,16/03/2017,11697,80.01
Children's Family Services,Cleaning and domestic material,HERTFORDSHRE COUNTY,16/08/2016,9108,229.65
Children's Family Services,Cleaning and domestic material,HOMEBASE LTD  588,04/10/2016,9696,105.71
Children's Family Services,Cleaning and domestic material,HOMEBASE LTD  588,07/10/2016,9738,20.90
Children's Family Services,Cleaning and domestic material,HOMEBASE LTD  588,22/11/2016,10336,64.98
Children's Family Services,Cleaning and domestic material,HOMEBASE LTD  588,29/11/2016,10420,24.02
Children's Family Services,Cleaning and domestic material,HOMEBASE LTD 024,20/03/2017,11718,54.11
Children's Family Services,Cleaning and domestic material,ICELAND,16/08/2016,9123,6.40
Children's Family Services,Cleaning and domestic material,ICELAND,27/04/2016,7913,6.67
Children's Family Services,Cleaning and domestic material,ICELAND,28/11/2016,10409,6.40
Children's Family Services,Cleaning and domestic material,MAKRO SELF SERVICE,06/02/2017,11299,71.55
Children's Family Services,Cleaning and domestic material,MAKRO SELF SERVICE,13/03/2017,11761,111.00
Children's Family Services,Cleaning and domestic material,MAKRO SELF SERVICE ENF,06/05/2016,7990,90.01
Children's Family Services,Cleaning and domestic material,MAKRO SELF SERVICE ENF,13/06/2016,8348,113.16
Children's Family Services,Cleaning and domestic material,MAKRO SELF SERVICE ENF,19/12/2016,10675,55.26
Children's Family Services,Cleaning and domestic material,MAKRO SELF SERVICE ENF,23/09/2016,9564,62.51
Children's Family Services,Cleaning and domestic material,MAKRO SELF SERVICE ENF,24/08/2016,9230,115.37
Children's Family Services,Cleaning and domestic material,PABULUM CATERING,27/02/2017,11601,10.00
Children's Family Services,Cleaning and domestic material,PRUDENTIAL WINDOW CLEA,17/05/2016,8084,180.00
Children's Family Services,Cleaning and domestic material,SAINSBURYS 0124,07/03/2016,7346,3.00
Children's Family Services,Cleaning and domestic material,SAINSBURYS 0124,13/01/2017,10900,6.65
Children's Family Services,Cleaning and domestic material,SAINSBURYS 0124,18/11/2016,10287,2.50
Children's Family Services,Cleaning and domestic material,SAINSBURYS 0124,19/12/2016,10676,0.60
Children's Family Services,Cleaning and domestic material,SAINSBURYS 0420,22/03/2016,7545,5.50
Children's Family Services,Cleaning and domestic material,SAINSBURYS 0513,01/06/2016,8223,3.60
Children's Family Services,Cleaning and domestic material,SAINSBURYS 0513,01/11/2016,10075,9.00
Children's Family Services,Cleaning and domestic material,SAINSBURYS 0513,02/05/2016,7956,23.50
Children's Family Services,Cleaning and domestic material,SAINSBURYS 0513,03/04/2017,11850,38.90
Children's Family Services,Cleaning and domestic material,SAINSBURYS 0513,03/10/2016,9679,50.65
Children's Family Services,Cleaning and domestic material,SAINSBURYS 0513,04/07/2016,8619,55.95
Children's Family Services,Cleaning and domestic material,SAINSBURYS 0513,04/10/2016,9702,23.50
Children's Family Services,Cleaning and domestic material,SAINSBURYS 0513,05/07/2016,8637,17.75
Children's Family Services,Cleaning and domestic material,SAINSBURYS 0513,05/09/2016,9334,38.00
Children's Family Services,Cleaning and domestic material,SAINSBURYS 0513,05/12/2016,10506,52.35
Children's Family Services,Cleaning and domestic material,SAINSBURYS 0513,06/02/2017,11302,29.30
Children's Family Services,Cleaning and domestic material,SAINSBURYS 0513,06/03/2017,12009,36.60
Children's Family Services,Cleaning and domestic material,SAINSBURYS 0513,06/06/2016,8269,3.40
Children's Family Services,Cleaning and domestic material,SAINSBURYS 0513,06/06/2016,8270,41.04
Children's Family Services,Cleaning and domestic material,SAINSBURYS 0513,07/03/2017,12011,7.55
Children's Family Services,Cleaning and domestic material,SAINSBURYS 0513,07/11/2016,10146,45.98
Children's Family Services,Cleaning and domestic material,SAINSBURYS 0513,08/03/2016,7376,21.70
Children's Family Services,Cleaning and domestic material,SAINSBURYS 0513,08/06/2016,8316,39.30
Children's Family Services,Cleaning and domestic material,SAINSBURYS 0513,08/08/2016,9035,30.33
Children's Family Services,Cleaning and domestic material,SAINSBURYS 0513,10/05/2016,8020,19.90
Children's Family Services,Cleaning and domestic material,SAINSBURYS 0513,10/10/2016,9751,19.20
Children's Family Services,Cleaning and domestic material,SAINSBURYS 0513,11/07/2016,8701,36.70
Children's Family Services,Cleaning and domestic material,SAINSBURYS 0513,11/10/2016,9798,28.15
Children's Family Services,Cleaning and domestic material,SAINSBURYS 0513,12/09/2016,9415,42.21
Children's Family Services,Cleaning and domestic material,SAINSBURYS 0513,12/12/2016,10599,76.41
Children's Family Services,Cleaning and domestic material,SAINSBURYS 0513,13/02/2017,11397,83.95
Children's Family Services,Cleaning and domestic material,SAINSBURYS 0513,13/03/2017,12014,30.89
Children's Family Services,Cleaning and domestic material,SAINSBURYS 0513,13/06/2016,8351,30.50
Children's Family Services,Cleaning and domestic material,SAINSBURYS 0513,13/07/2016,8730,53.10
Children's Family Services,Cleaning and domestic material,SAINSBURYS 0513,13/12/2016,10620,21.90
Children's Family Services,Cleaning and domestic material,SAINSBURYS 0513,14/02/2017,11435,11.00
Children's Family Services,Cleaning and domestic material,SAINSBURYS 0513,14/03/2017,12016,30.55
Children's Family Services,Cleaning and domestic material,SAINSBURYS 0513,14/04/2016,7772,2.50
Children's Family Services,Cleaning and domestic material,SAINSBURYS 0513,14/06/2016,8376,39.18
Children's Family Services,Cleaning and domestic material,SAINSBURYS 0513,14/11/2016,10238,20.45
Children's Family Services,Cleaning and domestic material,SAINSBURYS 0513,15/11/2016,10259,34.55
Children's Family Services,Cleaning and domestic material,SAINSBURYS 0513,16/05/2016,8065,32.81
Children's Family Services,Cleaning and domestic material,SAINSBURYS 0513,17/05/2016,8087,17.40
Children's Family Services,Cleaning and domestic material,SAINSBURYS 0513,17/10/2016,9847,29.15
Children's Family Services,Cleaning and domestic material,SAINSBURYS 0513,18/07/2016,8770,33.80
Children's Family Services,Cleaning and domestic material,SAINSBURYS 0513,18/10/2016,9875,31.40
Children's Family Services,Cleaning and domestic material,SAINSBURYS 0513,19/04/2016,7820,25.60
Children's Family Services,Cleaning and domestic material,SAINSBURYS 0513,20/03/2017,11838,35.20
Children's Family Services,Cleaning and domestic material,SAINSBURYS 0513,20/07/2016,8824,42.75
Children's Family Services,Cleaning and domestic material,SAINSBURYS 0513,20/12/2016,10712,57.95
Children's Family Services,Cleaning and domestic material,SAINSBURYS 0513,21/02/2017,11517,28.20
Children's Family Services,Cleaning and domestic material,SAINSBURYS 0513,21/03/2016,7534,18.10
Children's Family Services,Cleaning and domestic material,SAINSBURYS 0513,22/06/2016,8481,27.86
Children's Family Services,Cleaning and domestic material,SAINSBURYS 0513,22/08/2016,9171,27.55
Children's Family Services,Cleaning and domestic material,SAINSBURYS 0513,23/05/2016,8141,32.95
Children's Family Services,Cleaning and domestic material,SAINSBURYS 0513,23/11/2016,10361,37.30
Children's Family Services,Cleaning and domestic material,SAINSBURYS 0513,24/10/2016,9934,30.40
Children's Family Services,Cleaning and domestic material,SAINSBURYS 0513,25/04/2016,7879,34.85
Children's Family Services,Cleaning and domestic material,SAINSBURYS 0513,25/07/2016,8874,52.20
Children's Family Services,Cleaning and domestic material,SAINSBURYS 0513,25/10/2016,9962,38.19
Children's Family Services,Cleaning and domestic material,SAINSBURYS 0513,26/07/2016,8919,29.35
Children's Family Services,Cleaning and domestic material,SAINSBURYS 0513,26/09/2016,9598,74.69
Children's Family Services,Cleaning and domestic material,SAINSBURYS 0513,27/02/2017,11593,25.90
Children's Family Services,Cleaning and domestic material,SAINSBURYS 0513,27/04/2016,7911,34.00
Children's Family Services,Cleaning and domestic material,SAINSBURYS 0513,27/05/2016,8197,39.85
Children's Family Services,Cleaning and domestic material,SAINSBURYS 0513,28/02/2017,11636,54.44
Children's Family Services,Cleaning and domestic material,SAINSBURYS 0513,28/06/2016,8545,17.25
Children's Family Services,Cleaning and domestic material,SAINSBURYS 0513,28/11/2016,10407,21.45
Children's Family Services,Cleaning and domestic material,SAINSBURYS 0513,29/08/2016,9284,32.40
Children's Family Services,Cleaning and domestic material,SAINSBURYS 0513,29/11/2016,10428,24.25
Children's Family Services,Cleaning and domestic material,SAINSBURYS 0513,30/01/2017,11119,100.85
Children's Family Services,Cleaning and domestic material,SAINSBURYS 0513,31/01/2017,11121,10.00
Children's Family Services,Cleaning and domestic material,SAINSBURYS 0513,31/10/2016,10033,39.75
Children's Family Services,Cleaning and domestic material,SAINSBURYS 0515,06/06/2016,8281,7.50
Children's Family Services,Cleaning and domestic material,SAINSBURYS LOC4572,13/10/2016,9827,3.50
Children's Family Services,Cleaning and domestic material,SAINSBURYS LOC4572,29/08/2016,9273,7.32
Children's Family Services,Cleaning and domestic material,SAINSBURYS SACAT 0513,06/02/2017,11315,12.00
Children's Family Services,Cleaning and domestic material,SAINSBURYS TO YOU 0444,01/11/2016,10068,58.45
Children's Family Services,Cleaning and domestic material,SAINSBURYS TO YOU 0444,02/01/2017,10821,45.20
Children's Family Services,Cleaning and domestic material,SAINSBURYS TO YOU 0444,06/01/2017,10941,25.65
Children's Family Services,Cleaning and domestic material,SAINSBURYS TO YOU 0444,08/02/2017,11353,5.00
Children's Family Services,Cleaning and domestic material,SAINSBURYS TO YOU 0444,11/01/2017,10942,41.59
Children's Family Services,Cleaning and domestic material,SAINSBURYS TO YOU 0444,16/01/2017,10946,14.65
Children's Family Services,Cleaning and domestic material,SAINSBURYS TO YOU 0444,17/01/2017,10947,57.65
Children's Family Services,Cleaning and domestic material,SAINSBURYS TO YOU 0444,19/09/2016,9492,34.45
Children's Family Services,Cleaning and domestic material,SAINSBURYS TO YOU 0444,20/09/2016,9521,14.90
Children's Family Services,Cleaning and domestic material,SAINSBURYS TO YOU 0444,21/11/2016,10316,25.50
Children's Family Services,Cleaning and domestic material,SAINSBURYS TO YOU 0444,26/12/2016,10794,29.85
Children's Family Services,Cleaning and domestic material,SAINSBURYS TO YOU 0444,27/03/2017,11847,7.20
Children's Family Services,Cleaning and domestic material,SAINSBURYS TO YOU 0444,27/09/2016,9620,9.20
Children's Family Services,Cleaning and domestic material,SAINSBURYS TO YOU 0444,28/03/2017,11849,37.35
Children's Family Services,Cleaning and domestic material,SAINSBURYS TO YOU 0567,01/08/2016,8965,25.30
Children's Family Services,Cleaning and domestic material,SAINSBURYS TO YOU 0567,02/08/2016,8990,12.00
Children's Family Services,Cleaning and domestic material,SAINSBURYS TO YOU 0567,03/05/2016,7965,24.90
Children's Family Services,Cleaning and domestic material,SAINSBURYS TO YOU 0567,05/04/2016,7695,25.00
Children's Family Services,Cleaning and domestic material,SAINSBURYS TO YOU 0567,06/09/2016,9350,16.70
Children's Family Services,Cleaning and domestic material,SAINSBURYS TO YOU 0567,09/05/2016,8002,18.00
Children's Family Services,Cleaning and domestic material,SAINSBURYS TO YOU 0567,11/04/2016,7726,10.00
Children's Family Services,Cleaning and domestic material,SAINSBURYS TO YOU 0567,15/08/2016,9101,29.85
Children's Family Services,Cleaning and domestic material,SAINSBURYS TO YOU 0567,16/08/2016,9122,60.58
Children's Family Services,Cleaning and domestic material,SAINSBURYS TO YOU 0567,18/04/2016,7788,16.10
Children's Family Services,Cleaning and domestic material,SAINSBURYS TO YOU 0567,23/08/2016,9196,20.20
Children's Family Services,Cleaning and domestic material,SAINSBURYS TO YOU 0567,27/06/2016,8526,16.90
Children's Family Services,Cleaning and domestic material,SAINSBURYS TO YOU 0567,30/05/2016,8209,5.00
Children's Family Services,Cleaning and domestic material,SAINSBURYS TO YOU 0567,30/08/2016,9299,16.70
Children's Family Services,Cleaning and domestic material,TEMP STORE,24/02/2017,11554,10.00
Children's Family Services,Cleaning and domestic material,TESCO STORE 2131,20/03/2017,11883,1.67
Children's Family Services,Cleaning and domestic material,TESCO STORE 2296,18/08/2016,9136,9.20
Children's Family Services,Cleaning and domestic material,TESCO STORE 2296,20/06/2016,8437,37.50
Children's Family Services,Cleaning and domestic material,TESCO STORE 2296,20/10/2016,9907,11.10
Children's Family Services,Cleaning and domestic material,TESCO STORE 2655,02/12/2016,10492,2.50
Children's Family Services,Cleaning and domestic material,TESCO STORE 3032,27/02/2017,11607,4.00
Children's Family Services,Cleaning and domestic material,TESCO STORES 2479,15/04/2016,7783,0.80
Children's Family Services,Cleaning and domestic material,TESCO STORES 2544,16/05/2016,8072,1.42
Children's Family Services,Cleaning and domestic material,TESCO STORES 5655,01/03/2017,11656,7.98
Children's Family Services,Cleaning and domestic material,TESCO STORES 5655,05/12/2016,10507,4.00
Children's Family Services,Cleaning and domestic material,TESCO STORES 5655,06/02/2017,11304,1.32
Children's Family Services,Cleaning and domestic material,TESCO STORES 5655,10/03/2016,7400,0.68
Children's Family Services,Cleaning and domestic material,TESCO STORES 5655,12/12/2016,10589,0.70
Children's Family Services,Cleaning and domestic material,TESCO STORES 5655,13/10/2016,9818,5.88
Children's Family Services,Cleaning and domestic material,TESCO STORES 5655,14/09/2016,9455,4.00
Children's Family Services,Cleaning and domestic material,TESCO STORES 5655,14/11/2016,10231,1.79
Children's Family Services,Cleaning and domestic material,TESCO STORES 5655,17/03/2017,11863,5.60
Children's Family Services,Cleaning and domestic material,TESCO STORES 5655,19/09/2016,9493,4.00
Children's Family Services,Cleaning and domestic material,TESCO STORES 5655,22/12/2016,10760,1.00
Children's Family Services,Cleaning and domestic material,TESCO STORES 5655,23/11/2016,10356,4.00
Children's Family Services,Cleaning and domestic material,TESCO STORES 5655,26/09/2016,9605,6.43
Children's Family Services,Cleaning and domestic material,TESCO STORES 5655,27/05/2016,8196,0.87
Children's Family Services,Cleaning and domestic material,TESCO STORES 5655,30/11/2016,10439,3.00
Children's Family Services,Cleaning and domestic material,TESCO STORES 6440,01/02/2017,10992,95.23
Children's Family Services,Cleaning and domestic material,TESCO STORES 6440,02/11/2016,10091,77.80
Children's Family Services,Cleaning and domestic material,TESCO STORES 6440,06/03/2017,11757,2.50
Children's Family Services,Cleaning and domestic material,TESCO STORES 6440,13/03/2017,11889,113.60
Children's Family Services,Cleaning and domestic material,TESCO STORES 6440,14/09/2016,9456,119.45
Children's Family Services,Cleaning and domestic material,TESCO STORES 6440,30/11/2016,10440,102.30
Children's Family Services,Cleaning and domestic material,WWW.BUNZLCHS.CO.UK,18/11/2016,10293,151.51
Children's Family Services,Cleaning and domestic material,WWW.CICSLIMITED.CO.UK,22/03/2017,11768,100.94
Children's Family Services,Cleaning and domestic material,WWW.NISBETS.COM,05/10/2016,9713,130.22
Children's Family Services,Cleaning and domestic material,WWW.NISBETS.COM,09/01/2017,10985,45.38
Children's Family Services,Cleaning and domestic material,WWW.NISBETS.COM,10/01/2017,10986,26.60
Children's Family Services,Cleaning and domestic material,WWW.NISBETS.COM,17/06/2016,8413,39.39
Children's Family Services,Cleaning and domestic material,WWW.NISBETS.COM,22/02/2017,11528,136.00
Children's Family Services,Clothing - Protective Clothing,ALEXANDRA WEBSITE,21/11/2016,10328,74.95
Children's Family Services,Clothing - Protective Clothing,ALEXANDRA WEBSITE,24/01/2017,10905,31.16
Children's Family Services,Conference Expenses,WWW.ILXGROUP.COM,23/03/2017,12068,"1,194.00"
Children's Family Services,Conference Expenses,WWW.PMGLTD.CO.UK,05/08/2016,9013,462.00
Children's Family Services,Conference Expenses,WWW.PUBLICPOLICYEXCHAN,23/11/2016,10360,354.00
Children's Family Services,Consumable Catering Supplies,"AMAZON SVCS EUROPE,SAR",04/03/2016,7329,24.81
Children's Family Services,Consumable Catering Supplies,"AMAZON SVCS EUROPE,SAR",07/11/2016,10130,9.98
Children's Family Services,Consumable Catering Supplies,PRESSURECOO,02/02/2017,10852,14.96
Children's Family Services,Consumable Catering Supplies,PRESSURECOO,27/02/2017,11574,14.96
Children's Family Services,Consumable Catering Supplies,PRESSURECOO,27/02/2017,11575,11.22
Children's Family Services,Consumable Catering Supplies,PRESSURECOO,28/03/2017,11703,26.18
Children's Family Services,Electricity,BT PAY BY PHONE,06/04/2016,7702,72.90
Children's Family Services,Electricity,KENT COUNTY SUPPLIES,06/01/2017,11124,527.03
Children's Family Services,Electricity,KENT COUNTY SUPPLIES,06/12/2016,10530,582.07
Children's Family Services,Electricity,KENT COUNTY SUPPLIES,06/12/2016,10531,193.70
Children's Family Services,Electricity,KENT COUNTY SUPPLIES,06/12/2016,10532,490.34
Children's Family Services,Equipment and Materials Purcha,ACCESS EXPEDITIONS,11/07/2016,8696,"1,604.76"
Children's Family Services,Equipment and Materials Purcha,ALEXANDRA WEBSITE,12/01/2017,11165,81.16
Children's Family Services,Equipment and Materials Purcha,AMAZON DIGITAL DWNLDS,03/01/2017,10827,5.24
Children's Family Services,Equipment and Materials Purcha,AMAZON DIGITAL DWNLDS,03/01/2017,10828,4.58
Children's Family Services,Equipment and Materials Purcha,AMAZON EU,01/08/2016,8981,47.19
Children's Family Services,Equipment and Materials Purcha,AMAZON EU,02/08/2016,8985,17.40
Children's Family Services,Equipment and Materials Purcha,AMAZON EU,02/08/2016,8986,17.40
Children's Family Services,Equipment and Materials Purcha,AMAZON EU,09/02/2017,11364,13.38
Children's Family Services,Equipment and Materials Purcha,AMAZON EU,09/02/2017,11368,13.38
Children's Family Services,Equipment and Materials Purcha,AMAZON EU,11/01/2017,11234,11.98
Children's Family Services,Equipment and Materials Purcha,AMAZON EU,11/04/2016,7720,18.36
Children's Family Services,Equipment and Materials Purcha,AMAZON EU,13/06/2016,8342,1.39
Children's Family Services,Equipment and Materials Purcha,AMAZON EU,13/06/2016,8343,1.40
Children's Family Services,Equipment and Materials Purcha,AMAZON EU,16/03/2016,7478,8.35
Children's Family Services,Equipment and Materials Purcha,AMAZON EU,16/03/2016,7479,19.78
Children's Family Services,Equipment and Materials Purcha,AMAZON EU,16/03/2016,7480,7.97
Children's Family Services,Equipment and Materials Purcha,AMAZON EU,18/11/2016,10286,11.66
Children's Family Services,Equipment and Materials Purcha,AMAZON EU,20/09/2016,9517,133.92
Children's Family Services,Equipment and Materials Purcha,AMAZON EU,21/11/2016,10305,243.99
Children's Family Services,Equipment and Materials Purcha,AMAZON EU,22/09/2016,9550,160.00
Children's Family Services,Equipment and Materials Purcha,AMAZON EU,26/05/2016,8185,33.95
Children's Family Services,Equipment and Materials Purcha,AMAZON EU,26/07/2016,8909,9.82
Children's Family Services,Equipment and Materials Purcha,AMAZON EU,27/02/2017,11611,31.30
Children's Family Services,Equipment and Materials Purcha,AMAZON EU,29/07/2016,8950,5.88
Children's Family Services,Equipment and Materials Purcha,AMAZON EU,31/10/2016,10057,40.96
Children's Family Services,Equipment and Materials Purcha,AMAZON PRIME,09/12/2016,10573,-7.99
Children's Family Services,Equipment and Materials Purcha,AMAZON PRIME,28/11/2016,10392,7.99
Children's Family Services,Equipment and Materials Purcha,"AMAZON SVCS EUROPE,SAR",13/04/2016,7760,19.45
Children's Family Services,Equipment and Materials Purcha,"AMAZON SVCS EUROPE,SAR",16/03/2016,7468,3.62
Children's Family Services,Equipment and Materials Purcha,"AMAZON SVCS EUROPE,SAR",18/06/2015,4341,26.67
Children's Family Services,Equipment and Materials Purcha,"AMAZON SVCS EUROPE,SAR",18/06/2015,4343,20.10
Children's Family Services,Equipment and Materials Purcha,"AMAZON SVCS EUROPE,SAR",19/06/2015,4351,17.57
Children's Family Services,Equipment and Materials Purcha,"AMAZON SVCS EUROPE,SAR",19/06/2015,4352,3.32
Children's Family Services,Equipment and Materials Purcha,"AMAZON SVCS EUROPE,SAR",19/06/2015,4354,36.60
Children's Family Services,Equipment and Materials Purcha,"AMAZON SVCS EUROPE,SAR",19/09/2016,9499,13.20
Children's Family Services,Equipment and Materials Purcha,"AMAZON SVCS EUROPE,SAR",20/09/2016,9524,18.76
Children's Family Services,Equipment and Materials Purcha,"AMAZON SVCS EUROPE,SAR",22/08/2016,9184,13.60
Children's Family Services,Equipment and Materials Purcha,AMAZON UK MARKETPLACE,01/07/2016,8607,15.68
Children's Family Services,Equipment and Materials Purcha,AMAZON UK MARKETPLACE,01/08/2016,8959,14.57
Children's Family Services,Equipment and Materials Purcha,AMAZON UK MARKETPLACE,01/08/2016,8982,11.12
Children's Family Services,Equipment and Materials Purcha,AMAZON UK MARKETPLACE,02/03/2017,11255,8.33
Children's Family Services,Equipment and Materials Purcha,AMAZON UK MARKETPLACE,02/03/2017,11263,8.11
Children's Family Services,Equipment and Materials Purcha,AMAZON UK MARKETPLACE,02/03/2017,11264,43.68
Children's Family Services,Equipment and Materials Purcha,AMAZON UK MARKETPLACE,02/03/2017,11266,25.15
Children's Family Services,Equipment and Materials Purcha,AMAZON UK MARKETPLACE,02/03/2017,11278,21.75
Children's Family Services,Equipment and Materials Purcha,AMAZON UK MARKETPLACE,02/09/2016,9320,26.85
Children's Family Services,Equipment and Materials Purcha,AMAZON UK MARKETPLACE,02/12/2016,10497,8.99
Children's Family Services,Equipment and Materials Purcha,AMAZON UK MARKETPLACE,02/12/2016,10498,6.59
Children's Family Services,Equipment and Materials Purcha,AMAZON UK MARKETPLACE,03/02/2017,10940,13.49
Children's Family Services,Equipment and Materials Purcha,AMAZON UK MARKETPLACE,03/02/2017,11156,2.22
Children's Family Services,Equipment and Materials Purcha,AMAZON UK MARKETPLACE,03/03/2017,11289,18.79
Children's Family Services,Equipment and Materials Purcha,AMAZON UK MARKETPLACE,03/03/2017,11290,160.93
Children's Family Services,Equipment and Materials Purcha,AMAZON UK MARKETPLACE,03/06/2016,8258,14.99
Children's Family Services,Equipment and Materials Purcha,AMAZON UK MARKETPLACE,03/11/2016,10102,4.92
Children's Family Services,Equipment and Materials Purcha,AMAZON UK MARKETPLACE,04/04/2016,7669,9.13
Children's Family Services,Equipment and Materials Purcha,AMAZON UK MARKETPLACE,04/04/2016,7670,5.88
Children's Family Services,Equipment and Materials Purcha,AMAZON UK MARKETPLACE,04/04/2016,7671,9.98
Children's Family Services,Equipment and Materials Purcha,AMAZON UK MARKETPLACE,04/07/2016,8622,17.18
Children's Family Services,Equipment and Materials Purcha,AMAZON UK MARKETPLACE,04/11/2016,10126,2.61
Children's Family Services,Equipment and Materials Purcha,AMAZON UK MARKETPLACE,05/04/2016,7691,7.72
Children's Family Services,Equipment and Materials Purcha,AMAZON UK MARKETPLACE,05/12/2016,10519,2.00
Children's Family Services,Equipment and Materials Purcha,AMAZON UK MARKETPLACE,06/03/2017,12108,12.22
Children's Family Services,Equipment and Materials Purcha,AMAZON UK MARKETPLACE,06/09/2016,9345,10.98
Children's Family Services,Equipment and Materials Purcha,AMAZON UK MARKETPLACE,06/12/2016,10534,28.33
Children's Family Services,Equipment and Materials Purcha,AMAZON UK MARKETPLACE,06/12/2016,10535,3.68
Children's Family Services,Equipment and Materials Purcha,AMAZON UK MARKETPLACE,06/12/2016,10536,26.98
Children's Family Services,Equipment and Materials Purcha,AMAZON UK MARKETPLACE,07/04/2016,7706,9.48
Children's Family Services,Equipment and Materials Purcha,AMAZON UK MARKETPLACE,07/10/2016,9741,249.16
Children's Family Services,Equipment and Materials Purcha,AMAZON UK MARKETPLACE,07/10/2016,9742,219.00
Children's Family Services,Equipment and Materials Purcha,AMAZON UK MARKETPLACE,07/11/2016,10134,9.35
Children's Family Services,Equipment and Materials Purcha,AMAZON UK MARKETPLACE,08/03/2017,11898,19.16
Children's Family Services,Equipment and Materials Purcha,AMAZON UK MARKETPLACE,08/11/2016,10154,16.22
Children's Family Services,Equipment and Materials Purcha,AMAZON UK MARKETPLACE,09/02/2017,11375,11.98
Children's Family Services,Equipment and Materials Purcha,AMAZON UK MARKETPLACE,09/02/2017,11387,30.99
Children's Family Services,Equipment and Materials Purcha,AMAZON UK MARKETPLACE,09/03/2016,7384,42.57
Children's Family Services,Equipment and Materials Purcha,AMAZON UK MARKETPLACE,09/06/2016,8331,559.98
Children's Family Services,Equipment and Materials Purcha,AMAZON UK MARKETPLACE,09/11/2016,10166,12.15
Children's Family Services,Equipment and Materials Purcha,AMAZON UK MARKETPLACE,10/03/2017,11686,336.00
Children's Family Services,Equipment and Materials Purcha,AMAZON UK MARKETPLACE,10/03/2017,11687,19.65
Children's Family Services,Equipment and Materials Purcha,AMAZON UK MARKETPLACE,10/10/2016,9759,14.99
Children's Family Services,Equipment and Materials Purcha,AMAZON UK MARKETPLACE,10/10/2016,9760,239.99
Children's Family Services,Equipment and Materials Purcha,AMAZON UK MARKETPLACE,10/10/2016,9761,8.35
Children's Family Services,Equipment and Materials Purcha,AMAZON UK MARKETPLACE,10/10/2016,9762,8.35
Children's Family Services,Equipment and Materials Purcha,AMAZON UK MARKETPLACE,10/10/2016,9763,21.61
Children's Family Services,Equipment and Materials Purcha,AMAZON UK MARKETPLACE,10/10/2016,9764,21.61
Children's Family Services,Equipment and Materials Purcha,AMAZON UK MARKETPLACE,10/11/2016,10187,77.17
Children's Family Services,Equipment and Materials Purcha,AMAZON UK MARKETPLACE,11/04/2016,7721,115.62
Children's Family Services,Equipment and Materials Purcha,AMAZON UK MARKETPLACE,11/08/2016,9076,11.81
Children's Family Services,Equipment and Materials Purcha,AMAZON UK MARKETPLACE,11/08/2016,9077,21.25
Children's Family Services,Equipment and Materials Purcha,AMAZON UK MARKETPLACE,11/10/2016,9790,4.99
Children's Family Services,Equipment and Materials Purcha,AMAZON UK MARKETPLACE,11/10/2016,9791,8.75
Children's Family Services,Equipment and Materials Purcha,AMAZON UK MARKETPLACE,12/01/2017,10937,13.99
Children's Family Services,Equipment and Materials Purcha,AMAZON UK MARKETPLACE,12/09/2016,9420,6.17
Children's Family Services,Equipment and Materials Purcha,AMAZON UK MARKETPLACE,13/03/2017,11928,34.99
Children's Family Services,Equipment and Materials Purcha,AMAZON UK MARKETPLACE,13/03/2017,11929,34.99
Children's Family Services,Equipment and Materials Purcha,AMAZON UK MARKETPLACE,13/03/2017,11930,174.93
Children's Family Services,Equipment and Materials Purcha,AMAZON UK MARKETPLACE,13/04/2016,7747,8.33
Children's Family Services,Equipment and Materials Purcha,AMAZON UK MARKETPLACE,13/04/2016,7761,27.35
Children's Family Services,Equipment and Materials Purcha,AMAZON UK MARKETPLACE,13/04/2016,7762,34.97
Children's Family Services,Equipment and Materials Purcha,AMAZON UK MARKETPLACE,13/04/2016,7763,36.37
Children's Family Services,Equipment and Materials Purcha,AMAZON UK MARKETPLACE,13/04/2016,7764,34.35
Children's Family Services,Equipment and Materials Purcha,AMAZON UK MARKETPLACE,14/06/2016,8364,1.29
Children's Family Services,Equipment and Materials Purcha,AMAZON UK MARKETPLACE,14/06/2016,8365,1.25
Children's Family Services,Equipment and Materials Purcha,AMAZON UK MARKETPLACE,14/07/2016,8748,7.88
Children's Family Services,Equipment and Materials Purcha,AMAZON UK MARKETPLACE,14/10/2016,9832,41.61
Children's Family Services,Equipment and Materials Purcha,AMAZON UK MARKETPLACE,14/11/2016,10224,111.22
Children's Family Services,Equipment and Materials Purcha,AMAZON UK MARKETPLACE,14/11/2016,10225,11.66
Children's Family Services,Equipment and Materials Purcha,AMAZON UK MARKETPLACE,14/11/2016,10226,22.26
Children's Family Services,Equipment and Materials Purcha,AMAZON UK MARKETPLACE,14/11/2016,10241,47.25
Children's Family Services,Equipment and Materials Purcha,AMAZON UK MARKETPLACE,15/03/2016,7445,12.49
Children's Family Services,Equipment and Materials Purcha,AMAZON UK MARKETPLACE,15/03/2016,7446,3.09
Children's Family Services,Equipment and Materials Purcha,AMAZON UK MARKETPLACE,15/03/2016,7447,80.78
Children's Family Services,Equipment and Materials Purcha,AMAZON UK MARKETPLACE,15/03/2016,7448,26.66
Children's Family Services,Equipment and Materials Purcha,AMAZON UK MARKETPLACE,15/03/2016,7450,62.04
Children's Family Services,Equipment and Materials Purcha,AMAZON UK MARKETPLACE,15/06/2016,8384,2.50
Children's Family Services,Equipment and Materials Purcha,AMAZON UK MARKETPLACE,15/08/2016,9096,6.42
Children's Family Services,Equipment and Materials Purcha,AMAZON UK MARKETPLACE,15/08/2016,9099,30.70
Children's Family Services,Equipment and Materials Purcha,AMAZON UK MARKETPLACE,15/08/2016,9107,84.90
Children's Family Services,Equipment and Materials Purcha,AMAZON UK MARKETPLACE,15/11/2016,10246,-12.69
Children's Family Services,Equipment and Materials Purcha,AMAZON UK MARKETPLACE,16/01/2017,11158,19.95
Children's Family Services,Equipment and Materials Purcha,AMAZON UK MARKETPLACE,16/03/2016,7464,5.43
Children's Family Services,Equipment and Materials Purcha,AMAZON UK MARKETPLACE,16/03/2016,7465,24.04
Children's Family Services,Equipment and Materials Purcha,AMAZON UK MARKETPLACE,16/03/2016,7466,6.24
Children's Family Services,Equipment and Materials Purcha,AMAZON UK MARKETPLACE,16/03/2016,7467,56.66
Children's Family Services,Equipment and Materials Purcha,AMAZON UK MARKETPLACE,16/03/2016,7469,41.63
Children's Family Services,Equipment and Materials Purcha,AMAZON UK MARKETPLACE,16/03/2016,7481,10.95
Children's Family Services,Equipment and Materials Purcha,AMAZON UK MARKETPLACE,16/03/2016,7482,16.66
Children's Family Services,Equipment and Materials Purcha,AMAZON UK MARKETPLACE,16/03/2016,7483,12.28
Children's Family Services,Equipment and Materials Purcha,AMAZON UK MARKETPLACE,16/03/2016,7484,10.96
Children's Family Services,Equipment and Materials Purcha,AMAZON UK MARKETPLACE,16/03/2016,7485,17.25
Children's Family Services,Equipment and Materials Purcha,AMAZON UK MARKETPLACE,16/03/2016,7486,14.12
Children's Family Services,Equipment and Materials Purcha,AMAZON UK MARKETPLACE,16/05/2016,8060,16.00
Children's Family Services,Equipment and Materials Purcha,AMAZON UK MARKETPLACE,16/06/2016,8397,2.54
Children's Family Services,Equipment and Materials Purcha,AMAZON UK MARKETPLACE,16/09/2016,9481,452.97
Children's Family Services,Equipment and Materials Purcha,AMAZON UK MARKETPLACE,16/09/2016,9482,14.40
Children's Family Services,Equipment and Materials Purcha,AMAZON UK MARKETPLACE,16/09/2016,9483,70.69
Children's Family Services,Equipment and Materials Purcha,AMAZON UK MARKETPLACE,16/09/2016,9497,111.88
Children's Family Services,Equipment and Materials Purcha,AMAZON UK MARKETPLACE,16/09/2016,9498,34.18
Children's Family Services,Equipment and Materials Purcha,AMAZON UK MARKETPLACE,17/01/2017,11221,14.03
Children's Family Services,Equipment and Materials Purcha,AMAZON UK MARKETPLACE,17/01/2017,11235,10.99
Children's Family Services,Equipment and Materials Purcha,AMAZON UK MARKETPLACE,17/01/2017,11236,46.80
Children's Family Services,Equipment and Materials Purcha,AMAZON UK MARKETPLACE,17/01/2017,11237,10.75
Children's Family Services,Equipment and Materials Purcha,AMAZON UK MARKETPLACE,17/03/2017,11688,21.54
Children's Family Services,Equipment and Materials Purcha,AMAZON UK MARKETPLACE,17/03/2017,11689,83.98
Children's Family Services,Equipment and Materials Purcha,AMAZON UK MARKETPLACE,17/06/2016,8412,200.00
Children's Family Services,Equipment and Materials Purcha,AMAZON UK MARKETPLACE,17/08/2016,9125,263.99
Children's Family Services,Equipment and Materials Purcha,AMAZON UK MARKETPLACE,18/01/2017,11224,23.32
Children's Family Services,Equipment and Materials Purcha,AMAZON UK MARKETPLACE,18/01/2017,11225,4.16
Children's Family Services,Equipment and Materials Purcha,AMAZON UK MARKETPLACE,18/01/2017,11226,2.66
Children's Family Services,Equipment and Materials Purcha,AMAZON UK MARKETPLACE,18/01/2017,11239,49.98
Children's Family Services,Equipment and Materials Purcha,AMAZON UK MARKETPLACE,18/04/2016,7800,41.46
Children's Family Services,Equipment and Materials Purcha,AMAZON UK MARKETPLACE,18/05/2016,8099,4.16
Children's Family Services,Equipment and Materials Purcha,AMAZON UK MARKETPLACE,18/06/2015,4340,119.90
Children's Family Services,Equipment and Materials Purcha,AMAZON UK MARKETPLACE,18/06/2015,4342,77.47
Children's Family Services,Equipment and Materials Purcha,AMAZON UK MARKETPLACE,19/01/2017,11227,23.05
Children's Family Services,Equipment and Materials Purcha,AMAZON UK MARKETPLACE,19/05/2016,8111,13.90
Children's Family Services,Equipment and Materials Purcha,AMAZON UK MARKETPLACE,19/06/2015,4353,163.99
Children's Family Services,Equipment and Materials Purcha,AMAZON UK MARKETPLACE,19/09/2016,9500,184.95
Children's Family Services,Equipment and Materials Purcha,AMAZON UK MARKETPLACE,19/09/2016,9501,147.96
Children's Family Services,Equipment and Materials Purcha,AMAZON UK MARKETPLACE,19/09/2016,9502,253.37
Children's Family Services,Equipment and Materials Purcha,AMAZON UK MARKETPLACE,19/09/2016,9503,33.48
Children's Family Services,Equipment and Materials Purcha,AMAZON UK MARKETPLACE,19/09/2016,9504,39.96
Children's Family Services,Equipment and Materials Purcha,AMAZON UK MARKETPLACE,19/09/2016,9505,47.75
Children's Family Services,Equipment and Materials Purcha,AMAZON UK MARKETPLACE,19/09/2016,9510,10.25
Children's Family Services,Equipment and Materials Purcha,AMAZON UK MARKETPLACE,20/01/2017,11229,51.85
Children's Family Services,Equipment and Materials Purcha,AMAZON UK MARKETPLACE,20/02/2017,11487,29.16
Children's Family Services,Equipment and Materials Purcha,AMAZON UK MARKETPLACE,20/02/2017,11494,22.74
Children's Family Services,Equipment and Materials Purcha,AMAZON UK MARKETPLACE,20/02/2017,11497,104.97
Children's Family Services,Equipment and Materials Purcha,AMAZON UK MARKETPLACE,20/03/2017,11837,276.50
Children's Family Services,Equipment and Materials Purcha,AMAZON UK MARKETPLACE,20/06/2016,8430,7.92
Children's Family Services,Equipment and Materials Purcha,AMAZON UK MARKETPLACE,20/09/2016,9543,39.99
Children's Family Services,Equipment and Materials Purcha,AMAZON UK MARKETPLACE,20/10/2016,9896,64.90
Children's Family Services,Equipment and Materials Purcha,AMAZON UK MARKETPLACE,20/10/2016,9897,190.98
Children's Family Services,Equipment and Materials Purcha,AMAZON UK MARKETPLACE,20/12/2016,10711,81.16
Children's Family Services,Equipment and Materials Purcha,AMAZON UK MARKETPLACE,21/02/2017,11511,24.95
Children's Family Services,Equipment and Materials Purcha,AMAZON UK MARKETPLACE,21/02/2017,11520,6.37
Children's Family Services,Equipment and Materials Purcha,AMAZON UK MARKETPLACE,21/09/2016,9539,7.35
Children's Family Services,Equipment and Materials Purcha,AMAZON UK MARKETPLACE,21/09/2016,9540,46.38
Children's Family Services,Equipment and Materials Purcha,AMAZON UK MARKETPLACE,22/02/2017,11529,299.00
Children's Family Services,Equipment and Materials Purcha,AMAZON UK MARKETPLACE,22/07/2016,8851,54.94
Children's Family Services,Equipment and Materials Purcha,AMAZON UK MARKETPLACE,22/08/2016,9185,36.22
Children's Family Services,Equipment and Materials Purcha,AMAZON UK MARKETPLACE,22/08/2016,9214,29.86
Children's Family Services,Equipment and Materials Purcha,AMAZON UK MARKETPLACE,22/08/2016,9215,179.05
Children's Family Services,Equipment and Materials Purcha,AMAZON UK MARKETPLACE,22/09/2016,9545,4.58
Children's Family Services,Equipment and Materials Purcha,AMAZON UK MARKETPLACE,22/09/2016,9555,9.23
Children's Family Services,Equipment and Materials Purcha,AMAZON UK MARKETPLACE,22/09/2016,9556,7.88
Children's Family Services,Equipment and Materials Purcha,AMAZON UK MARKETPLACE,22/09/2016,9557,2.60
Children's Family Services,Equipment and Materials Purcha,AMAZON UK MARKETPLACE,22/09/2016,9558,5.70
Children's Family Services,Equipment and Materials Purcha,AMAZON UK MARKETPLACE,22/11/2016,10329,29.88
Children's Family Services,Equipment and Materials Purcha,AMAZON UK MARKETPLACE,23/03/2016,7567,214.06
Children's Family Services,Equipment and Materials Purcha,AMAZON UK MARKETPLACE,23/03/2017,11769,3.98
Children's Family Services,Equipment and Materials Purcha,AMAZON UK MARKETPLACE,23/08/2016,9216,45.78
Children's Family Services,Equipment and Materials Purcha,AMAZON UK MARKETPLACE,23/08/2016,9217,45.20
Children's Family Services,Equipment and Materials Purcha,AMAZON UK MARKETPLACE,23/08/2016,9218,2.05
Children's Family Services,Equipment and Materials Purcha,AMAZON UK MARKETPLACE,23/12/2016,10780,-40.58
Children's Family Services,Equipment and Materials Purcha,AMAZON UK MARKETPLACE,24/01/2017,11240,5.60
Children's Family Services,Equipment and Materials Purcha,AMAZON UK MARKETPLACE,24/02/2017,11571,34.99
Children's Family Services,Equipment and Materials Purcha,AMAZON UK MARKETPLACE,24/02/2017,11573,19.38
Children's Family Services,Equipment and Materials Purcha,AMAZON UK MARKETPLACE,24/08/2016,9223,4.37
Children's Family Services,Equipment and Materials Purcha,AMAZON UK MARKETPLACE,24/08/2016,9224,4.32
Children's Family Services,Equipment and Materials Purcha,AMAZON UK MARKETPLACE,24/08/2016,9225,6.70
Children's Family Services,Equipment and Materials Purcha,AMAZON UK MARKETPLACE,24/08/2016,9226,5.93
Children's Family Services,Equipment and Materials Purcha,AMAZON UK MARKETPLACE,24/08/2016,9227,5.74
Children's Family Services,Equipment and Materials Purcha,AMAZON UK MARKETPLACE,24/08/2016,9228,6.65
Children's Family Services,Equipment and Materials Purcha,AMAZON UK MARKETPLACE,24/08/2016,9229,18.08
Children's Family Services,Equipment and Materials Purcha,AMAZON UK MARKETPLACE,24/08/2016,9239,9.99
Children's Family Services,Equipment and Materials Purcha,AMAZON UK MARKETPLACE,25/08/2016,9240,3.45
Children's Family Services,Equipment and Materials Purcha,AMAZON UK MARKETPLACE,25/08/2016,9241,7.21
Children's Family Services,Equipment and Materials Purcha,AMAZON UK MARKETPLACE,25/08/2016,9242,12.85
Children's Family Services,Equipment and Materials Purcha,AMAZON UK MARKETPLACE,25/08/2016,9243,13.30
Children's Family Services,Equipment and Materials Purcha,AMAZON UK MARKETPLACE,25/08/2016,9244,8.50
Children's Family Services,Equipment and Materials Purcha,AMAZON UK MARKETPLACE,25/08/2016,9245,48.58
Children's Family Services,Equipment and Materials Purcha,AMAZON UK MARKETPLACE,25/08/2016,9261,6.27
Children's Family Services,Equipment and Materials Purcha,AMAZON UK MARKETPLACE,26/07/2016,8907,71.61
Children's Family Services,Equipment and Materials Purcha,AMAZON UK MARKETPLACE,26/07/2016,8908,2.72
Children's Family Services,Equipment and Materials Purcha,AMAZON UK MARKETPLACE,26/09/2016,9582,122.44
Children's Family Services,Equipment and Materials Purcha,AMAZON UK MARKETPLACE,27/02/2017,11586,7.77
Children's Family Services,Equipment and Materials Purcha,AMAZON UK MARKETPLACE,27/02/2017,11587,8.21
Children's Family Services,Equipment and Materials Purcha,AMAZON UK MARKETPLACE,27/02/2017,11588,18.79
Children's Family Services,Equipment and Materials Purcha,AMAZON UK MARKETPLACE,27/02/2017,11599,15.79
Children's Family Services,Equipment and Materials Purcha,AMAZON UK MARKETPLACE,27/05/2016,8202,18.64
Children's Family Services,Equipment and Materials Purcha,AMAZON UK MARKETPLACE,27/09/2016,9610,36.65
Children's Family Services,Equipment and Materials Purcha,AMAZON UK MARKETPLACE,27/09/2016,9612,74.99
Children's Family Services,Equipment and Materials Purcha,AMAZON UK MARKETPLACE,28/02/2017,11659,23.59
Children's Family Services,Equipment and Materials Purcha,AMAZON UK MARKETPLACE,28/02/2017,11660,23.59
Children's Family Services,Equipment and Materials Purcha,AMAZON UK MARKETPLACE,28/02/2017,11661,23.59
Children's Family Services,Equipment and Materials Purcha,AMAZON UK MARKETPLACE,28/02/2017,11662,23.59
Children's Family Services,Equipment and Materials Purcha,AMAZON UK MARKETPLACE,28/02/2017,11663,23.59
Children's Family Services,Equipment and Materials Purcha,AMAZON UK MARKETPLACE,28/06/2016,8548,22.82
Children's Family Services,Equipment and Materials Purcha,AMAZON UK MARKETPLACE,28/09/2016,9635,19.30
Children's Family Services,Equipment and Materials Purcha,AMAZON UK MARKETPLACE,28/11/2016,10404,94.00
Children's Family Services,Equipment and Materials Purcha,AMAZON UK MARKETPLACE,28/11/2016,10417,2.93
Children's Family Services,Equipment and Materials Purcha,AMAZON UK MARKETPLACE,29/07/2016,8948,78.31
Children's Family Services,Equipment and Materials Purcha,AMAZON UK MARKETPLACE,29/07/2016,8949,6.16
Children's Family Services,Equipment and Materials Purcha,AMAZON UK MARKETPLACE,29/09/2016,9654,2.24
Children's Family Services,Equipment and Materials Purcha,AMAZON UK MARKETPLACE,29/09/2016,9663,19.99
Children's Family Services,Equipment and Materials Purcha,AMAZON UK MARKETPLACE,30/06/2016,8580,39.32
Children's Family Services,Equipment and Materials Purcha,AMAZON UK MARKETPLACE,30/09/2016,9658,48.84
Children's Family Services,Equipment and Materials Purcha,AMAZON UK MARKETPLACE,30/09/2016,9664,2.45
Children's Family Services,Equipment and Materials Purcha,AMAZON UK MARKETPLACE,31/10/2016,10047,7.89
Children's Family Services,Equipment and Materials Purcha,AMAZON UK RETAIL AMAZO,01/02/2017,11155,5.50
Children's Family Services,Equipment and Materials Purcha,AMAZON UK RETAIL AMAZO,01/03/2017,11664,147.30
Children's Family Services,Equipment and Materials Purcha,AMAZON UK RETAIL AMAZO,01/08/2016,8960,11.97
Children's Family Services,Equipment and Materials Purcha,AMAZON UK RETAIL AMAZO,04/11/2016,10118,35.00
Children's Family Services,Equipment and Materials Purcha,AMAZON UK RETAIL AMAZO,07/11/2016,10132,10.65
Children's Family Services,Equipment and Materials Purcha,AMAZON UK RETAIL AMAZO,07/11/2016,10133,25.75
Children's Family Services,Equipment and Materials Purcha,AMAZON UK RETAIL AMAZO,09/02/2017,11361,13.38
Children's Family Services,Equipment and Materials Purcha,AMAZON UK RETAIL AMAZO,09/02/2017,11362,13.38
Children's Family Services,Equipment and Materials Purcha,AMAZON UK RETAIL AMAZO,09/02/2017,11363,13.38
Children's Family Services,Equipment and Materials Purcha,AMAZON UK RETAIL AMAZO,09/02/2017,11365,13.38
Children's Family Services,Equipment and Materials Purcha,AMAZON UK RETAIL AMAZO,09/02/2017,11366,13.38
Children's Family Services,Equipment and Materials Purcha,AMAZON UK RETAIL AMAZO,09/02/2017,11367,13.38
Children's Family Services,Equipment and Materials Purcha,AMAZON UK RETAIL AMAZO,13/03/2017,11931,15.99
Children's Family Services,Equipment and Materials Purcha,AMAZON UK RETAIL AMAZO,14/07/2016,8734,8.90
Children's Family Services,Equipment and Materials Purcha,AMAZON UK RETAIL AMAZO,14/10/2016,9829,41.28
Children's Family Services,Equipment and Materials Purcha,AMAZON UK RETAIL AMAZO,19/08/2016,9158,25.87
Children's Family Services,Equipment and Materials Purcha,AMAZON UK RETAIL AMAZO,21/11/2016,10306,32.90
Children's Family Services,Equipment and Materials Purcha,AMAZON UK RETAIL AMAZO,21/11/2016,10307,22.49
Children's Family Services,Equipment and Materials Purcha,AMAZON UK RETAIL AMAZO,22/02/2017,11521,18.18
Children's Family Services,Equipment and Materials Purcha,AMAZON UK RETAIL AMAZO,22/09/2016,9549,160.00
Children's Family Services,Equipment and Materials Purcha,AMAZON UK RETAIL AMAZO,24/02/2017,11572,8.72
Children's Family Services,Equipment and Materials Purcha,AMAZON UK RETAIL AMAZO,27/02/2017,11609,15.90
Children's Family Services,Equipment and Materials Purcha,AMAZON UK RETAIL AMAZO,27/02/2017,11610,244.10
Children's Family Services,Equipment and Materials Purcha,AMAZON UK RETAIL AMAZO,27/10/2016,10002,23.96
Children's Family Services,Equipment and Materials Purcha,AMAZON.CO.UK,02/03/2017,11265,19.96
Children's Family Services,Equipment and Materials Purcha,AMY'S HOUSEWARES LTD,29/07/2016,8951,11.98
Children's Family Services,Equipment and Materials Purcha,ANDREW JAMES UK LI,22/06/2016,8476,69.99
Children's Family Services,Equipment and Materials Purcha,AO RETAIL LIMITED,13/10/2016,9813,378.98
Children's Family Services,Equipment and Materials Purcha,AO RETAIL LIMITED,18/08/2016,9141,409.13
Children's Family Services,Equipment and Materials Purcha,APPLE ONLINE STORE GBP,19/09/2016,9509,19.00
Children's Family Services,Equipment and Materials Purcha,ARGOS,13/02/2017,11413,-333.32
Children's Family Services,Equipment and Materials Purcha,ARGOS,22/07/2016,8849,154.93
Children's Family Services,Equipment and Materials Purcha,ARGOS,25/01/2017,10846,333.32
Children's Family Services,Equipment and Materials Purcha,ARGOS DIRECT,02/03/2017,11650,-171.05
Children's Family Services,Equipment and Materials Purcha,ARGOS DIRECT,08/09/2016,9385,368.93
Children's Family Services,Equipment and Materials Purcha,ARGOS LTD,06/05/2016,7989,58.49
Children's Family Services,Equipment and Materials Purcha,ARGOS LTD,12/12/2016,10597,279.96
Children's Family Services,Equipment and Materials Purcha,ARGOS LTD,20/07/2016,8827,20.03
Children's Family Services,Equipment and Materials Purcha,ARGOS LTD,26/08/2016,9264,4.99
Children's Family Services,Equipment and Materials Purcha,ARGOS LTD,26/12/2016,10799,49.99
Children's Family Services,Equipment and Materials Purcha,ARGOS LTD,27/10/2016,9999,9.99
Children's Family Services,Equipment and Materials Purcha,ARGOS NEW STHGATE,26/07/2016,8912,9.99
Children's Family Services,Equipment and Materials Purcha,ARGOS NEW STHGATE,26/07/2016,8914,179.98
Children's Family Services,Equipment and Materials Purcha,ARGOS RETAIL GROUP,01/03/2017,11657,43.46
Children's Family Services,Equipment and Materials Purcha,ARGOS RETAIL GROUP,01/03/2017,11658,434.42
Children's Family Services,Equipment and Materials Purcha,ARGOS RETAIL GROUP,01/08/2016,8961,48.94
Children's Family Services,Equipment and Materials Purcha,ARGOS RETAIL GROUP,05/09/2016,9331,72.96
Children's Family Services,Equipment and Materials Purcha,ARGOS RETAIL GROUP,05/12/2016,10500,16.94
Children's Family Services,Equipment and Materials Purcha,ARGOS RETAIL GROUP,07/06/2016,8303,2.99
Children's Family Services,Equipment and Materials Purcha,ARGOS RETAIL GROUP,07/06/2016,8304,108.91
Children's Family Services,Equipment and Materials Purcha,ARGOS RETAIL GROUP,10/11/2016,10190,183.94
Children's Family Services,Equipment and Materials Purcha,ARGOS RETAIL GROUP,11/08/2016,9074,103.94
Children's Family Services,Equipment and Materials Purcha,ARGOS RETAIL GROUP,11/11/2016,10217,19.99
Children's Family Services,Equipment and Materials Purcha,ARGOS RETAIL GROUP,13/01/2017,11196,49.12
Children's Family Services,Equipment and Materials Purcha,ARGOS RETAIL GROUP,17/06/2016,8411,129.99
Children's Family Services,Equipment and Materials Purcha,ARGOS RETAIL GROUP,17/11/2016,10273,221.94
Children's Family Services,Equipment and Materials Purcha,ARGOS RETAIL GROUP,18/07/2016,8766,108.93
Children's Family Services,Equipment and Materials Purcha,ARGOS RETAIL GROUP,22/04/2016,7860,187.49
Children's Family Services,Equipment and Materials Purcha,ARGOS RETAIL GROUP,22/08/2016,9169,156.94
Children's Family Services,Equipment and Materials Purcha,ARGOS RETAIL GROUP,24/06/2016,8509,69.97
Children's Family Services,Equipment and Materials Purcha,ARGOS RETAIL GROUP,24/11/2016,10364,382.94
Children's Family Services,Equipment and Materials Purcha,ARGOS RETAIL GROUP,24/11/2016,10375,126.94
Children's Family Services,Equipment and Materials Purcha,ARGOS RETAIL GROUP,26/09/2016,9602,69.95
Children's Family Services,Equipment and Materials Purcha,ARGOS RETAIL GROUP,26/10/2016,9971,303.93
Children's Family Services,Equipment and Materials Purcha,ARGOS RETAIL GROUP,27/02/2017,11578,70.47
Children's Family Services,Equipment and Materials Purcha,ARGOS RETAIL GROUP,27/02/2017,11579,197.45
Children's Family Services,Equipment and Materials Purcha,ARGOS RETAIL GROUP,27/02/2017,11605,162.22
Children's Family Services,Equipment and Materials Purcha,ARGOS RETAIL GROUP,28/09/2016,9642,57.45
Children's Family Services,Equipment and Materials Purcha,ARGOS RETAIL GROUP,29/06/2016,8560,118.94
Children's Family Services,Equipment and Materials Purcha,ARGOS RETAIL GROUP,29/06/2016,8561,179.98
Children's Family Services,Equipment and Materials Purcha,ARGOS RETAIL GROUP,29/06/2016,8572,466.98
Children's Family Services,Equipment and Materials Purcha,ARGOS RETAIL GROUP,30/03/2017,11780,127.99
Children's Family Services,Equipment and Materials Purcha,ARGOS RETAIL GROUP,30/06/2016,8596,63.94
Children's Family Services,Equipment and Materials Purcha,ARGOS RETAIL GROUP,30/11/2016,10445,19.95
Children's Family Services,Equipment and Materials Purcha,ASDA 4387,17/06/2015,4325,54.00
Children's Family Services,Equipment and Materials Purcha,ASDA GEORGE COM LEEDS,17/02/2017,11468,182.45
Children's Family Services,Equipment and Materials Purcha,ASDA GEORGE COM LEEDS,27/02/2017,11604,169.91
Children's Family Services,Equipment and Materials Purcha,ASDA HOME SHOPPING,08/12/2016,10554,2.00
Children's Family Services,Equipment and Materials Purcha,ASDA SUPERSTORE,01/12/2016,10454,60.00
Children's Family Services,Equipment and Materials Purcha,ASDA SUPERSTORE,02/03/2017,11272,2.90
Children's Family Services,Equipment and Materials Purcha,ASDA SUPERSTORE,02/06/2016,8237,37.50
Children's Family Services,Equipment and Materials Purcha,ASDA SUPERSTORE,03/11/2016,10107,34.00
Children's Family Services,Equipment and Materials Purcha,ASDA SUPERSTORE,08/12/2016,10559,0.00
Children's Family Services,Equipment and Materials Purcha,ASDA SUPERSTORE,09/11/2016,10169,16.00
Children's Family Services,Equipment and Materials Purcha,ASDA SUPERSTORE,10/10/2016,9749,102.00
Children's Family Services,Equipment and Materials Purcha,ASDA SUPERSTORE,11/08/2016,9078,30.00
Children's Family Services,Equipment and Materials Purcha,ASDA SUPERSTORE,11/10/2016,9793,26.00
Children's Family Services,Equipment and Materials Purcha,ASDA SUPERSTORE,14/07/2016,8740,12.00
Children's Family Services,Equipment and Materials Purcha,ASDA SUPERSTORE,14/12/2016,10629,29.96
Children's Family Services,Equipment and Materials Purcha,ASDA SUPERSTORE,15/04/2016,7782,6.60
Children's Family Services,Equipment and Materials Purcha,ASDA SUPERSTORE,15/09/2016,9471,4.50
Children's Family Services,Equipment and Materials Purcha,ASDA SUPERSTORE,15/12/2016,10651,7.50
Children's Family Services,Equipment and Materials Purcha,ASDA SUPERSTORE,17/02/2017,11470,19.00
Children's Family Services,Equipment and Materials Purcha,ASDA SUPERSTORE,19/08/2016,9155,99.40
Children's Family Services,Equipment and Materials Purcha,ASDA SUPERSTORE,19/08/2016,9156,43.00
Children's Family Services,Equipment and Materials Purcha,ASDA SUPERSTORE,21/03/2016,7514,2.00
Children's Family Services,Equipment and Materials Purcha,ASDA SUPERSTORE,21/12/2016,10738,19.96
Children's Family Services,Equipment and Materials Purcha,ASDA SUPERSTORE,21/12/2016,10740,-29.96
Children's Family Services,Equipment and Materials Purcha,ASDA SUPERSTORE,22/07/2016,8853,88.42
Children's Family Services,Equipment and Materials Purcha,ASDA SUPERSTORE,22/12/2016,10759,11.00
Children's Family Services,Equipment and Materials Purcha,ASDA SUPERSTORE,22/12/2016,10767,6.24
Children's Family Services,Equipment and Materials Purcha,ASDA SUPERSTORE,23/03/2017,11840,22.25
Children's Family Services,Equipment and Materials Purcha,ASDA SUPERSTORE,23/06/2016,8492,4.00
Children's Family Services,Equipment and Materials Purcha,ASDA SUPERSTORE,26/04/2016,7901,12.06
Children's Family Services,Equipment and Materials Purcha,ASDA SUPERSTORE,26/08/2016,9262,-16.50
Children's Family Services,Equipment and Materials Purcha,ASDA SUPERSTORE,28/04/2016,7922,13.25
Children's Family Services,Equipment and Materials Purcha,ASDA SUPERSTORE,28/09/2016,9645,25.40
Children's Family Services,Equipment and Materials Purcha,ASDA SUPERSTORE,28/11/2016,10390,5.00
Children's Family Services,Equipment and Materials Purcha,ASDA SUPERSTORE,30/06/2016,8585,3.00
Children's Family Services,Equipment and Materials Purcha,ASDA SUPERSTORE,30/09/2016,9659,6.00
Children's Family Services,Equipment and Materials Purcha,AUDIBLE.CO.UK,03/03/2017,11291,4.99
Children's Family Services,Equipment and Materials Purcha,B AND Q 1072,11/03/2016,7418,14.00
Children's Family Services,Equipment and Materials Purcha,BAKER ROSS LTD,08/12/2016,10556,23.56
Children's Family Services,Equipment and Materials Purcha,BARNET LOCK CENTRE LTD,07/12/2016,10546,63.62
Children's Family Services,Equipment and Materials Purcha,BARNET LOCK CENTRE LTD,14/07/2016,8749,27.00
Children's Family Services,Equipment and Materials Purcha,BARNET LOCK CENTRE LTD,15/03/2017,12038,10.99
Children's Family Services,Equipment and Materials Purcha,BARNET LOCK CENTRE LTD,19/07/2016,8801,14.25
Children's Family Services,Equipment and Materials Purcha,BARNET LOCK CENTRE LTD,28/10/2016,10009,16.45
Children's Family Services,Equipment and Materials Purcha,BARTLETTS KEY SERVICES,14/12/2016,10628,38.67
Children's Family Services,Equipment and Materials Purcha,BARTLETTS KEY SERVICES,26/12/2016,10789,8.75
Children's Family Services,Equipment and Materials Purcha,BLACKS,25/07/2016,8892,50.00
Children's Family Services,Equipment and Materials Purcha,BOOTS 6509,17/02/2017,11467,2.50
Children's Family Services,Equipment and Materials Purcha,"BOOTS,EASTBOURNE",25/07/2016,8890,6.73
Children's Family Services,Equipment and Materials Purcha,"BOOTS,MILL HILL",01/08/2016,8975,3.00
Children's Family Services,Equipment and Materials Purcha,BUILDER DEPOT LTD,30/01/2017,10874,62.59
Children's Family Services,Equipment and Materials Purcha,BUILDER DEPOT N11,11/10/2016,9786,44.64
Children's Family Services,Equipment and Materials Purcha,BUILDER DEPOT N11,11/10/2016,9787,20.78
Children's Family Services,Equipment and Materials Purcha,BUILDER DEPOT N11,21/10/2016,9914,22.98
Children's Family Services,Equipment and Materials Purcha,CARTRIDGE SAVE,04/07/2016,8610,332.14
Children's Family Services,Equipment and Materials Purcha,CARTRIDGE SAVE,15/11/2016,10248,473.18
Children's Family Services,Equipment and Materials Purcha,CLICKETY BOOKS LTD,06/02/2017,11312,17.50
Children's Family Services,Equipment and Materials Purcha,COMMUNITYPLAYTHINGS UK,26/09/2016,9595,300.00
Children's Family Services,Equipment and Materials Purcha,COOPERS OF BARNET,07/11/2016,10136,6.99
Children's Family Services,Equipment and Materials Purcha,COOPERS OF BARNET,22/02/2017,11526,12.97
Children's Family Services,Equipment and Materials Purcha,COOPERS OF BARNET,28/04/2016,7918,11.94
Children's Family Services,Equipment and Materials Purcha,CURRYS ONLINE,03/06/2016,8254,444.98
Children's Family Services,Equipment and Materials Purcha,CURRYS ONLINE,05/05/2016,7982,79.00
Children's Family Services,Equipment and Materials Purcha,CURRYS ONLINE,09/06/2016,8329,514.99
Children's Family Services,Equipment and Materials Purcha,CURRYS ONLINE,11/11/2016,10204,279.99
Children's Family Services,Equipment and Materials Purcha,CURRYS ONLINE,21/06/2016,8470,279.99
Children's Family Services,Equipment and Materials Purcha,CURRYS ONLINE,27/06/2016,8535,-444.98
Children's Family Services,Equipment and Materials Purcha,DANS CARPET AND FLOORI,23/06/2016,8501,476.00
Children's Family Services,Equipment and Materials Purcha,DAVID WAY LTD,14/10/2016,9831,261.60
Children's Family Services,Equipment and Materials Purcha,DAVID WAY LTD,19/10/2016,9885,48.00
Children's Family Services,Equipment and Materials Purcha,DFS,04/01/2017,10935,646.00
Children's Family Services,Equipment and Materials Purcha,DFS,04/01/2017,10936,"1,000.00"
Children's Family Services,Equipment and Materials Purcha,DOMESTIC & GENERAL,09/03/2016,7389,91.40
Children's Family Services,Equipment and Materials Purcha,DOMESTIC & GENERAL,24/08/2016,9231,125.88
Children's Family Services,Equipment and Materials Purcha,EARLY YEARS DIRECT LIM,06/01/2017,10996,270.00
Children's Family Services,Equipment and Materials Purcha,EARLY YEARS DIRECT LIM,07/02/2017,11345,74.70
Children's Family Services,Equipment and Materials Purcha,EARLY YEARS DIRECT LIM,17/02/2017,11473,67.50
Children's Family Services,Equipment and Materials Purcha,ELC-INTERNET,22/02/2017,11512,163.99
Children's Family Services,Equipment and Materials Purcha,ELECTRO SUPPLIES.C,28/09/2016,9643,34.95
Children's Family Services,Equipment and Materials Purcha,GHANSHYAM DIY STORE,22/04/2016,7868,6.33
Children's Family Services,Equipment and Materials Purcha,GHANSHYAM DIY STORE,28/11/2016,10411,8.33
Children's Family Services,Equipment and Materials Purcha,GIOMANI,30/06/2016,8594,109.99
Children's Family Services,Equipment and Materials Purcha,GLS EDUCATIONAL SU,18/11/2016,10299,38.53
Children's Family Services,Equipment and Materials Purcha,GREEN MAGIC CO,30/03/2017,11944,"1,350.00"
Children's Family Services,Equipment and Materials Purcha,H.A. MCPARLAND LTD,14/09/2016,9461,7.98
Children's Family Services,Equipment and Materials Purcha,HANDY MOVES,26/08/2016,9270,75.00
Children's Family Services,Equipment and Materials Purcha,HANDY MOVES,26/08/2016,9271,75.00
Children's Family Services,Equipment and Materials Purcha,HARTSOFSTUR.COM,27/02/2017,11580,151.96
Children's Family Services,Equipment and Materials Purcha,HCC-CASHIERS,30/01/2017,10849,123.12
Children's Family Services,Equipment and Materials Purcha,HERTFORDSHRE COUNTY,17/01/2017,10845,110.03
Children's Family Services,Equipment and Materials Purcha,HOBBYCRAFT LTD,08/11/2016,10155,100.00
Children's Family Services,Equipment and Materials Purcha,HOBBYCRAFT LTD,14/02/2017,11438,8.33
Children's Family Services,Equipment and Materials Purcha,HOBBYCRAFT LTD,25/11/2016,10377,200.00
Children's Family Services,Equipment and Materials Purcha,HOMEBASE LTD,28/09/2016,9636,-79.99
Children's Family Services,Equipment and Materials Purcha,HOMEBASE LTD,28/09/2016,9637,-3.95
Children's Family Services,Equipment and Materials Purcha,HOMEBASE LTD,28/09/2016,9638,163.93
Children's Family Services,Equipment and Materials Purcha,HOMEBASE LTD,28/09/2016,9639,83.94
Children's Family Services,Equipment and Materials Purcha,HOMEBASE LTD  588,02/03/2017,11262,57.15
Children's Family Services,Equipment and Materials Purcha,HOMEBASE LTD  588,14/10/2016,9838,9.49
Children's Family Services,Equipment and Materials Purcha,HOMEBASE LTD  588,26/08/2016,9265,4.26
Children's Family Services,Equipment and Materials Purcha,HOMEBASE LTD 024,10/03/2017,11717,16.96
Children's Family Services,Equipment and Materials Purcha,HOMEBASE LTD 024,11/03/2016,7409,42.87
Children's Family Services,Equipment and Materials Purcha,HOMEBASE LTD 024,11/03/2016,7417,26.97
Children's Family Services,Equipment and Materials Purcha,HOMEBASE LTD 024,21/11/2016,10308,199.43
Children's Family Services,Equipment and Materials Purcha,HOMEBASE LTD 024,22/03/2017,12103,6.64
Children's Family Services,Equipment and Materials Purcha,HOMEBASE LTD 024,22/11/2016,10330,-85.47
Children's Family Services,Equipment and Materials Purcha,HOMEBASE LTD 024,25/08/2016,9249,114.00
Children's Family Services,Equipment and Materials Purcha,HUMANWAREEU,26/09/2016,9601,312.50
Children's Family Services,Equipment and Materials Purcha,HUMANWAREEU,26/09/2016,9603,-437.50
Children's Family Services,Equipment and Materials Purcha,IKEA,16/05/2016,8057,8.21
Children's Family Services,Equipment and Materials Purcha,IKEA LIMITED,13/12/2016,10617,87.25
Children's Family Services,Equipment and Materials Purcha,IKEA LIMITED,13/12/2016,10618,54.75
Children's Family Services,Equipment and Materials Purcha,IKEA ONLINE,02/12/2016,10490,198.00
Children's Family Services,Equipment and Materials Purcha,IKEA ONLINE,07/11/2016,10129,802.00
Children's Family Services,Equipment and Materials Purcha,IKEA ONLINE,14/04/2016,7768,295.00
Children's Family Services,Equipment and Materials Purcha,IKEA ONLINE,17/01/2017,11222,49.58
Children's Family Services,Equipment and Materials Purcha,IKEA ONLINE,17/01/2017,11223,68.75
Children's Family Services,Equipment and Materials Purcha,IKEA ONLINE,21/12/2016,10752,25.92
Children's Family Services,Equipment and Materials Purcha,IKEA SACAT,13/09/2016,9439,82.20
Children's Family Services,Equipment and Materials Purcha,JAGS TROPHIES,17/02/2017,11474,525.00
Children's Family Services,Equipment and Materials Purcha,K H DIRECT LTD,03/10/2016,9673,299.97
Children's Family Services,Equipment and Materials Purcha,K H DIRECT LTD,04/10/2016,9695,299.97
Children's Family Services,Equipment and Materials Purcha,K H DIRECT LTD,16/11/2016,10266,199.98
Children's Family Services,Equipment and Materials Purcha,LBBARNET PAYENET,06/12/2016,10529,75.25
Children's Family Services,Equipment and Materials Purcha,M & S MERCANTILE LTD,07/10/2016,9740,92.15
Children's Family Services,Equipment and Materials Purcha,MAKRO SELF SERVICE ENF,04/11/2016,10119,64.78
Children's Family Services,Equipment and Materials Purcha,MAKRO SELF SERVICE ENF,19/07/2016,8787,442.46
Children's Family Services,Equipment and Materials Purcha,MARKS&SPENCER PLC,25/01/2017,10906,144.00
Children's Family Services,Equipment and Materials Purcha,MARKS&SPENCER PLC,30/01/2017,10912,19.50
Children's Family Services,Equipment and Materials Purcha,MILLETS,25/07/2016,8891,25.00
Children's Family Services,Equipment and Materials Purcha,NISBETS PLC,06/03/2017,11926,279.47
Children's Family Services,Equipment and Materials Purcha,NISBETS PLC,06/03/2017,11927,397.80
Children's Family Services,Equipment and Materials Purcha,NO BS HOME SERVICES LT,30/06/2016,8581,300.00
Children's Family Services,Equipment and Materials Purcha,OPENANDUSEB4,01/03/2017,11649,19.99
Children's Family Services,Equipment and Materials Purcha,OPENANDUSEB4,25/04/2016,7875,12.50
Children's Family Services,Equipment and Materials Purcha,PAYPAL  ARK FARM,21/10/2016,9925,148.80
Children's Family Services,Equipment and Materials Purcha,PAYPAL  INTREPIDSEC,05/09/2016,9338,340.00
Children's Family Services,Equipment and Materials Purcha,PAYPAL  INTREPIDSEC,09/03/2017,11899,340.00
Children's Family Services,Equipment and Materials Purcha,PAYPAL  OCCASIONSPH,23/12/2016,10786,479.00
Children's Family Services,Equipment and Materials Purcha,PAYPAL  - REDACTED DATA,16/03/2016,7487,23.95
Children's Family Services,Equipment and Materials Purcha,PEARSONS (ENFIELD),06/01/2017,10889,19.95
Children's Family Services,Equipment and Materials Purcha,PETS AT HOME,10/01/2017,11231,7.50
Children's Family Services,Equipment and Materials Purcha,POLES DIRECT,16/08/2016,9115,153.70
Children's Family Services,Equipment and Materials Purcha,POSTURITE (UK) LTD,16/12/2016,10662,368.17
Children's Family Services,Equipment and Materials Purcha,POSTURITE (UK) LTD,16/12/2016,10663,368.17
Children's Family Services,Equipment and Materials Purcha,POUNDLAND LTD,04/05/2016,7973,6.00
Children's Family Services,Equipment and Materials Purcha,POUNDLAND LTD,21/07/2016,8838,6.67
Children's Family Services,Equipment and Materials Purcha,POUNDLAND LTD 1181,12/12/2016,10608,30.20
Children's Family Services,Equipment and Materials Purcha,POUNDLAND LTD 1181,30/11/2016,10434,80.33
Children's Family Services,Equipment and Materials Purcha,PP INTREPIDSEC,07/04/2016,7709,665.00
Children's Family Services,Equipment and Materials Purcha,PROCOOK,27/02/2017,11600,52.95
Children's Family Services,Equipment and Materials Purcha,PROCOOK,30/03/2017,11781,67.00
Children's Family Services,Equipment and Materials Purcha,REPLACEMENTKEYSCOUK,16/11/2016,10270,18.25
Children's Family Services,Equipment and Materials Purcha,REPLACEMENTKEYSCOUK,19/01/2017,11228,-4.60
Children's Family Services,Equipment and Materials Purcha,ROBERT DYAS HOLDNG LTD,08/08/2016,9034,14.99
Children's Family Services,Equipment and Materials Purcha,ROBERT DYAS HOLDNG LTD,21/03/2016,7537,5.82
Children's Family Services,Equipment and Materials Purcha,ROBERT DYAS HOLDNG LTD,21/07/2016,8841,1.43
Children's Family Services,Equipment and Materials Purcha,SAINSBURYS,28/07/2016,8933,20.00
Children's Family Services,Equipment and Materials Purcha,SAINSBURYS 0124,01/04/2016,7667,8.00
Children's Family Services,Equipment and Materials Purcha,SAINSBURYS 0124,02/01/2017,10817,1.99
Children's Family Services,Equipment and Materials Purcha,SAINSBURYS 0124,05/01/2017,10888,17.00
Children's Family Services,Equipment and Materials Purcha,SAINSBURYS 0124,09/01/2017,10894,25.00
Children's Family Services,Equipment and Materials Purcha,SAINSBURYS 0124,15/07/2016,8753,24.68
Children's Family Services,Equipment and Materials Purcha,SAINSBURYS 0124,19/09/2016,9491,7.50
Children's Family Services,Equipment and Materials Purcha,SAINSBURYS 0124,22/09/2016,9546,7.50
Children's Family Services,Equipment and Materials Purcha,SAINSBURYS 0420,04/01/2017,10886,37.50
Children's Family Services,Equipment and Materials Purcha,SAINSBURYS 0420,06/01/2017,10892,-9.00
Children's Family Services,Equipment and Materials Purcha,SAINSBURYS 0433,06/01/2017,10891,10.00
Children's Family Services,Equipment and Materials Purcha,SAINSBURYS 0513,05/09/2016,9334,25.74
Children's Family Services,Equipment and Materials Purcha,SAINSBURYS 0513,14/02/2017,11435,8.00
Children's Family Services,Equipment and Materials Purcha,SAINSBURYS 0637,22/12/2016,10771,10.55
Children's Family Services,Equipment and Materials Purcha,SAINSBURYS 0649,20/07/2016,8805,5.05
Children's Family Services,Equipment and Materials Purcha,SAINSBURYS 2306,09/01/2017,10893,-25.00
Children's Family Services,Equipment and Materials Purcha,SAINSBURYS 4939,22/06/2016,8475,5.32
Children's Family Services,Equipment and Materials Purcha,SAINSBURYS SACAT 0124,19/10/2016,9883,6.00
Children's Family Services,Equipment and Materials Purcha,SAINSBURYS SACAT 0164,10/06/2016,8334,2.92
Children's Family Services,Equipment and Materials Purcha,SAINSBURYS SACAT 0420,15/08/2016,9100,29.55
Children's Family Services,Equipment and Materials Purcha,SAINSBURYS SACAT 0420,26/12/2016,10791,8.00
Children's Family Services,Equipment and Materials Purcha,SAINSBURYS SACAT 0515,21/07/2016,8842,4.80
Children's Family Services,Equipment and Materials Purcha,SAINSBURYS SACAT 2045,19/09/2016,9508,30.10
Children's Family Services,Equipment and Materials Purcha,SAINSBURYS SACAT 4572,29/08/2016,9275,2.50
Children's Family Services,Equipment and Materials Purcha,SAINSBURYS SACAT 4572,31/03/2016,7635,2.20
Children's Family Services,Equipment and Materials Purcha,SAINSBURYS TO YOU 0444,08/02/2017,11353,26.00
Children's Family Services,Equipment and Materials Purcha,SAINSBURYS TO YOU 0567,23/08/2016,9196,5.00
Children's Family Services,Equipment and Materials Purcha,SAINSBURYS TO YOU 0637,09/02/2017,11358,34.50
Children's Family Services,Equipment and Materials Purcha,SAINSBURYS TO YOU 0637,11/05/2016,8026,86.17
Children's Family Services,Equipment and Materials Purcha,SAINSBURYS TO YOU 0637,22/11/2016,10348,-0.75
Children's Family Services,Equipment and Materials Purcha,SCREWFIX,03/02/2017,10875,79.16
Children's Family Services,Equipment and Materials Purcha,SHARED EARTH YORK LTD,14/03/2016,7442,11.99
Children's Family Services,Equipment and Materials Purcha,SMYTHS TOYS,29/11/2016,10419,50.03
Children's Family Services,Equipment and Materials Purcha,SOUTHGATE & FINCHL,17/11/2016,10281,287.00
Children's Family Services,Equipment and Materials Purcha,SOUTHGATE & FINCHL,25/11/2016,10386,230.63
Children's Family Services,Equipment and Materials Purcha,SPORTSDIRECT 396,12/12/2016,10596,23.94
Children's Family Services,Equipment and Materials Purcha,TESCO - SELLER_IST_1_2,08/03/2016,7364,599.98
Children's Family Services,Equipment and Materials Purcha,TESCO DIRECT,21/12/2016,10750,19.00
Children's Family Services,Equipment and Materials Purcha,TESCO STORE 2126,11/07/2016,8705,3.20
Children's Family Services,Equipment and Materials Purcha,TESCO STORE 2126,23/03/2016,7572,43.47
Children's Family Services,Equipment and Materials Purcha,TESCO STORE 2296,01/08/2016,8976,6.45
Children's Family Services,Equipment and Materials Purcha,TESCO STORE 2296,10/02/2017,11377,57.00
Children's Family Services,Equipment and Materials Purcha,TESCO STORE 2296,13/02/2017,11401,6.05
Children's Family Services,Equipment and Materials Purcha,TESCO STORE 2296,16/09/2016,9484,19.00
Children's Family Services,Equipment and Materials Purcha,TESCO STORE 2296,24/03/2016,7591,16.95
Children's Family Services,Equipment and Materials Purcha,TESCO STORE 3032,05/01/2017,10887,17.50
Children's Family Services,Equipment and Materials Purcha,TESCO STORE 3032,24/03/2017,11772,-4.50
Children's Family Services,Equipment and Materials Purcha,TESCO STORE 3032,27/02/2017,11607,110.65
Children's Family Services,Equipment and Materials Purcha,TESCO STORES 2296,02/02/2017,11216,4.05
Children's Family Services,Equipment and Materials Purcha,TESCO STORES 2296,26/08/2016,9266,20.50
Children's Family Services,Equipment and Materials Purcha,TESCO STORES 2467,23/06/2016,8490,6.00
Children's Family Services,Equipment and Materials Purcha,TESCO STORES 6440,13/09/2016,9442,106.84
Children's Family Services,Equipment and Materials Purcha,TESCO STORES-2131,09/01/2017,10979,4.16
Children's Family Services,Equipment and Materials Purcha,THE BOOK PEOPLE,21/02/2017,11508,58.10
Children's Family Services,Equipment and Materials Purcha,THE BOOK PEOPLE,23/02/2017,11541,5.59
Children's Family Services,Equipment and Materials Purcha,THE BOOK PEOPLE,23/02/2017,11542,5.40
Children's Family Services,Equipment and Materials Purcha,THE BOOK PEOPLE,27/02/2017,11589,-10.99
Children's Family Services,Equipment and Materials Purcha,THE BOOK PEOPLE,29/11/2016,10430,51.96
Children's Family Services,Equipment and Materials Purcha,THE WORKS,06/02/2017,11321,12.00
Children's Family Services,Equipment and Materials Purcha,THE WORKS,16/05/2016,8067,19.00
Children's Family Services,Equipment and Materials Purcha,TOUCH-NEEDS LTD,01/08/2016,8967,402.00
Children's Family Services,Equipment and Materials Purcha,TOUCH-NEEDS LTD,01/08/2016,8968,402.00
Children's Family Services,Equipment and Materials Purcha,TOUCH-NEEDS LTD,07/09/2016,9369,278.75
Children's Family Services,Equipment and Materials Purcha,TOUCH-NEEDS LTD,07/09/2016,9370,278.75
Children's Family Services,Equipment and Materials Purcha,TRESPASS (FARNBOROUGH),12/12/2016,10595,23.94
Children's Family Services,Equipment and Materials Purcha,TUBDIRECT.CO.UK,10/08/2015,4947,99.95
Children's Family Services,Equipment and Materials Purcha,VALUE PRODUCTS LTD,03/04/2017,12113,13.75
Children's Family Services,Equipment and Materials Purcha,VALUE PRODUCTS LTD,22/06/2016,8487,11.05
Children's Family Services,Equipment and Materials Purcha,VISIONAID TECHNOLOGIES,27/09/2016,9631,87.12
Children's Family Services,Equipment and Materials Purcha,WAITROSE 124,23/06/2016,8491,2.25
Children's Family Services,Equipment and Materials Purcha,WH SMITH,23/03/2017,11770,34.99
Children's Family Services,Equipment and Materials Purcha,WHSMITH.CO.UK,17/08/2016,9129,8.48
Children's Family Services,Equipment and Materials Purcha,WICKES,01/06/2016,8214,32.06
Children's Family Services,Equipment and Materials Purcha,WICKES,07/12/2016,10542,4.16
Children's Family Services,Equipment and Materials Purcha,WILKO RETAIL LIMIT,11/04/2016,7723,10.00
Children's Family Services,Equipment and Materials Purcha,WILKO RETAIL LIMIT,17/05/2016,8094,0.45
Children's Family Services,Equipment and Materials Purcha,WILKO.COM,23/03/2016,7571,38.34
Children's Family Services,Equipment and Materials Purcha,WILKO.COM,24/03/2016,7592,-10.00
Children's Family Services,Equipment and Materials Purcha,WINTERS HAULAGE,11/11/2016,10208,207.00
Children's Family Services,Equipment and Materials Purcha,WOWCHER,20/02/2017,11492,-209.98
Children's Family Services,Equipment and Materials Purcha,WOWCHER,25/01/2017,11242,209.98
Children's Family Services,Equipment and Materials Purcha,WP-REMOTE-CONTROLS-SHO,07/10/2016,9739,34.85
Children's Family Services,Equipment and Materials Purcha,WP-STAMPS DIRECT L,16/03/2016,7471,39.56
Children's Family Services,Equipment and Materials Purcha,WWW.ALIEXPRESS.COM,10/11/2016,10199,8.52
Children's Family Services,Equipment and Materials Purcha,WWW.ARGOS.CO.UK,06/02/2017,11279,216.92
Children's Family Services,Equipment and Materials Purcha,WWW.ARGOS.CO.UK,10/03/2017,11685,509.94
Children's Family Services,Equipment and Materials Purcha,WWW.ARGOS.CO.UK,29/03/2017,11692,319.98
Children's Family Services,Equipment and Materials Purcha,WWW.BAKERROSS.CO.UK,09/08/2016,9052,75.65
Children's Family Services,Equipment and Materials Purcha,WWW.BAKERROSS.CO.UK,09/09/2016,9403,67.08
Children's Family Services,Equipment and Materials Purcha,WWW.BAKERROSS.CO.UK,18/11/2016,10300,45.36
Children's Family Services,Equipment and Materials Purcha,WWW.BAKERROSS.CO.UK,30/11/2016,10436,29.07
Children's Family Services,Equipment and Materials Purcha,WWW.CAKE-STUFF.COM,21/12/2016,10751,8.33
Children's Family Services,Equipment and Materials Purcha,WWW.CARPHONEWAREHO,11/05/2016,8025,21.65
Children's Family Services,Equipment and Materials Purcha,WWW.COOPELECTRICAL,30/03/2017,11695,329.98
Children's Family Services,Equipment and Materials Purcha,WWW.CURTAINSCURTAINSCU,16/08/2016,9114,270.95
Children's Family Services,Equipment and Materials Purcha,WWW.CURTAINSCURTAINSCU,19/08/2016,9116,-27.00
Children's Family Services,Equipment and Materials Purcha,WWW.DFS.CO.UK,05/12/2016,10502,200.00
Children's Family Services,Equipment and Materials Purcha,WWW.DFS.CO.UK,09/08/2016,9051,186.00
Children's Family Services,Equipment and Materials Purcha,WWW.DFS.CO.UK,10/08/2016,9057,400.00
Children's Family Services,Equipment and Materials Purcha,WWW.DFS.CO.UK,12/08/2016,9087,400.00
Children's Family Services,Equipment and Materials Purcha,WWW.DFS.CO.UK,15/08/2016,9098,400.00
Children's Family Services,Equipment and Materials Purcha,WWW.DFS.CO.UK,15/09/2016,9464,350.00
Children's Family Services,Equipment and Materials Purcha,WWW.DFS.CO.UK,20/09/2016,9520,120.00
Children's Family Services,Equipment and Materials Purcha,WWW.EARLYYEARSRESOURCE,30/03/2016,7625,81.70
Children's Family Services,Equipment and Materials Purcha,WWW.FURNITUREATWORK.CO,16/11/2016,10265,416.40
Children's Family Services,Equipment and Materials Purcha,WWW.GAK.CO.UK,17/08/2016,9126,106.49
Children's Family Services,Equipment and Materials Purcha,WWW.INSPIREMETOYS.CO.U,12/12/2016,10605,45.83
Children's Family Services,Equipment and Materials Purcha,WWW.INSPIREMETOYS.CO.U,17/06/2016,8417,34.25
Children's Family Services,Equipment and Materials Purcha,WWW.JOHNLEWIS.COM,08/02/2017,11352,-150.00
Children's Family Services,Equipment and Materials Purcha,WWW.JOHNLEWIS.COM,08/11/2016,10158,-50.00
Children's Family Services,Equipment and Materials Purcha,WWW.JOHNLEWIS.COM,08/11/2016,10159,-85.00
Children's Family Services,Equipment and Materials Purcha,WWW.JOHNLEWIS.COM,10/01/2017,11157,54.99
Children's Family Services,Equipment and Materials Purcha,WWW.JOHNLEWIS.COM,11/01/2017,10898,220.00
Children's Family Services,Equipment and Materials Purcha,WWW.JOHNLEWIS.COM,23/01/2017,10928,18.49
Children's Family Services,Equipment and Materials Purcha,WWW.JOHNLEWIS.COM,31/10/2016,10038,31.98
Children's Family Services,Equipment and Materials Purcha,WWW.JOHNLEWIS.COM,31/10/2016,10043,135.00
Children's Family Services,Equipment and Materials Purcha,WWW.MATTRESSMAN.CO.UK,02/12/2016,10491,268.00
Children's Family Services,Equipment and Materials Purcha,WWW.MATTRESSMAN.CO.UK,07/06/2016,8305,155.00
Children's Family Services,Equipment and Materials Purcha,WWW.MORLEYS.CO.UK,07/10/2016,9744,50.93
Children's Family Services,Equipment and Materials Purcha,WWW.NISBETS.COM,01/02/2017,10991,130.98
Children's Family Services,Equipment and Materials Purcha,WWW.NISBETS.COM,15/08/2016,9097,15.99
Children's Family Services,Equipment and Materials Purcha,WWW.NISBETS.COM,18/10/2016,9868,51.54
Children's Family Services,Equipment and Materials Purcha,WWW.PARTYDELIGHTS.CO.U,12/12/2016,10586,21.41
Children's Family Services,Equipment and Materials Purcha,WWW.ROBROYALBUMS.C,29/03/2017,12040,56.50
Children's Family Services,Equipment and Materials Purcha,WWW.RYMAN.CO.UK,02/07/2015,4533,119.94
Children's Family Services,Equipment and Materials Purcha,WWW.THEWORKS.CO.UK,14/12/2016,10636,23.99
Children's Family Services,Equipment and Materials Purcha,WWW.TTS-GROUPS.CO.UK,23/09/2016,9570,484.63
Children's Family Services,Equipment and Materials Purcha,WWW.TTS-GROUPS.CO.UK,23/09/2016,9571,486.52
Children's Family Services,Equipment and Materials Purcha,WWW.TTS-GROUPS.CO.UK,23/09/2016,9572,499.78
Children's Family Services,Equipment and Materials Purcha,WWW.TTS-GROUPS.CO.UK,23/09/2016,9573,492.02
Children's Family Services,Equipment and Materials Purcha,WWW.TTS-GROUPS.CO.UK,23/09/2016,9574,250.47
Children's Family Services,Equipment and Materials Purcha,WWW.TTS-GROUPS.CO.UK,24/02/2017,11570,59.46
Children's Family Services,Equipment and Materials Purcha,YELLOW DOOR LTD,06/02/2017,11311,18.00
Children's Family Services,Equipment and Materials Purcha,YELLOW DOOR LTD,07/02/2017,11344,38.00
Children's Family Services,Equipment and Materials Repair,DOMESTIC & GENERAL,23/01/2017,10929,213.88
Children's Family Services,Equipment and Materials Repair,DOMESTIC & GENERAL,30/05/2016,8207,56.00
Children's Family Services,Equipment and Materials Repair,TESCO STORES 2544,02/05/2016,7961,10.46
Children's Family Services,Fees and Charges,AMAZON UK MARKETPLACE,06/12/2016,10537,4.99
Children's Family Services,Fees and Charges,SAINSBURYS TO YOU 0637,01/12/2016,10482,75.05
Children's Family Services,Fixtures and fittings,PHOTOBOX LIMITED,07/10/2016,9743,0.96
Children's Family Services,Fixtures and fittings,WWW.EUREKADIRECT.CO.UK,02/03/2017,11273,61.50
Children's Family Services,Food Costs,AMORINO,05/09/2016,9330,17.50
Children's Family Services,Food Costs,ARGOS RETAIL GROUP,26/09/2016,9596,43.94
Children's Family Services,Food Costs,ASDA HOME SHOPPING,01/02/2017,10917,204.76
Children's Family Services,Food Costs,ASDA HOME SHOPPING,01/02/2017,10918,-0.66
Children's Family Services,Food Costs,ASDA HOME SHOPPING,01/06/2016,8215,146.98
Children's Family Services,Food Costs,ASDA HOME SHOPPING,01/06/2016,8216,-2.09
Children's Family Services,Food Costs,ASDA HOME SHOPPING,01/08/2016,8962,52.13
Children's Family Services,Food Costs,ASDA HOME SHOPPING,01/11/2016,10065,126.46
Children's Family Services,Food Costs,ASDA HOME SHOPPING,01/11/2016,10066,-3.64
Children's Family Services,Food Costs,ASDA HOME SHOPPING,02/01/2017,10818,91.19
Children's Family Services,Food Costs,ASDA HOME SHOPPING,02/01/2017,10820,-3.60
Children's Family Services,Food Costs,ASDA HOME SHOPPING,02/02/2017,10922,-10.00
Children's Family Services,Food Costs,ASDA HOME SHOPPING,02/05/2016,7950,64.54
Children's Family Services,Food Costs,ASDA HOME SHOPPING,02/05/2016,7952,0.01
Children's Family Services,Food Costs,ASDA HOME SHOPPING,02/08/2016,8988,148.53
Children's Family Services,Food Costs,ASDA HOME SHOPPING,02/08/2016,8989,-6.21
Children's Family Services,Food Costs,ASDA HOME SHOPPING,02/12/2016,10483,146.83
Children's Family Services,Food Costs,ASDA HOME SHOPPING,02/12/2016,10484,-6.30
Children's Family Services,Food Costs,ASDA HOME SHOPPING,03/01/2017,10826,56.74
Children's Family Services,Food Costs,ASDA HOME SHOPPING,03/10/2016,9669,53.42
Children's Family Services,Food Costs,ASDA HOME SHOPPING,04/05/2016,7975,158.89
Children's Family Services,Food Costs,ASDA HOME SHOPPING,04/05/2016,7976,-0.11
Children's Family Services,Food Costs,ASDA HOME SHOPPING,04/07/2016,8615,97.17
Children's Family Services,Food Costs,ASDA HOME SHOPPING,04/07/2016,8616,0.06
Children's Family Services,Food Costs,ASDA HOME SHOPPING,04/10/2016,9693,123.32
Children's Family Services,Food Costs,ASDA HOME SHOPPING,04/10/2016,9694,0.44
Children's Family Services,Food Costs,ASDA HOME SHOPPING,05/04/2016,7693,121.48
Children's Family Services,Food Costs,ASDA HOME SHOPPING,05/04/2016,7694,-3.17
Children's Family Services,Food Costs,ASDA HOME SHOPPING,05/07/2016,8634,118.29
Children's Family Services,Food Costs,ASDA HOME SHOPPING,05/07/2016,8635,-4.84
Children's Family Services,Food Costs,ASDA HOME SHOPPING,06/06/2016,8264,38.64
Children's Family Services,Food Costs,ASDA HOME SHOPPING,06/09/2016,9360,0.16
Children's Family Services,Food Costs,ASDA HOME SHOPPING,06/09/2016,9361,221.75
Children's Family Services,Food Costs,ASDA HOME SHOPPING,07/06/2016,8291,104.84
Children's Family Services,Food Costs,ASDA HOME SHOPPING,07/06/2016,8292,-0.62
Children's Family Services,Food Costs,ASDA HOME SHOPPING,08/02/2017,11351,8.00
Children's Family Services,Food Costs,ASDA HOME SHOPPING,08/03/2016,7369,204.58
Children's Family Services,Food Costs,ASDA HOME SHOPPING,08/03/2016,7371,-6.66
Children's Family Services,Food Costs,ASDA HOME SHOPPING,08/07/2016,8683,87.64
Children's Family Services,Food Costs,ASDA HOME SHOPPING,08/08/2016,9027,44.25
Children's Family Services,Food Costs,ASDA HOME SHOPPING,08/11/2016,10156,123.13
Children's Family Services,Food Costs,ASDA HOME SHOPPING,08/11/2016,10157,-3.60
Children's Family Services,Food Costs,ASDA HOME SHOPPING,08/12/2016,10554,157.09
Children's Family Services,Food Costs,ASDA HOME SHOPPING,08/12/2016,10555,-6.00
Children's Family Services,Food Costs,ASDA HOME SHOPPING,09/08/2016,9049,131.22
Children's Family Services,Food Costs,ASDA HOME SHOPPING,09/08/2016,9050,0.42
Children's Family Services,Food Costs,ASDA HOME SHOPPING,10/01/2017,10895,155.59
Children's Family Services,Food Costs,ASDA HOME SHOPPING,10/01/2017,10896,-12.09
Children's Family Services,Food Costs,ASDA HOME SHOPPING,10/01/2017,10897,-13.24
Children's Family Services,Food Costs,ASDA HOME SHOPPING,10/03/2017,11887,41.00
Children's Family Services,Food Costs,ASDA HOME SHOPPING,10/03/2017,11888,-10.67
Children's Family Services,Food Costs,ASDA HOME SHOPPING,10/05/2016,8017,122.43
Children's Family Services,Food Costs,ASDA HOME SHOPPING,10/11/2016,10193,45.00
Children's Family Services,Food Costs,ASDA HOME SHOPPING,10/11/2016,10194,-14.00
Children's Family Services,Food Costs,ASDA HOME SHOPPING,11/10/2016,9788,129.59
Children's Family Services,Food Costs,ASDA HOME SHOPPING,11/10/2016,9789,-0.85
Children's Family Services,Food Costs,ASDA HOME SHOPPING,12/04/2016,7736,107.12
Children's Family Services,Food Costs,ASDA HOME SHOPPING,12/04/2016,7737,-0.15
Children's Family Services,Food Costs,ASDA HOME SHOPPING,12/07/2016,8716,176.33
Children's Family Services,Food Costs,ASDA HOME SHOPPING,12/07/2016,8717,-1.99
Children's Family Services,Food Costs,ASDA HOME SHOPPING,12/08/2016,9086,37.06
Children's Family Services,Food Costs,ASDA HOME SHOPPING,12/12/2016,10583,49.62
Children's Family Services,Food Costs,ASDA HOME SHOPPING,12/12/2016,10585,-2.50
Children's Family Services,Food Costs,ASDA HOME SHOPPING,13/09/2016,9432,179.68
Children's Family Services,Food Costs,ASDA HOME SHOPPING,13/09/2016,9433,-0.36
Children's Family Services,Food Costs,ASDA HOME SHOPPING,13/12/2016,10626,63.59
Children's Family Services,Food Costs,ASDA HOME SHOPPING,14/06/2016,8367,173.32
Children's Family Services,Food Costs,ASDA HOME SHOPPING,14/06/2016,8368,-1.07
Children's Family Services,Food Costs,ASDA HOME SHOPPING,14/10/2016,9835,41.00
Children's Family Services,Food Costs,ASDA HOME SHOPPING,14/10/2016,9836,-16.67
Children's Family Services,Food Costs,ASDA HOME SHOPPING,14/11/2016,10229,89.46
Children's Family Services,Food Costs,ASDA HOME SHOPPING,14/11/2016,10230,-3.60
Children's Family Services,Food Costs,ASDA HOME SHOPPING,15/03/2016,7452,-7.07
Children's Family Services,Food Costs,ASDA HOME SHOPPING,15/03/2016,7453,176.35
Children's Family Services,Food Costs,ASDA HOME SHOPPING,15/03/2016,7454,-2.87
Children's Family Services,Food Costs,ASDA HOME SHOPPING,16/05/2016,8058,46.18
Children's Family Services,Food Costs,ASDA HOME SHOPPING,16/08/2016,9111,197.44
Children's Family Services,Food Costs,ASDA HOME SHOPPING,16/08/2016,9112,-5.03
Children's Family Services,Food Costs,ASDA HOME SHOPPING,17/05/2016,8082,132.19
Children's Family Services,Food Costs,ASDA HOME SHOPPING,17/10/2016,9844,47.82
Children's Family Services,Food Costs,ASDA HOME SHOPPING,17/10/2016,9845,-0.22
Children's Family Services,Food Costs,ASDA HOME SHOPPING,18/01/2017,10902,163.59
Children's Family Services,Food Costs,ASDA HOME SHOPPING,18/01/2017,10903,-1.80
Children's Family Services,Food Costs,ASDA HOME SHOPPING,18/10/2016,9870,113.09
Children's Family Services,Food Costs,ASDA HOME SHOPPING,19/07/2016,8788,206.62
Children's Family Services,Food Costs,ASDA HOME SHOPPING,19/07/2016,8789,-0.43
Children's Family Services,Food Costs,ASDA HOME SHOPPING,19/09/2016,9512,62.41
Children's Family Services,Food Costs,ASDA HOME SHOPPING,19/09/2016,9513,-1.50
Children's Family Services,Food Costs,ASDA HOME SHOPPING,20/02/2017,11479,105.15
Children's Family Services,Food Costs,ASDA HOME SHOPPING,20/02/2017,11480,-12.14
Children's Family Services,Food Costs,ASDA HOME SHOPPING,20/09/2016,9518,172.56
Children's Family Services,Food Costs,ASDA HOME SHOPPING,20/09/2016,9519,-0.72
Children's Family Services,Food Costs,ASDA HOME SHOPPING,21/06/2016,8443,135.96
Children's Family Services,Food Costs,ASDA HOME SHOPPING,21/06/2016,8444,-2.00
Children's Family Services,Food Costs,ASDA HOME SHOPPING,21/11/2016,10313,144.93
Children's Family Services,Food Costs,ASDA HOME SHOPPING,21/12/2016,10739,144.74
Children's Family Services,Food Costs,ASDA HOME SHOPPING,22/03/2016,7543,-0.10
Children's Family Services,Food Costs,ASDA HOME SHOPPING,22/03/2016,7544,137.91
Children's Family Services,Food Costs,ASDA HOME SHOPPING,22/04/2016,7857,89.69
Children's Family Services,Food Costs,ASDA HOME SHOPPING,22/04/2016,7858,-3.00
Children's Family Services,Food Costs,ASDA HOME SHOPPING,22/04/2016,7859,-1.00
Children's Family Services,Food Costs,ASDA HOME SHOPPING,22/08/2016,9179,66.71
Children's Family Services,Food Costs,ASDA HOME SHOPPING,22/08/2016,9180,-1.13
Children's Family Services,Food Costs,ASDA HOME SHOPPING,23/05/2016,8134,36.00
Children's Family Services,Food Costs,ASDA HOME SHOPPING,23/05/2016,8135,53.55
Children's Family Services,Food Costs,ASDA HOME SHOPPING,23/08/2016,9191,125.96
Children's Family Services,Food Costs,ASDA HOME SHOPPING,24/05/2016,8159,148.15
Children's Family Services,Food Costs,ASDA HOME SHOPPING,24/06/2016,8510,61.63
Children's Family Services,Food Costs,ASDA HOME SHOPPING,24/06/2016,8511,-0.40
Children's Family Services,Food Costs,ASDA HOME SHOPPING,24/10/2016,9927,83.76
Children's Family Services,Food Costs,ASDA HOME SHOPPING,24/10/2016,9928,-4.78
Children's Family Services,Food Costs,ASDA HOME SHOPPING,24/11/2016,10367,36.00
Children's Family Services,Food Costs,ASDA HOME SHOPPING,25/01/2017,10907,164.12
Children's Family Services,Food Costs,ASDA HOME SHOPPING,25/01/2017,10908,-6.64
Children's Family Services,Food Costs,ASDA HOME SHOPPING,25/03/2016,7599,102.41
Children's Family Services,Food Costs,ASDA HOME SHOPPING,25/07/2016,8870,88.33
Children's Family Services,Food Costs,ASDA HOME SHOPPING,25/07/2016,8871,0.35
Children's Family Services,Food Costs,ASDA HOME SHOPPING,25/10/2016,9953,149.61
Children's Family Services,Food Costs,ASDA HOME SHOPPING,25/11/2016,10378,176.69
Children's Family Services,Food Costs,ASDA HOME SHOPPING,26/04/2016,7898,163.00
Children's Family Services,Food Costs,ASDA HOME SHOPPING,26/04/2016,7899,-3.06
Children's Family Services,Food Costs,ASDA HOME SHOPPING,26/07/2016,8918,163.32
Children's Family Services,Food Costs,ASDA HOME SHOPPING,26/09/2016,9587,51.04
Children's Family Services,Food Costs,ASDA HOME SHOPPING,27/09/2016,9618,-1.63
Children's Family Services,Food Costs,ASDA HOME SHOPPING,27/09/2016,9619,151.88
Children's Family Services,Food Costs,ASDA HOME SHOPPING,28/06/2016,8540,110.82
Children's Family Services,Food Costs,ASDA HOME SHOPPING,28/06/2016,8541,0.05
Children's Family Services,Food Costs,ASDA HOME SHOPPING,29/08/2016,9292,60.43
Children's Family Services,Food Costs,ASDA HOME SHOPPING,29/08/2016,9293,-0.50
Children's Family Services,Food Costs,ASDA HOME SHOPPING,30/01/2017,10914,49.55
Children's Family Services,Food Costs,ASDA HOME SHOPPING,30/03/2016,7620,127.02
Children's Family Services,Food Costs,ASDA HOME SHOPPING,30/03/2016,7621,-0.82
Children's Family Services,Food Costs,ASDA HOME SHOPPING,30/05/2016,8206,53.70
Children's Family Services,Food Costs,ASDA HOME SHOPPING,31/08/2016,9304,97.00
Children's Family Services,Food Costs,ASDA HOME SHOPPING,31/08/2016,9305,-1.01
Children's Family Services,Food Costs,ASDA HOME SHOPPING,31/10/2016,10030,71.80
Children's Family Services,Food Costs,ASDA HOME SHOPPING,31/10/2016,10031,-3.00
Children's Family Services,Food Costs,ASDA SUPERSTORE,01/09/2016,9308,26.30
Children's Family Services,Food Costs,ASDA SUPERSTORE,01/12/2016,10454,39.74
Children's Family Services,Food Costs,ASDA SUPERSTORE,02/02/2017,10952,45.84
Children's Family Services,Food Costs,ASDA SUPERSTORE,02/03/2017,11272,55.59
Children's Family Services,Food Costs,ASDA SUPERSTORE,02/06/2016,8237,29.75
Children's Family Services,Food Costs,ASDA SUPERSTORE,03/03/2017,11287,27.23
Children's Family Services,Food Costs,ASDA SUPERSTORE,03/11/2016,10107,44.50
Children's Family Services,Food Costs,ASDA SUPERSTORE,04/04/2016,7674,35.23
Children's Family Services,Food Costs,ASDA SUPERSTORE,04/05/2016,7974,1.97
Children's Family Services,Food Costs,ASDA SUPERSTORE,05/05/2016,7981,2.29
Children's Family Services,Food Costs,ASDA SUPERSTORE,06/10/2016,9725,36.45
Children's Family Services,Food Costs,ASDA SUPERSTORE,07/06/2016,8308,6.00
Children's Family Services,Food Costs,ASDA SUPERSTORE,08/03/2016,7367,6.72
Children's Family Services,Food Costs,ASDA SUPERSTORE,08/04/2016,7713,42.10
Children's Family Services,Food Costs,ASDA SUPERSTORE,08/08/2016,9044,4.45
Children's Family Services,Food Costs,ASDA SUPERSTORE,08/09/2016,9375,20.31
Children's Family Services,Food Costs,ASDA SUPERSTORE,08/12/2016,10559,147.63
Children's Family Services,Food Costs,ASDA SUPERSTORE,09/02/2017,11370,28.94
Children's Family Services,Food Costs,ASDA SUPERSTORE,09/03/2017,12013,35.12
Children's Family Services,Food Costs,ASDA SUPERSTORE,09/06/2016,8327,21.88
Children's Family Services,Food Costs,ASDA SUPERSTORE,10/03/2016,7394,12.08
Children's Family Services,Food Costs,ASDA SUPERSTORE,10/03/2016,7402,76.29
Children's Family Services,Food Costs,ASDA SUPERSTORE,10/05/2016,8014,21.13
Children's Family Services,Food Costs,ASDA SUPERSTORE,10/10/2016,9748,72.85
Children's Family Services,Food Costs,ASDA SUPERSTORE,10/11/2016,10191,20.61
Children's Family Services,Food Costs,ASDA SUPERSTORE,11/04/2016,7725,49.80
Children's Family Services,Food Costs,ASDA SUPERSTORE,11/08/2016,9078,26.17
Children's Family Services,Food Costs,ASDA SUPERSTORE,11/10/2016,9793,23.52
Children's Family Services,Food Costs,ASDA SUPERSTORE,13/04/2016,7748,20.16
Children's Family Services,Food Costs,ASDA SUPERSTORE,13/09/2016,9436,26.56
Children's Family Services,Food Costs,ASDA SUPERSTORE,13/10/2016,9816,57.67
Children's Family Services,Food Costs,ASDA SUPERSTORE,14/03/2016,7421,5.36
Children's Family Services,Food Costs,ASDA SUPERSTORE,14/03/2016,7430,66.32
Children's Family Services,Food Costs,ASDA SUPERSTORE,14/07/2016,8737,12.62
Children's Family Services,Food Costs,ASDA SUPERSTORE,14/07/2016,8740,18.85
Children's Family Services,Food Costs,ASDA SUPERSTORE,14/12/2016,10629,8.06
Children's Family Services,Food Costs,ASDA SUPERSTORE,15/02/2017,11447,8.93
Children's Family Services,Food Costs,ASDA SUPERSTORE,15/04/2016,7782,41.58
Children's Family Services,Food Costs,ASDA SUPERSTORE,15/09/2016,9471,53.91
Children's Family Services,Food Costs,ASDA SUPERSTORE,15/12/2016,10651,57.58
Children's Family Services,Food Costs,ASDA SUPERSTORE,16/03/2016,7488,3.00
Children's Family Services,Food Costs,ASDA SUPERSTORE,16/03/2017,11836,45.60
Children's Family Services,Food Costs,ASDA SUPERSTORE,16/06/2016,8398,19.87
Children's Family Services,Food Costs,ASDA SUPERSTORE,17/02/2017,11470,34.40
Children's Family Services,Food Costs,ASDA SUPERSTORE,17/08/2016,9127,3.18
Children's Family Services,Food Costs,ASDA SUPERSTORE,17/11/2016,10283,27.56
Children's Family Services,Food Costs,ASDA SUPERSTORE,18/05/2016,8108,5.25
Children's Family Services,Food Costs,ASDA SUPERSTORE,19/05/2016,8120,58.94
Children's Family Services,Food Costs,ASDA SUPERSTORE,19/08/2016,9155,12.95
Children's Family Services,Food Costs,ASDA SUPERSTORE,19/08/2016,9156,21.08
Children's Family Services,Food Costs,ASDA SUPERSTORE,20/04/2016,7825,32.14
Children's Family Services,Food Costs,ASDA SUPERSTORE,20/04/2016,7827,9.00
Children's Family Services,Food Costs,ASDA SUPERSTORE,20/04/2016,7834,6.00
Children's Family Services,Food Costs,ASDA SUPERSTORE,20/10/2016,9902,65.37
Children's Family Services,Food Costs,ASDA SUPERSTORE,21/03/2016,7514,66.62
Children's Family Services,Food Costs,ASDA SUPERSTORE,21/03/2017,11698,20.14
Children's Family Services,Food Costs,ASDA SUPERSTORE,21/09/2016,9542,4.98
Children's Family Services,Food Costs,ASDA SUPERSTORE,22/06/2016,8484,5.00
Children's Family Services,Food Costs,ASDA SUPERSTORE,22/06/2016,8485,16.00
Children's Family Services,Food Costs,ASDA SUPERSTORE,22/07/2016,8852,37.83
Children's Family Services,Food Costs,ASDA SUPERSTORE,22/12/2016,10758,27.79
Children's Family Services,Food Costs,ASDA SUPERSTORE,22/12/2016,10759,32.89
Children's Family Services,Food Costs,ASDA SUPERSTORE,22/12/2016,10772,23.20
Children's Family Services,Food Costs,ASDA SUPERSTORE,23/02/2017,11546,33.20
Children's Family Services,Food Costs,ASDA SUPERSTORE,23/03/2017,11840,39.47
Children's Family Services,Food Costs,ASDA SUPERSTORE,23/06/2016,8492,30.25
Children's Family Services,Food Costs,ASDA SUPERSTORE,23/09/2016,9565,4.75
Children's Family Services,Food Costs,ASDA SUPERSTORE,23/09/2016,9579,1.05
Children's Family Services,Food Costs,ASDA SUPERSTORE,24/03/2016,7587,54.79
Children's Family Services,Food Costs,ASDA SUPERSTORE,25/07/2016,8869,14.29
Children's Family Services,Food Costs,ASDA SUPERSTORE,25/07/2016,8905,11.10
Children's Family Services,Food Costs,ASDA SUPERSTORE,25/10/2016,9950,8.63
Children's Family Services,Food Costs,ASDA SUPERSTORE,26/04/2016,7902,44.41
Children's Family Services,Food Costs,ASDA SUPERSTORE,27/05/2016,8193,9.64
Children's Family Services,Food Costs,ASDA SUPERSTORE,27/10/2016,9997,43.27
Children's Family Services,Food Costs,ASDA SUPERSTORE,28/04/2016,7922,14.77
Children's Family Services,Food Costs,ASDA SUPERSTORE,28/07/2016,8932,20.82
Children's Family Services,Food Costs,ASDA SUPERSTORE,28/09/2016,9646,49.21
Children's Family Services,Food Costs,ASDA SUPERSTORE,29/04/2016,7930,1.87
Children's Family Services,Food Costs,ASDA SUPERSTORE,29/09/2016,9653,53.88
Children's Family Services,Food Costs,ASDA SUPERSTORE,30/06/2016,8585,34.04
Children's Family Services,Food Costs,ASDA SUPERSTORE,30/09/2016,9662,29.68
Children's Family Services,Food Costs,BROADWAY NEWSAGENT FOO,13/06/2016,8357,5.16
Children's Family Services,Food Costs,BURGER KING,17/05/2016,8091,12.58
Children's Family Services,Food Costs,BURGER KING,29/07/2016,8954,24.43
Children's Family Services,Food Costs,COCORICO,28/04/2016,7927,180.29
Children's Family Services,Food Costs,CO-OP GROUP 180222,08/03/2016,7370,5.84
Children's Family Services,Food Costs,CO-OP GROUP 180222,16/12/2016,10657,23.06
Children's Family Services,Food Costs,CO-OP GROUP 180222,23/02/2017,11535,14.59
Children's Family Services,Food Costs,CO-OP GROUP 180222,30/06/2016,8582,6.99
Children's Family Services,Food Costs,CO-OP GROUP 180240,01/06/2016,8226,15.09
Children's Family Services,Food Costs,CO-OP GROUP 180240,08/08/2016,9040,11.21
Children's Family Services,Food Costs,CO-OP GROUP 180240,13/02/2017,11415,53.73
Children's Family Services,Food Costs,CO-OP GROUP 180240,13/02/2017,11418,6.08
Children's Family Services,Food Costs,CO-OP GROUP 180240,16/05/2016,8074,9.70
Children's Family Services,Food Costs,CO-OP GROUP 180240,23/05/2016,8150,15.86
Children's Family Services,Food Costs,CO-OP GROUP 180240,26/10/2016,9981,2.98
Children's Family Services,Food Costs,CO-OP GROUP 180240,28/11/2016,10414,13.32
Children's Family Services,Food Costs,CO-OP GROUP FOOD,01/03/2017,11670,7.46
Children's Family Services,Food Costs,CO-OP GROUP FOOD,04/04/2016,7673,6.98
Children's Family Services,Food Costs,CO-OP GROUP FOOD,06/05/2016,7987,19.00
Children's Family Services,Food Costs,CO-OP GROUP FOOD,07/03/2017,12096,1.39
Children's Family Services,Food Costs,CO-OP GROUP FOOD,07/11/2016,10143,2.60
Children's Family Services,Food Costs,CO-OP GROUP FOOD,09/01/2017,11032,4.00
Children's Family Services,Food Costs,CO-OP GROUP FOOD,10/01/2017,11208,3.14
Children's Family Services,Food Costs,CO-OP GROUP FOOD,10/10/2016,9770,11.75
Children's Family Services,Food Costs,CO-OP GROUP FOOD,10/10/2016,9779,15.19
Children's Family Services,Food Costs,CO-OP GROUP FOOD,12/04/2016,7745,0.89
Children's Family Services,Food Costs,CO-OP GROUP FOOD,12/07/2016,8714,18.55
Children's Family Services,Food Costs,CO-OP GROUP FOOD,12/09/2016,9426,9.87
Children's Family Services,Food Costs,CO-OP GROUP FOOD,14/10/2016,9837,12.53
Children's Family Services,Food Costs,CO-OP GROUP FOOD,15/04/2016,7780,10.10
Children's Family Services,Food Costs,CO-OP GROUP FOOD,16/11/2016,10263,5.80
Children's Family Services,Food Costs,CO-OP GROUP FOOD,17/03/2017,11674,4.90
Children's Family Services,Food Costs,CO-OP GROUP FOOD,18/01/2017,11210,6.55
Children's Family Services,Food Costs,CO-OP GROUP FOOD,18/01/2017,11213,2.15
Children's Family Services,Food Costs,CO-OP GROUP FOOD,20/03/2017,11950,2.44
Children's Family Services,Food Costs,CO-OP GROUP FOOD,21/03/2017,11739,2.07
Children's Family Services,Food Costs,CO-OP GROUP FOOD,21/04/2016,7851,14.05
Children's Family Services,Food Costs,CO-OP GROUP FOOD,21/10/2016,9913,7.79
Children's Family Services,Food Costs,CO-OP GROUP FOOD,21/12/2016,10736,3.00
Children's Family Services,Food Costs,CO-OP GROUP FOOD,24/11/2016,10374,6.43
Children's Family Services,Food Costs,CO-OP GROUP FOOD,25/03/2016,7594,3.24
Children's Family Services,Food Costs,CO-OP GROUP FOOD,27/01/2017,11214,6.74
Children's Family Services,Food Costs,CO-OP GROUP FOOD,27/03/2017,12104,4.99
Children's Family Services,Food Costs,CO-OP GROUP FOOD,28/10/2016,10019,8.48
Children's Family Services,Food Costs,CO-OP GROUP FOOD,29/07/2016,8953,2.00
Children's Family Services,Food Costs,CO-OP GROUP FOOD,29/08/2016,9295,7.34
Children's Family Services,Food Costs,CO-OP GROUP FOOD,31/10/2016,10045,13.15
Children's Family Services,Food Costs,COSTA COFFEE,06/03/2017,11712,8.29
Children's Family Services,Food Costs,COSTA COFFEE,31/03/2017,11951,10.30
Children's Family Services,Food Costs,COSTCUTTER,25/03/2016,7593,7.76
Children's Family Services,Food Costs,DOMINOS PIZZA,01/03/2017,11651,53.95
Children's Family Services,Food Costs,EDDIES MEAT MARKET,12/05/2016,8037,18.00
Children's Family Services,Food Costs,EDDIES MEAT MARKET,18/05/2016,8095,20.00
Children's Family Services,Food Costs,EL GUACA MEXICAN GRILL,15/08/2016,9092,122.16
Children's Family Services,Food Costs,FIOS FOOD CENTRE,14/02/2017,11425,25.74
Children's Family Services,Food Costs,FIOS FOOD CENTRE,14/03/2016,7429,21.46
Children's Family Services,Food Costs,GOURMET BURGER,02/09/2016,9326,75.75
Children's Family Services,Food Costs,IKEA,17/06/2015,4318,399.00
Children's Family Services,Food Costs,INTERNATIONAL FOOD CEN,13/02/2017,11404,5.87
Children's Family Services,Food Costs,JRC WOODGREEN TRADING,22/08/2016,9181,14.10
Children's Family Services,Food Costs,JRC WOODGREEN TRADING,22/08/2016,9182,95.94
Children's Family Services,Food Costs,KABUL CITY REST,21/12/2016,10753,100.00
Children's Family Services,Food Costs,KFC - SOUTHGATE,13/06/2016,8360,6.62
Children's Family Services,Food Costs,KFC - SOUTHGATE,14/06/2016,8379,4.12
Children's Family Services,Food Costs,KFC - SOUTHGATE,14/06/2016,8382,3.32
Children's Family Services,Food Costs,KFC - WOOD GREEN EX,20/02/2017,11466,4.99
Children's Family Services,Food Costs,KFC PROGRESS ROAD,26/09/2016,9600,7.77
Children's Family Services,Food Costs,L B BARNET PARKING,17/05/2016,8093,1.30
Children's Family Services,Food Costs,LIDL UK,15/03/2017,11947,8.68
Children's Family Services,Food Costs,LUL TICKET MACHINE,31/03/2017,11740,20.00
Children's Family Services,Food Costs,MAKCARIES CENTRAL PARA,27/06/2016,8518,10.79
Children's Family Services,Food Costs,MAKRO SELF SERVICE ENF,03/08/2016,8994,46.38
Children's Family Services,Food Costs,MAKRO SELF SERVICE ENF,19/12/2016,10675,6.38
Children's Family Services,Food Costs,MANGOS,06/05/2016,7994,31.30
Children's Family Services,Food Costs,MARKS&SPENCER PLC,22/12/2016,10755,24.00
Children's Family Services,Food Costs,MARKS&SPENCER PLC,28/04/2016,7920,12.00
Children's Family Services,Food Costs,MARKS&SPENCER PLC SF,15/11/2016,10247,7.00
Children's Family Services,Food Costs,MCDONALDS,01/08/2016,8969,14.05
Children's Family Services,Food Costs,MCDONALDS,01/08/2016,8970,4.83
Children's Family Services,Food Costs,MCDONALDS,01/08/2016,8972,0.83
Children's Family Services,Food Costs,MCDONALDS,02/03/2017,11257,4.46
Children's Family Services,Food Costs,MCDONALDS,03/05/2016,7967,9.58
Children's Family Services,Food Costs,MCDONALDS,03/06/2016,8245,19.08
Children's Family Services,Food Costs,MCDONALDS,03/06/2016,8247,0.83
Children's Family Services,Food Costs,MCDONALDS,04/01/2017,11197,10.84
Children's Family Services,Food Costs,MCDONALDS,05/12/2016,10517,3.91
Children's Family Services,Food Costs,MCDONALDS,06/09/2016,9343,7.13
Children's Family Services,Food Costs,MCDONALDS,09/01/2017,11200,6.84
Children's Family Services,Food Costs,MCDONALDS,09/05/2016,7997,9.74
Children's Family Services,Food Costs,MCDONALDS,09/08/2016,9054,27.93
Children's Family Services,Food Costs,MCDONALDS,09/11/2016,10174,4.13
Children's Family Services,Food Costs,MCDONALDS,10/01/2017,11203,8.32
Children's Family Services,Food Costs,MCDONALDS,10/01/2017,11207,10.12
Children's Family Services,Food Costs,MCDONALDS,14/06/2016,8380,2.49
Children's Family Services,Food Costs,MCDONALDS,14/06/2016,8381,1.33
Children's Family Services,Food Costs,MCDONALDS,15/03/2017,11948,4.72
Children's Family Services,Food Costs,MCDONALDS,17/10/2016,9858,8.73
Children's Family Services,Food Costs,MCDONALDS,18/10/2016,9877,4.34
Children's Family Services,Food Costs,MCDONALDS,19/08/2016,9154,18.76
Children's Family Services,Food Costs,MCDONALDS,21/02/2017,11518,10.13
Children's Family Services,Food Costs,MCDONALDS,21/11/2016,10323,11.22
Children's Family Services,Food Costs,MCDONALDS,21/11/2016,10326,4.57
Children's Family Services,Food Costs,MCDONALDS,23/05/2016,8147,16.36
Children's Family Services,Food Costs,MCDONALDS,23/05/2016,8148,3.07
Children's Family Services,Food Costs,MCDONALDS,23/05/2016,8153,0.99
Children's Family Services,Food Costs,MCDONALDS,27/10/2016,9984,17.06
Children's Family Services,Food Costs,MCDONALDS,28/09/2016,9649,4.08
Children's Family Services,Food Costs,MCDONALDS,29/06/2016,8558,12.54
Children's Family Services,Food Costs,MCDONALD'S,07/07/2016,8652,2.32
Children's Family Services,Food Costs,MIDDLESEX UNIVERSITY H,03/03/2017,11283,2.98
Children's Family Services,Food Costs,MIDDLESEX UNIVERSITY H,07/03/2017,11877,2.68
Children's Family Services,Food Costs,MIDDLESEX UNIVERSITY H,10/03/2017,11878,2.98
Children's Family Services,Food Costs,MIDDLESEX UNIVERSITY H,13/03/2017,11880,2.98
Children's Family Services,Food Costs,MIDDLESEX UNIVERSITY H,14/03/2017,11881,7.57
Children's Family Services,Food Costs,MIDDLESEX UNIVERSITY H,16/03/2017,11882,1.49
Children's Family Services,Food Costs,MIDDLESEX UNIVERSITY H,20/03/2017,11738,2.98
Children's Family Services,Food Costs,MIDDLESEX UNIVERSITY H,22/02/2017,11527,1.49
Children's Family Services,Food Costs,MIDDLESEX UNIVERSITY H,23/03/2017,11884,2.98
Children's Family Services,Food Costs,MIDDLESEX UNIVERSITY H,27/02/2017,11616,2.98
Children's Family Services,Food Costs,MIDDLESEX UNIVERSITY H,28/03/2017,11885,2.98
Children's Family Services,Food Costs,MORRISONS STORES,31/03/2017,12106,3.75
Children's Family Services,Food Costs,MOTO BURGER KING,01/07/2016,8602,17.47
Children's Family Services,Food Costs,NANDOS FINCHLEY,07/06/2016,8306,22.90
Children's Family Services,Food Costs,NANDOS FINCHLEY,07/06/2016,8307,37.00
Children's Family Services,Food Costs,NANDOS FINCHLEY,09/05/2016,7996,28.45
Children's Family Services,Food Costs,NANDOS FINCHLEY,20/02/2017,11493,53.35
Children's Family Services,Food Costs,PABULUM CATERING,29/08/2016,9278,20.00
Children's Family Services,Food Costs,PAK BEWAL SUPERMAR,12/12/2016,10582,11.06
Children's Family Services,Food Costs,PARENTPAY E-COM R,01/02/2017,10919,25.00
Children's Family Services,Food Costs,PARENTPAY E-COM R,18/01/2017,10877,5.00
Children's Family Services,Food Costs,PIZZA HUT 789,10/08/2016,9062,70.47
Children's Family Services,Food Costs,PIZZA MAN,07/12/2016,10547,28.50
Children's Family Services,Food Costs,PORTERHOUSE MEAT & POU,15/02/2017,11441,13.90
Children's Family Services,Food Costs,PORTERHOUSE MEAT & POU,19/12/2016,10678,80.00
Children's Family Services,Food Costs,SAINSBURYS,28/10/2016,10016,20.00
Children's Family Services,Food Costs,SAINSBURYS,30/01/2017,10951,20.00
Children's Family Services,Food Costs,SAINSBURYS 0124,05/01/2017,10888,47.15
Children's Family Services,Food Costs,SAINSBURYS 0124,07/03/2016,7346,64.43
Children's Family Services,Food Costs,SAINSBURYS 0124,07/11/2016,10135,67.72
Children's Family Services,Food Costs,SAINSBURYS 0124,09/01/2017,10894,54.13
Children's Family Services,Food Costs,SAINSBURYS 0124,13/01/2017,10900,109.80
Children's Family Services,Food Costs,SAINSBURYS 0124,18/07/2016,8767,36.78
Children's Family Services,Food Costs,SAINSBURYS 0124,18/11/2016,10287,21.85
Children's Family Services,Food Costs,SAINSBURYS 0124,19/12/2016,10676,91.63
Children's Family Services,Food Costs,SAINSBURYS 0124,22/09/2016,9546,2.50
Children's Family Services,Food Costs,SAINSBURYS 0124,28/11/2016,10394,28.30
Children's Family Services,Food Costs,SAINSBURYS 0124,29/12/2016,10806,63.70
Children's Family Services,Food Costs,SAINSBURYS 0420,01/04/2016,7649,9.00
Children's Family Services,Food Costs,SAINSBURYS 0420,03/10/2016,9688,7.85
Children's Family Services,Food Costs,SAINSBURYS 0420,06/06/2016,8263,7.90
Children's Family Services,Food Costs,SAINSBURYS 0420,14/06/2016,8366,4.00
Children's Family Services,Food Costs,SAINSBURYS 0420,18/07/2016,8768,7.14
Children's Family Services,Food Costs,SAINSBURYS 0513,01/06/2016,8223,87.93
Children's Family Services,Food Costs,SAINSBURYS 0513,01/11/2016,10076,168.67
Children's Family Services,Food Costs,SAINSBURYS 0513,02/05/2016,7957,131.75
Children's Family Services,Food Costs,SAINSBURYS 0513,03/04/2017,11851,158.06
Children's Family Services,Food Costs,SAINSBURYS 0513,03/10/2016,9678,188.49
Children's Family Services,Food Costs,SAINSBURYS 0513,04/07/2016,8620,144.96
Children's Family Services,Food Costs,SAINSBURYS 0513,04/10/2016,9703,183.56
Children's Family Services,Food Costs,SAINSBURYS 0513,05/07/2016,8638,108.53
Children's Family Services,Food Costs,SAINSBURYS 0513,05/09/2016,9335,125.20
Children's Family Services,Food Costs,SAINSBURYS 0513,05/12/2016,10505,165.21
Children's Family Services,Food Costs,SAINSBURYS 0513,06/02/2017,11303,148.76
Children's Family Services,Food Costs,SAINSBURYS 0513,06/03/2017,12010,156.89
Children's Family Services,Food Costs,SAINSBURYS 0513,06/06/2016,8271,134.35
Children's Family Services,Food Costs,SAINSBURYS 0513,07/03/2017,12012,146.70
Children's Family Services,Food Costs,SAINSBURYS 0513,07/11/2016,10147,150.73
Children's Family Services,Food Costs,SAINSBURYS 0513,08/03/2016,7375,126.21
Children's Family Services,Food Costs,SAINSBURYS 0513,08/06/2016,8317,142.61
Children's Family Services,Food Costs,SAINSBURYS 0513,08/08/2016,9036,123.87
Children's Family Services,Food Costs,SAINSBURYS 0513,09/11/2016,10182,22.00
Children's Family Services,Food Costs,SAINSBURYS 0513,09/11/2016,10183,174.00
Children's Family Services,Food Costs,SAINSBURYS 0513,10/05/2016,8021,76.72
Children's Family Services,Food Costs,SAINSBURYS 0513,10/10/2016,9752,136.93
Children's Family Services,Food Costs,SAINSBURYS 0513,11/07/2016,8702,144.41
Children's Family Services,Food Costs,SAINSBURYS 0513,11/10/2016,9799,153.61
Children's Family Services,Food Costs,SAINSBURYS 0513,11/11/2016,10216,42.70
Children's Family Services,Food Costs,SAINSBURYS 0513,12/09/2016,9414,148.65
Children's Family Services,Food Costs,SAINSBURYS 0513,12/12/2016,10600,148.17
Children's Family Services,Food Costs,SAINSBURYS 0513,13/02/2017,11398,169.49
Children's Family Services,Food Costs,SAINSBURYS 0513,13/03/2017,12015,139.99
Children's Family Services,Food Costs,SAINSBURYS 0513,13/06/2016,8352,129.36
Children's Family Services,Food Costs,SAINSBURYS 0513,13/07/2016,8731,145.18
Children's Family Services,Food Costs,SAINSBURYS 0513,13/12/2016,10619,131.26
Children's Family Services,Food Costs,SAINSBURYS 0513,14/02/2017,11436,124.88
Children's Family Services,Food Costs,SAINSBURYS 0513,14/03/2017,12017,173.84
Children's Family Services,Food Costs,SAINSBURYS 0513,14/04/2016,7772,32.50
Children's Family Services,Food Costs,SAINSBURYS 0513,14/06/2016,8377,141.02
Children's Family Services,Food Costs,SAINSBURYS 0513,14/11/2016,10239,140.17
Children's Family Services,Food Costs,SAINSBURYS 0513,15/11/2016,10260,146.76
Children's Family Services,Food Costs,SAINSBURYS 0513,16/05/2016,8066,142.31
Children's Family Services,Food Costs,SAINSBURYS 0513,17/05/2016,8088,126.35
Children's Family Services,Food Costs,SAINSBURYS 0513,17/10/2016,9848,168.29
Children's Family Services,Food Costs,SAINSBURYS 0513,18/07/2016,8771,155.53
Children's Family Services,Food Costs,SAINSBURYS 0513,18/10/2016,9876,177.73
Children's Family Services,Food Costs,SAINSBURYS 0513,19/04/2016,7821,133.07
Children's Family Services,Food Costs,SAINSBURYS 0513,19/12/2016,10684,45.30
Children's Family Services,Food Costs,SAINSBURYS 0513,19/12/2016,10685,170.86
Children's Family Services,Food Costs,SAINSBURYS 0513,20/02/2017,11483,27.30
Children's Family Services,Food Costs,SAINSBURYS 0513,20/02/2017,11484,120.13
Children's Family Services,Food Costs,SAINSBURYS 0513,20/03/2017,11839,161.43
Children's Family Services,Food Costs,SAINSBURYS 0513,20/07/2016,8825,161.96
Children's Family Services,Food Costs,SAINSBURYS 0513,20/12/2016,10713,251.73
Children's Family Services,Food Costs,SAINSBURYS 0513,21/02/2017,11516,105.48
Children's Family Services,Food Costs,SAINSBURYS 0513,21/03/2016,7533,68.50
Children's Family Services,Food Costs,SAINSBURYS 0513,21/03/2017,11720,52.20
Children's Family Services,Food Costs,SAINSBURYS 0513,21/03/2017,11721,155.84
Children's Family Services,Food Costs,SAINSBURYS 0513,22/06/2016,8482,168.55
Children's Family Services,Food Costs,SAINSBURYS 0513,22/08/2016,9172,131.24
Children's Family Services,Food Costs,SAINSBURYS 0513,23/05/2016,8142,166.18
Children's Family Services,Food Costs,SAINSBURYS 0513,23/11/2016,10362,143.06
Children's Family Services,Food Costs,SAINSBURYS 0513,24/03/2017,11845,53.45
Children's Family Services,Food Costs,SAINSBURYS 0513,24/10/2016,9935,150.15
Children's Family Services,Food Costs,SAINSBURYS 0513,25/04/2016,7886,134.45
Children's Family Services,Food Costs,SAINSBURYS 0513,25/07/2016,8873,105.45
Children's Family Services,Food Costs,SAINSBURYS 0513,25/10/2016,9963,145.30
Children's Family Services,Food Costs,SAINSBURYS 0513,26/05/2016,8188,59.40
Children's Family Services,Food Costs,SAINSBURYS 0513,26/07/2016,8920,126.10
Children's Family Services,Food Costs,SAINSBURYS 0513,26/09/2016,9597,151.23
Children's Family Services,Food Costs,SAINSBURYS 0513,26/12/2016,10797,54.85
Children's Family Services,Food Costs,SAINSBURYS 0513,27/02/2017,11594,137.00
Children's Family Services,Food Costs,SAINSBURYS 0513,27/04/2016,7912,130.90
Children's Family Services,Food Costs,SAINSBURYS 0513,27/05/2016,8198,126.77
Children's Family Services,Food Costs,SAINSBURYS 0513,28/02/2017,11635,122.96
Children's Family Services,Food Costs,SAINSBURYS 0513,28/06/2016,8546,110.30
Children's Family Services,Food Costs,SAINSBURYS 0513,28/11/2016,10408,168.69
Children's Family Services,Food Costs,SAINSBURYS 0513,29/08/2016,9285,161.80
Children's Family Services,Food Costs,SAINSBURYS 0513,29/11/2016,10429,121.89
Children's Family Services,Food Costs,SAINSBURYS 0513,30/01/2017,11120,149.64
Children's Family Services,Food Costs,SAINSBURYS 0513,31/01/2017,11122,155.15
Children's Family Services,Food Costs,SAINSBURYS 0513,31/10/2016,10034,147.36
Children's Family Services,Food Costs,SAINSBURYS 0515,04/08/2016,9005,5.60
Children's Family Services,Food Costs,SAINSBURYS 0515,12/12/2016,10607,30.20
Children's Family Services,Food Costs,SAINSBURYS 0637,13/01/2017,10880,1.58
Children's Family Services,Food Costs,SAINSBURYS 0637,19/07/2016,8785,24.03
Children's Family Services,Food Costs,SAINSBURYS 0637,20/09/2016,9516,30.13
Children's Family Services,Food Costs,SAINSBURYS 0637,24/02/2017,11552,2.08
Children's Family Services,Food Costs,SAINSBURYS 0637,24/05/2016,8157,112.39
Children's Family Services,Food Costs,SAINSBURYS 0637,25/01/2017,10847,4.00
Children's Family Services,Food Costs,SAINSBURYS 0637,31/01/2017,10850,1.39
Children's Family Services,Food Costs,SAINSBURYS LOC (4216),13/09/2016,9431,19.08
Children's Family Services,Food Costs,SAINSBURYS LOC (4216),17/03/2016,7490,9.92
Children's Family Services,Food Costs,SAINSBURYS LOC (4216),23/11/2016,10352,13.63
Children's Family Services,Food Costs,SAINSBURYS LOC4952,28/11/2016,10413,1.65
Children's Family Services,Food Costs,SAINSBURYS SACAT 0124,01/12/2016,10452,18.30
Children's Family Services,Food Costs,SAINSBURYS SACAT 0124,05/07/2016,8633,7.44
Children's Family Services,Food Costs,SAINSBURYS SACAT 0124,06/10/2016,9723,13.90
Children's Family Services,Food Costs,SAINSBURYS SACAT 0124,09/03/2016,7388,4.50
Children's Family Services,Food Costs,SAINSBURYS SACAT 0124,19/10/2016,9883,11.54
Children's Family Services,Food Costs,SAINSBURYS SACAT 0124,29/07/2016,8952,3.50
Children's Family Services,Food Costs,SAINSBURYS SACAT 0124,29/08/2016,9277,16.50
Children's Family Services,Food Costs,SAINSBURYS SACAT 0164,01/07/2016,8604,5.19
Children's Family Services,Food Costs,SAINSBURYS SACAT 0420,14/11/2016,10227,12.10
Children's Family Services,Food Costs,SAINSBURYS SACAT 0420,26/12/2016,10791,10.15
Children's Family Services,Food Costs,SAINSBURYS SACAT 0444,27/10/2016,9987,11.50
Children's Family Services,Food Costs,SAINSBURYS SACAT 0637,06/07/2016,8653,0.62
Children's Family Services,Food Costs,SAINSBURYS SACAT 0637,09/11/2016,10167,5.83
Children's Family Services,Food Costs,SAINSBURYS SACAT 0637,20/02/2017,11477,4.17
Children's Family Services,Food Costs,SAINSBURYS SACAT 0637,20/04/2016,7826,12.13
Children's Family Services,Food Costs,SAINSBURYS SACAT 0637,20/05/2016,8123,12.15
Children's Family Services,Food Costs,SAINSBURYS SACAT 0637,20/05/2016,8124,10.10
Children's Family Services,Food Costs,SAINSBURYS SACAT 0637,20/10/2016,9900,0.62
Children's Family Services,Food Costs,SAINSBURYS SACAT 0637,22/03/2016,7540,5.37
Children's Family Services,Food Costs,SAINSBURYS SACAT 0637,22/12/2016,10770,15.25
Children's Family Services,Food Costs,SAINSBURYS SACAT 0637,23/03/2017,11702,3.88
Children's Family Services,Food Costs,SAINSBURYS SACAT 0637,26/04/2016,7895,9.42
Children's Family Services,Food Costs,SAINSBURYS SACAT 0637,29/03/2017,11705,0.83
Children's Family Services,Food Costs,SAINSBURYS SACAT 4412,04/01/2017,10885,2.70
Children's Family Services,Food Costs,SAINSBURYS SACAT 4572,17/03/2017,11737,5.12
Children's Family Services,Food Costs,SAINSBURYS SACAT 4572,20/10/2016,9904,2.65
Children's Family Services,Food Costs,SAINSBURYS SACAT 4572,20/10/2016,9905,2.00
Children's Family Services,Food Costs,SAINSBURYS SACAT 4952,10/10/2016,9781,3.35
Children's Family Services,Food Costs,SAINSBURYS SACAT 4952,19/09/2016,9514,2.94
Children's Family Services,Food Costs,SAINSBURYS SACAT 4952,31/03/2017,12105,2.50
Children's Family Services,Food Costs,SAINSBURYS TO YOU 0444,01/11/2016,10068,38.20
Children's Family Services,Food Costs,SAINSBURYS TO YOU 0444,02/01/2017,10821,169.35
Children's Family Services,Food Costs,SAINSBURYS TO YOU 0444,06/01/2017,10941,137.28
Children's Family Services,Food Costs,SAINSBURYS TO YOU 0444,08/02/2017,11353,101.25
Children's Family Services,Food Costs,SAINSBURYS TO YOU 0444,11/01/2017,10942,99.57
Children's Family Services,Food Costs,SAINSBURYS TO YOU 0444,13/09/2016,9435,109.23
Children's Family Services,Food Costs,SAINSBURYS TO YOU 0444,16/01/2017,10946,88.10
Children's Family Services,Food Costs,SAINSBURYS TO YOU 0444,17/01/2017,10947,125.56
Children's Family Services,Food Costs,SAINSBURYS TO YOU 0444,19/09/2016,9492,147.60
Children's Family Services,Food Costs,SAINSBURYS TO YOU 0444,20/09/2016,9521,97.00
Children's Family Services,Food Costs,SAINSBURYS TO YOU 0444,21/11/2016,10316,169.93
Children's Family Services,Food Costs,SAINSBURYS TO YOU 0444,24/01/2017,10950,99.20
Children's Family Services,Food Costs,SAINSBURYS TO YOU 0444,26/12/2016,10794,126.01
Children's Family Services,Food Costs,SAINSBURYS TO YOU 0444,27/03/2017,11847,115.05
Children's Family Services,Food Costs,SAINSBURYS TO YOU 0444,27/09/2016,9620,72.50
Children's Family Services,Food Costs,SAINSBURYS TO YOU 0444,28/03/2017,11849,123.32
Children's Family Services,Food Costs,SAINSBURYS TO YOU 0567,01/08/2016,8965,94.05
Children's Family Services,Food Costs,SAINSBURYS TO YOU 0567,02/08/2016,8990,80.83
Children's Family Services,Food Costs,SAINSBURYS TO YOU 0567,03/05/2016,7965,151.45
Children's Family Services,Food Costs,SAINSBURYS TO YOU 0567,05/04/2016,7695,117.66
Children's Family Services,Food Costs,SAINSBURYS TO YOU 0567,06/09/2016,9350,95.15
Children's Family Services,Food Costs,SAINSBURYS TO YOU 0567,09/05/2016,8002,138.40
Children's Family Services,Food Costs,SAINSBURYS TO YOU 0567,11/04/2016,7726,130.85
Children's Family Services,Food Costs,SAINSBURYS TO YOU 0567,15/08/2016,9101,210.80
Children's Family Services,Food Costs,SAINSBURYS TO YOU 0567,16/08/2016,9122,92.45
Children's Family Services,Food Costs,SAINSBURYS TO YOU 0567,18/04/2016,7788,163.35
Children's Family Services,Food Costs,SAINSBURYS TO YOU 0567,23/08/2016,9196,93.85
Children's Family Services,Food Costs,SAINSBURYS TO YOU 0567,27/06/2016,8526,191.89
Children's Family Services,Food Costs,SAINSBURYS TO YOU 0567,30/05/2016,8209,160.55
Children's Family Services,Food Costs,SAINSBURYS TO YOU 0567,30/08/2016,9299,186.14
Children's Family Services,Food Costs,SAINSBURYS TO YOU 0637,01/06/2016,8212,88.63
Children's Family Services,Food Costs,SAINSBURYS TO YOU 0637,01/11/2016,10059,76.99
Children's Family Services,Food Costs,SAINSBURYS TO YOU 0637,02/08/2016,8987,44.13
Children's Family Services,Food Costs,SAINSBURYS TO YOU 0637,03/08/2016,8993,27.17
Children's Family Services,Food Costs,SAINSBURYS TO YOU 0637,04/05/2016,7970,183.52
Children's Family Services,Food Costs,SAINSBURYS TO YOU 0637,04/10/2016,9692,76.59
Children's Family Services,Food Costs,SAINSBURYS TO YOU 0637,05/01/2017,11230,72.16
Children's Family Services,Food Costs,SAINSBURYS TO YOU 0637,05/04/2016,7692,40.42
Children's Family Services,Food Costs,SAINSBURYS TO YOU 0637,05/07/2016,8630,182.62
Children's Family Services,Food Costs,SAINSBURYS TO YOU 0637,05/10/2016,9708,30.71
Children's Family Services,Food Costs,SAINSBURYS TO YOU 0637,06/09/2016,9347,-71.35
Children's Family Services,Food Costs,SAINSBURYS TO YOU 0637,06/09/2016,9348,59.46
Children's Family Services,Food Costs,SAINSBURYS TO YOU 0637,06/12/2016,10538,151.57
Children's Family Services,Food Costs,SAINSBURYS TO YOU 0637,07/02/2017,11349,126.76
Children's Family Services,Food Costs,SAINSBURYS TO YOU 0637,07/06/2016,8290,17.47
Children's Family Services,Food Costs,SAINSBURYS TO YOU 0637,07/09/2016,9362,61.96
Children's Family Services,Food Costs,SAINSBURYS TO YOU 0637,08/03/2016,7365,99.01
Children's Family Services,Food Costs,SAINSBURYS TO YOU 0637,08/03/2016,7366,-2.50
Children's Family Services,Food Costs,SAINSBURYS TO YOU 0637,08/06/2016,8311,7.69
Children's Family Services,Food Costs,SAINSBURYS TO YOU 0637,08/11/2016,10153,88.85
Children's Family Services,Food Costs,SAINSBURYS TO YOU 0637,08/12/2016,10566,40.30
Children's Family Services,Food Costs,SAINSBURYS TO YOU 0637,09/08/2016,9047,35.12
Children's Family Services,Food Costs,SAINSBURYS TO YOU 0637,09/11/2016,10168,27.88
Children's Family Services,Food Costs,SAINSBURYS TO YOU 0637,10/01/2017,11232,40.34
Children's Family Services,Food Costs,SAINSBURYS TO YOU 0637,10/01/2017,11233,122.09
Children's Family Services,Food Costs,SAINSBURYS TO YOU 0637,10/05/2016,8015,166.19
Children's Family Services,Food Costs,SAINSBURYS TO YOU 0637,10/06/2016,8332,62.20
Children's Family Services,Food Costs,SAINSBURYS TO YOU 0637,11/10/2016,9785,83.56
Children's Family Services,Food Costs,SAINSBURYS TO YOU 0637,12/04/2016,7734,35.13
Children's Family Services,Food Costs,SAINSBURYS TO YOU 0637,12/04/2016,7735,-0.67
Children's Family Services,Food Costs,SAINSBURYS TO YOU 0637,12/07/2016,8713,119.25
Children's Family Services,Food Costs,SAINSBURYS TO YOU 0637,12/10/2016,9806,27.00
Children's Family Services,Food Costs,SAINSBURYS TO YOU 0637,13/09/2016,9430,81.39
Children's Family Services,Food Costs,SAINSBURYS TO YOU 0637,13/12/2016,10627,119.05
Children's Family Services,Food Costs,SAINSBURYS TO YOU 0637,14/02/2017,11440,55.00
Children's Family Services,Food Costs,SAINSBURYS TO YOU 0637,14/06/2016,8363,26.42
Children's Family Services,Food Costs,SAINSBURYS TO YOU 0637,14/12/2016,10648,94.55
Children's Family Services,Food Costs,SAINSBURYS TO YOU 0637,15/03/2016,7449,99.63
Children's Family Services,Food Costs,SAINSBURYS TO YOU 0637,15/03/2017,11696,28.29
Children's Family Services,Food Costs,SAINSBURYS TO YOU 0637,15/11/2016,10244,86.37
Children's Family Services,Food Costs,SAINSBURYS TO YOU 0637,16/08/2016,9109,78.38
Children's Family Services,Food Costs,SAINSBURYS TO YOU 0637,16/08/2016,9110,39.67
Children's Family Services,Food Costs,SAINSBURYS TO YOU 0637,17/01/2017,11238,180.30
Children's Family Services,Food Costs,SAINSBURYS TO YOU 0637,17/05/2016,8080,176.46
Children's Family Services,Food Costs,SAINSBURYS TO YOU 0637,17/05/2016,8081,-0.58
Children's Family Services,Food Costs,SAINSBURYS TO YOU 0637,17/11/2016,10275,27.96
Children's Family Services,Food Costs,SAINSBURYS TO YOU 0637,18/01/2017,10881,40.75
Children's Family Services,Food Costs,SAINSBURYS TO YOU 0637,18/10/2016,9866,107.40
Children's Family Services,Food Costs,SAINSBURYS TO YOU 0637,19/04/2016,7805,102.58
Children's Family Services,Food Costs,SAINSBURYS TO YOU 0637,20/07/2016,8804,70.96
Children's Family Services,Food Costs,SAINSBURYS TO YOU 0637,20/09/2016,9515,136.95
Children's Family Services,Food Costs,SAINSBURYS TO YOU 0637,20/10/2016,9899,33.79
Children's Family Services,Food Costs,SAINSBURYS TO YOU 0637,20/12/2016,10733,93.49
Children's Family Services,Food Costs,SAINSBURYS TO YOU 0637,20/12/2016,10734,-2.30
Children's Family Services,Food Costs,SAINSBURYS TO YOU 0637,21/02/2017,11522,107.82
Children's Family Services,Food Costs,SAINSBURYS TO YOU 0637,21/06/2016,8442,23.21
Children's Family Services,Food Costs,SAINSBURYS TO YOU 0637,22/02/2017,11525,34.96
Children's Family Services,Food Costs,SAINSBURYS TO YOU 0637,22/03/2016,7539,118.08
Children's Family Services,Food Costs,SAINSBURYS TO YOU 0637,22/03/2017,11701,35.46
Children's Family Services,Food Costs,SAINSBURYS TO YOU 0637,22/11/2016,10347,106.67
Children's Family Services,Food Costs,SAINSBURYS TO YOU 0637,23/08/2016,9189,40.17
Children's Family Services,Food Costs,SAINSBURYS TO YOU 0637,24/01/2017,11241,137.83
Children's Family Services,Food Costs,SAINSBURYS TO YOU 0637,24/05/2016,8156,172.25
Children's Family Services,Food Costs,SAINSBURYS TO YOU 0637,25/10/2016,9948,37.67
Children's Family Services,Food Costs,SAINSBURYS TO YOU 0637,26/04/2016,7896,126.10
Children's Family Services,Food Costs,SAINSBURYS TO YOU 0637,26/07/2016,8911,54.00
Children's Family Services,Food Costs,SAINSBURYS TO YOU 0637,26/10/2016,9972,60.17
Children's Family Services,Food Costs,SAINSBURYS TO YOU 0637,27/09/2016,9611,75.64
Children's Family Services,Food Costs,SAINSBURYS TO YOU 0637,28/02/2017,11624,35.08
Children's Family Services,Food Costs,SAINSBURYS TO YOU 0637,28/02/2017,11645,134.11
Children's Family Services,Food Costs,SAINSBURYS TO YOU 0637,28/06/2016,8537,26.77
Children's Family Services,Food Costs,SAINSBURYS TO YOU 0637,28/09/2016,9632,-1.28
Children's Family Services,Food Costs,SAINSBURYS TO YOU 0637,28/09/2016,9633,45.29
Children's Family Services,Food Costs,SAINSBURYS TO YOU 0637,29/03/2017,11704,34.79
Children's Family Services,Food Costs,SAINSBURYS TO YOU 0637,29/11/2016,10431,124.80
Children's Family Services,Food Costs,SAINSBURYS TO YOU 0637,30/03/2016,7617,190.03
Children's Family Services,Food Costs,SAINSBURYS TO YOU 0637,31/01/2017,11244,157.91
Children's Family Services,Food Costs,SEKER,10/06/2016,8335,5.94
Children's Family Services,Food Costs,STARBUCKS,07/03/2016,7363,9.48
Children's Family Services,Food Costs,SUBWAY,06/09/2016,9354,7.10
Children's Family Services,Food Costs,SUBWAY,10/03/2017,12098,5.58
Children's Family Services,Food Costs,TESCO DELIVERY SAVER2,05/01/2017,11019,6.00
Children's Family Services,Food Costs,TESCO DELIVERY SAVER2,05/04/2016,7696,6.00
Children's Family Services,Food Costs,TESCO DELIVERY SAVER2,05/05/2016,7983,6.00
Children's Family Services,Food Costs,TESCO DELIVERY SAVER2,05/07/2016,8643,6.00
Children's Family Services,Food Costs,TESCO DELIVERY SAVER2,05/08/2016,9017,6.00
Children's Family Services,Food Costs,TESCO DELIVERY SAVER2,05/09/2016,9342,6.00
Children's Family Services,Food Costs,TESCO DELIVERY SAVER2,05/10/2016,9715,6.00
Children's Family Services,Food Costs,TESCO DELIVERY SAVER2,05/12/2016,10511,6.00
Children's Family Services,Food Costs,TESCO DELIVERY SAVER2,06/02/2017,11322,6.00
Children's Family Services,Food Costs,TESCO DELIVERY SAVER2,06/03/2017,11925,6.00
Children's Family Services,Food Costs,TESCO DELIVERY SAVER2,06/06/2016,8274,6.00
Children's Family Services,Food Costs,TESCO DELIVERY SAVER2,07/03/2016,7353,6.00
Children's Family Services,Food Costs,TESCO DELIVERY SAVER2,07/11/2016,10142,6.00
Children's Family Services,Food Costs,TESCO STORE 2296,02/12/2016,10496,27.92
Children's Family Services,Food Costs,TESCO STORE 2296,04/01/2017,11198,86.97
Children's Family Services,Food Costs,TESCO STORE 2296,04/08/2016,9012,40.21
Children's Family Services,Food Costs,TESCO STORE 2296,06/03/2017,12094,5.82
Children's Family Services,Food Costs,TESCO STORE 2296,06/07/2016,8662,41.44
Children's Family Services,Food Costs,TESCO STORE 2296,06/10/2016,9721,12.14
Children's Family Services,Food Costs,TESCO STORE 2296,07/02/2017,11338,126.96
Children's Family Services,Food Costs,TESCO STORE 2296,07/10/2016,9737,59.14
Children's Family Services,Food Costs,TESCO STORE 2296,07/12/2016,10548,38.90
Children's Family Services,Food Costs,TESCO STORE 2296,08/07/2016,8690,43.44
Children's Family Services,Food Costs,TESCO STORE 2296,08/12/2016,10550,31.48
Children's Family Services,Food Costs,TESCO STORE 2296,09/12/2016,10567,25.75
Children's Family Services,Food Costs,TESCO STORE 2296,09/12/2016,10568,25.00
Children's Family Services,Food Costs,TESCO STORE 2296,10/01/2017,11206,1.85
Children's Family Services,Food Costs,TESCO STORE 2296,10/02/2017,11378,4.00
Children's Family Services,Food Costs,TESCO STORE 2296,12/04/2016,7743,7.03
Children's Family Services,Food Costs,TESCO STORE 2296,12/04/2016,7744,93.08
Children's Family Services,Food Costs,TESCO STORE 2296,13/05/2016,8050,22.11
Children's Family Services,Food Costs,TESCO STORE 2296,18/08/2016,9136,23.98
Children's Family Services,Food Costs,TESCO STORE 2296,19/08/2016,9153,56.88
Children's Family Services,Food Costs,TESCO STORE 2296,20/01/2017,10948,92.92
Children's Family Services,Food Costs,TESCO STORE 2296,20/06/2016,8436,142.31
Children's Family Services,Food Costs,TESCO STORE 2296,23/09/2016,9578,34.51
Children's Family Services,Food Costs,TESCO STORE 2296,25/04/2016,7874,21.30
Children's Family Services,Food Costs,TESCO STORE 2296,25/08/2016,9246,48.70
Children's Family Services,Food Costs,TESCO STORE 2296,27/01/2017,11118,59.58
Children's Family Services,Food Costs,TESCO STORE 2296,29/08/2016,9297,15.44
Children's Family Services,Food Costs,TESCO STORE 2296,29/08/2016,9298,0.70
Children's Family Services,Food Costs,TESCO STORE 2296,31/03/2016,7628,30.06
Children's Family Services,Food Costs,TESCO STORE 2467,20/06/2016,8429,56.15
Children's Family Services,Food Costs,TESCO STORE 3032,27/02/2017,11606,3.80
Children's Family Services,Food Costs,TESCO STORE 3032,27/02/2017,11607,6.00
Children's Family Services,Food Costs,TESCO STORE 3333,21/12/2016,10746,3.50
Children's Family Services,Food Costs,TESCO STORE 3422,22/03/2017,11892,54.83
Children's Family Services,Food Costs,TESCO STORE 3539,21/06/2016,8468,-7.24
Children's Family Services,Food Costs,TESCO STORES 2062,20/07/2016,8834,6.11
Children's Family Services,Food Costs,TESCO STORES 2296,03/02/2017,11218,19.59
Children's Family Services,Food Costs,TESCO STORES 2296,04/04/2016,7689,2.74
Children's Family Services,Food Costs,TESCO STORES 2296,04/04/2016,7690,4.00
Children's Family Services,Food Costs,TESCO STORES 2296,08/11/2016,10165,27.93
Children's Family Services,Food Costs,TESCO STORES 2296,09/01/2017,11202,6.78
Children's Family Services,Food Costs,TESCO STORES 2296,12/01/2017,11209,7.95
Children's Family Services,Food Costs,TESCO STORES 2296,12/12/2016,10606,7.89
Children's Family Services,Food Costs,TESCO STORES 2296,13/03/2017,12099,37.29
Children's Family Services,Food Costs,TESCO STORES 2296,13/06/2016,8359,2.50
Children's Family Services,Food Costs,TESCO STORES 2296,14/04/2016,7775,1.40
Children's Family Services,Food Costs,TESCO STORES 2296,21/02/2017,11519,2.00
Children's Family Services,Food Costs,TESCO STORES 2296,22/12/2016,10757,16.11
Children's Family Services,Food Costs,TESCO STORES 2296,28/11/2016,10415,6.20
Children's Family Services,Food Costs,TESCO STORES 2296,29/04/2016,7943,9.19
Children's Family Services,Food Costs,TESCO STORES 2467,23/06/2016,8490,6.84
Children's Family Services,Food Costs,TESCO STORES 5125,09/08/2016,9053,115.79
Children's Family Services,Food Costs,TESCO STORES 5125,10/08/2016,9069,13.07
Children's Family Services,Food Costs,TESCO STORES 5125,11/08/2016,9085,31.68
Children's Family Services,Food Costs,TESCO STORES 5655,04/05/2016,7979,3.53
Children's Family Services,Food Costs,TESCO STORES 5655,16/03/2016,7473,0.59
Children's Family Services,Food Costs,TESCO STORES 5655,29/06/2016,8564,2.23
Children's Family Services,Food Costs,TESCO STORES 6412,17/06/2016,8421,4.75
Children's Family Services,Food Costs,TESCO STORES 6412,26/01/2017,11033,11.87
Children's Family Services,Food Costs,TESCO STORES 6440,01/11/2016,10070,171.11
Children's Family Services,Food Costs,TESCO STORES 6440,02/03/2017,11258,191.96
Children's Family Services,Food Costs,TESCO STORES 6440,04/05/2016,7980,187.03
Children's Family Services,Food Costs,TESCO STORES 6440,05/01/2017,10984,79.00
Children's Family Services,Food Costs,TESCO STORES 6440,05/05/2016,7984,-3.00
Children's Family Services,Food Costs,TESCO STORES 6440,05/07/2016,8642,162.22
Children's Family Services,Food Costs,TESCO STORES 6440,05/10/2016,9714,280.07
Children's Family Services,Food Costs,TESCO STORES 6440,06/03/2017,11757,105.57
Children's Family Services,Food Costs,TESCO STORES 6440,06/09/2016,9353,172.05
Children's Family Services,Food Costs,TESCO STORES 6440,06/12/2016,10527,169.66
Children's Family Services,Food Costs,TESCO STORES 6440,07/02/2017,11332,185.57
Children's Family Services,Food Costs,TESCO STORES 6440,07/03/2017,11886,159.45
Children's Family Services,Food Costs,TESCO STORES 6440,07/06/2016,8297,185.49
Children's Family Services,Food Costs,TESCO STORES 6440,08/02/2017,11350,188.52
Children's Family Services,Food Costs,TESCO STORES 6440,08/03/2016,7373,186.25
Children's Family Services,Food Costs,TESCO STORES 6440,08/11/2016,10161,125.74
Children's Family Services,Food Costs,TESCO STORES 6440,10/01/2017,10987,167.39
Children's Family Services,Food Costs,TESCO STORES 6440,10/05/2016,8022,197.48
Children's Family Services,Food Costs,TESCO STORES 6440,11/10/2016,9795,141.66
Children's Family Services,Food Costs,TESCO STORES 6440,12/07/2016,8721,160.09
Children's Family Services,Food Costs,TESCO STORES 6440,13/03/2017,11763,138.64
Children's Family Services,Food Costs,TESCO STORES 6440,13/12/2016,10613,157.77
Children's Family Services,Food Costs,TESCO STORES 6440,14/03/2017,11766,197.49
Children's Family Services,Food Costs,TESCO STORES 6440,14/03/2017,11890,153.96
Children's Family Services,Food Costs,TESCO STORES 6440,14/06/2016,8371,200.26
Children's Family Services,Food Costs,TESCO STORES 6440,15/02/2017,11448,241.55
Children's Family Services,Food Costs,TESCO STORES 6440,15/03/2016,7461,177.17
Children's Family Services,Food Costs,TESCO STORES 6440,15/11/2016,10254,164.42
Children's Family Services,Food Costs,TESCO STORES 6440,17/01/2017,10988,123.87
Children's Family Services,Food Costs,TESCO STORES 6440,17/05/2016,8086,192.72
Children's Family Services,Food Costs,TESCO STORES 6440,19/04/2016,7806,207.75
Children's Family Services,Food Costs,TESCO STORES 6440,19/07/2016,8791,114.76
Children's Family Services,Food Costs,TESCO STORES 6440,19/10/2016,9887,147.94
Children's Family Services,Food Costs,TESCO STORES 6440,20/03/2017,12127,127.00
Children's Family Services,Food Costs,TESCO STORES 6440,20/09/2016,9523,133.14
Children's Family Services,Food Costs,TESCO STORES 6440,20/12/2016,10722,85.65
Children's Family Services,Food Costs,TESCO STORES 6440,21/02/2017,11506,127.10
Children's Family Services,Food Costs,TESCO STORES 6440,21/03/2017,11891,151.29
Children's Family Services,Food Costs,TESCO STORES 6440,21/06/2016,8467,172.12
Children's Family Services,Food Costs,TESCO STORES 6440,22/02/2017,11532,178.15
Children's Family Services,Food Costs,TESCO STORES 6440,22/03/2016,7551,155.87
Children's Family Services,Food Costs,TESCO STORES 6440,22/06/2016,8479,7.24
Children's Family Services,Food Costs,TESCO STORES 6440,22/11/2016,10338,135.08
Children's Family Services,Food Costs,TESCO STORES 6440,22/12/2016,10769,200.29
Children's Family Services,Food Costs,TESCO STORES 6440,23/01/2017,11180,132.39
Children's Family Services,Food Costs,TESCO STORES 6440,24/01/2017,10989,157.18
Children's Family Services,Food Costs,TESCO STORES 6440,24/05/2016,8163,206.32
Children's Family Services,Food Costs,TESCO STORES 6440,26/04/2016,7903,211.90
Children's Family Services,Food Costs,TESCO STORES 6440,27/02/2017,11581,178.75
Children's Family Services,Food Costs,TESCO STORES 6440,27/03/2017,11773,121.75
Children's Family Services,Food Costs,TESCO STORES 6440,27/09/2016,9623,114.92
Children's Family Services,Food Costs,TESCO STORES 6440,28/02/2017,11628,171.48
Children's Family Services,Food Costs,TESCO STORES 6440,28/03/2017,11777,182.34
Children's Family Services,Food Costs,TESCO STORES 6440,28/03/2017,11893,139.45
Children's Family Services,Food Costs,TESCO STORES 6440,28/06/2016,8549,210.55
Children's Family Services,Food Costs,TESCO STORES 6440,29/11/2016,10421,174.08
Children's Family Services,Food Costs,TESCO STORES 6440,30/03/2016,7622,135.03
Children's Family Services,Food Costs,TESCO STORES 6440,31/01/2017,10990,163.41
Children's Family Services,Food Costs,TESCO STORES 6541,27/10/2016,9996,4.58
Children's Family Services,Food Costs,TESCO STORES-2131,09/09/2016,9391,11.58
Children's Family Services,Food Costs,TESCO-STORES 6806,23/09/2016,9562,3.04
Children's Family Services,Food Costs,TGI FRIDAY'S,20/07/2016,8803,100.00
Children's Family Services,Food Costs,THE SOHO SANDWICH SHOP,13/06/2016,8344,5.44
Children's Family Services,Food Costs,WAITROSE 124,19/10/2016,9893,5.30
Children's Family Services,Food Costs,WAITROSE 124,23/06/2016,8491,4.60
Children's Family Services,Food Costs,WAITROSE 191,03/10/2016,9671,4.38
Children's Family Services,Food Costs,WAITROSE 191,07/09/2016,9368,7.03
Children's Family Services,Food Costs,WAITROSE 191,13/05/2016,8053,6.33
Children's Family Services,Food Costs,WAITROSE 191,20/02/2017,11491,7.35
Children's Family Services,Food Costs,WAITROSE 191,25/04/2016,7873,3.98
Children's Family Services,Food Costs,WAITROSE 191,27/07/2016,8928,7.09
Children's Family Services,Food Costs,WAITROSE 191,28/04/2016,7925,6.75
Children's Family Services,Food Costs,WAITROSE 191,29/07/2016,8958,16.69
Children's Family Services,Food Costs,WAITROSE 191,30/06/2016,8599,11.67
Children's Family Services,Food Costs,WAITROSE 215,26/12/2016,10793,13.19
Children's Family Services,Food Costs,WAITROSE 670,20/10/2016,9906,9.94
Children's Family Services,Food Costs,WH SMITH TRAVEL,04/07/2016,8612,3.99
Children's Family Services,Food Costs,WWW.DOMINOS.CO.UK,22/12/2016,10756,26.99
Children's Family Services,Food Costs,WWW.PARENTMAIL.CO.,01/12/2016,10448,5.00
Children's Family Services,Food Costs,WWW.PARENTMAIL.CO.,04/11/2016,10113,15.00
Children's Family Services,Food Costs,WWW.PARENTMAIL.CO.,04/11/2016,10114,5.00
Children's Family Services,Food Costs,WWW.PARENTMAIL.CO.,14/09/2016,9454,20.00
Children's Family Services,Food Costs,WWW.PARENTMAIL.CO.,23/09/2016,9561,20.00
Children's Family Services,Food Costs,XLNT CAFE,27/06/2016,8519,10.25
Children's Family Services,Food Costs,ZAHRA NEWSAGENT,06/04/2016,7704,30.50
Children's Family Services,Food Costs,ZAHRA NEWSAGENT,17/05/2016,8089,30.00
Children's Family Services,Food Costs,ZAHRA NEWSAGENT,20/06/2016,8438,30.50
Children's Family Services,Food Costs,ZAHRA NEWSAGENT,21/07/2016,8847,30.50
Children's Family Services,Furniture-Purchase-Repair,ARGOS RETAIL GROUP,06/07/2016,8656,111.66
Children's Family Services,Furniture-Purchase-Repair,HOMEBASE LTD 024,15/07/2016,8758,4.29
Children's Family Services,Gas,BRITISH GAS BUSINE,15/11/2016,10261,203.70
Children's Family Services,Gas,BRITISH GAS BUSINE,20/01/2017,11161,854.00
Children's Family Services,Gas,BRITISH GAS BUSINE,30/06/2016,8600,"1,695.22"
Children's Family Services,Gas,EDF ENERGY-DOM,06/12/2016,10528,194.20
Children's Family Services,General Office Expenses,AMAZON EU,04/11/2016,10121,21.31
Children's Family Services,General Office Expenses,AMAZON EU,17/11/2016,10276,9.10
Children's Family Services,General Office Expenses,"AMAZON SVCS EUROPE,SAR",27/02/2017,11614,16.80
Children's Family Services,General Office Expenses,AMAZON UK MARKETPLACE,04/11/2016,10120,3.24
Children's Family Services,General Office Expenses,AMAZON UK MARKETPLACE,04/11/2016,10122,8.90
Children's Family Services,General Office Expenses,AMAZON UK MARKETPLACE,11/07/2016,8703,107.25
Children's Family Services,General Office Expenses,AMAZON UK MARKETPLACE,11/08/2016,9075,30.59
Children's Family Services,General Office Expenses,AMAZON UK MARKETPLACE,14/02/2017,11427,10.98
Children's Family Services,General Office Expenses,AMAZON UK MARKETPLACE,17/11/2016,10277,5.90
Children's Family Services,General Office Expenses,AMAZON UK MARKETPLACE,23/02/2017,11533,32.00
Children's Family Services,General Office Expenses,AMAZON UK MARKETPLACE,24/02/2017,11556,142.41
Children's Family Services,General Office Expenses,AMAZON UK MARKETPLACE,24/02/2017,11557,49.96
Children's Family Services,General Office Expenses,AMAZON UK MARKETPLACE,27/02/2017,11582,11.25
Children's Family Services,General Office Expenses,AMAZON UK MARKETPLACE,27/02/2017,11608,7.88
Children's Family Services,General Office Expenses,AMAZON UK MARKETPLACE,27/02/2017,11615,169.31
Children's Family Services,General Office Expenses,AMAZON UK MARKETPLACE,27/10/2016,9994,10.50
Children's Family Services,General Office Expenses,AMAZON UK MARKETPLACE,28/02/2017,11626,16.75
Children's Family Services,General Office Expenses,AMAZON UK MARKETPLACE,28/02/2017,11627,29.98
Children's Family Services,General Office Expenses,AMAZON UK RETAIL AMAZO,19/12/2016,10679,31.94
Children's Family Services,General Office Expenses,AMAZON.CO.UK,03/03/2017,11260,9.24
Children's Family Services,General Office Expenses,ARGOS RETAIL GROUP,02/03/2017,11259,479.99
Children's Family Services,General Office Expenses,ARGOS RETAIL GROUP,27/02/2017,11583,359.99
Children's Family Services,General Office Expenses,DROPBOX N18CCKSWT15L,20/02/2017,11495,82.21
Children's Family Services,General Office Expenses,GHANSHYAM DIY STORE,21/07/2016,8848,4.59
Children's Family Services,General Office Expenses,POST OFFICE SHOP,05/07/2016,8617,66.99
Children's Family Services,General Office Expenses,POUNDSTRETCHER,09/01/2017,10878,3.33
Children's Family Services,General Office Expenses,TESCO STORE 3539,15/02/2017,11450,-6.00
Children's Family Services,General Office Expenses,TESCO STORES 6440,01/03/2017,11652,48.18
Children's Family Services,General Office Expenses,TESCO STORES 6440,01/04/2016,7650,34.70
Children's Family Services,General Office Expenses,TESCO STORES 6440,01/12/2016,10453,42.25
Children's Family Services,General Office Expenses,TESCO STORES 6440,03/02/2017,10931,33.45
Children's Family Services,General Office Expenses,TESCO STORES 6440,03/03/2017,11286,28.25
Children's Family Services,General Office Expenses,TESCO STORES 6440,06/06/2016,8265,35.96
Children's Family Services,General Office Expenses,TESCO STORES 6440,06/09/2016,9349,59.65
Children's Family Services,General Office Expenses,TESCO STORES 6440,07/07/2016,8665,73.05
Children's Family Services,General Office Expenses,TESCO STORES 6440,07/11/2016,10137,43.25
Children's Family Services,General Office Expenses,TESCO STORES 6440,08/12/2016,10557,28.25
Children's Family Services,General Office Expenses,TESCO STORES 6440,09/05/2016,7999,67.34
Children's Family Services,General Office Expenses,TESCO STORES 6440,11/07/2016,8704,35.00
Children's Family Services,General Office Expenses,TESCO STORES 6440,12/01/2017,10924,56.25
Children's Family Services,General Office Expenses,TESCO STORES 6440,12/08/2016,9058,32.30
Children's Family Services,General Office Expenses,TESCO STORES 6440,12/10/2016,9807,60.80
Children's Family Services,General Office Expenses,TESCO STORES 6440,13/06/2016,8349,47.24
Children's Family Services,General Office Expenses,TESCO STORES 6440,14/04/2016,7769,80.50
Children's Family Services,General Office Expenses,TESCO STORES 6440,15/02/2017,11449,90.50
Children's Family Services,General Office Expenses,TESCO STORES 6440,15/11/2016,10249,26.00
Children's Family Services,General Office Expenses,TESCO STORES 6440,16/09/2016,9476,57.75
Children's Family Services,General Office Expenses,TESCO STORES 6440,16/12/2016,10658,43.05
Children's Family Services,General Office Expenses,TESCO STORES 6440,19/01/2017,10927,70.75
Children's Family Services,General Office Expenses,TESCO STORES 6440,20/05/2016,8125,60.00
Children's Family Services,General Office Expenses,TESCO STORES 6440,20/06/2016,8431,41.25
Children's Family Services,General Office Expenses,TESCO STORES 6440,21/07/2016,8806,57.00
Children's Family Services,General Office Expenses,TESCO STORES 6440,21/10/2016,9915,56.72
Children's Family Services,General Office Expenses,TESCO STORES 6440,23/03/2016,7558,26.48
Children's Family Services,General Office Expenses,TESCO STORES 6440,23/09/2016,9566,69.25
Children's Family Services,General Office Expenses,TESCO STORES 6440,24/02/2017,11558,91.33
Children's Family Services,General Office Expenses,TESCO STORES 6440,24/11/2016,10371,47.60
Children's Family Services,General Office Expenses,TESCO STORES 6440,25/04/2016,7877,136.97
Children's Family Services,General Office Expenses,TESCO STORES 6440,25/11/2016,10382,33.99
Children's Family Services,General Office Expenses,TESCO STORES 6440,27/01/2017,10930,51.74
Children's Family Services,General Office Expenses,TESCO STORES 6440,27/05/2016,8194,80.14
Children's Family Services,General Office Expenses,TESCO STORES 6440,27/06/2016,8522,35.50
Children's Family Services,General Office Expenses,TESCO STORES 6440,28/07/2016,8929,33.70
Children's Family Services,General Office Expenses,TESCO STORES 6440,28/10/2016,10010,33.24
Children's Family Services,General Office Expenses,TESCO STORES 6440,29/12/2016,10807,37.90
Children's Family Services,General Office Expenses,TESCO STORES 6440,30/09/2016,9660,30.12
Children's Family Services,General Office Expenses,TVLICENSING.CO.UK,20/06/2016,8432,145.50
Children's Family Services,General Office Expenses,VALUE PRODUCTS LTD,25/11/2016,10381,17.64
Children's Family Services,General Office Expenses,W M MORRISON STORE,24/11/2016,10369,6.31
Children's Family Services,General Office Expenses,W M MORRISON STORE,24/11/2016,10370,32.00
Children's Family Services,General Office Expenses,WAITROSE 179,14/07/2016,8738,96.38
Children's Family Services,General Office Expenses,WWW.MY.MORRISONS.C,22/11/2016,10331,20.00
Children's Family Services,General Office Expenses,WWW.THEWORKS.CO.UK,15/12/2016,10650,7.99
Children's Family Services,General Office Expenses,WWW.THEWORKS.CO.UK,16/11/2016,10267,16.99
